Workbook

Sheet Lisez-moi (hidden)
B3: RSU | C3: Thème | D3: Nb_ind OBLIG | E3: NB_ind FACULT | F3: NB_TOTAL
B4: 1 | C4: Emploi | D4: 6 | E4: 1 | F4: =SUM(D4:E4) -> 7
B5: 2 | C5: Recrutements | D5: 3 | E5: 1 | F5: 4
B6: 3 | C6: Parcours professionnels | D6: 11 | E6: 0 | F6: 11
B7: 4 | C7: Formation | D7: 1 | E7: 3 | F7: 4
B8: 5 | C8: Rémunérations | D8: 6 | E8: 0 | F8: 6
B9: 6 | C9: Santé, Sécurité au travail | D9: 40 | E9: 16 | F9: 56
B10: 7 | C10: Organisation du travail et temps de travail | D10: 13 | E10: 6 | F10: 19
B11: 8 | C11: Action sociale, Protection sociale | D11: 2 | E11: 0 | F11: 2
B12: 9 | C12: Dialogue social | D12: 1 | E12: 5 | F12: 6
B13: 10 | C13: Discipline | D13: 1 | E13: 0 | F13: 1
D14: =SUM(D4:D13) -> 84 | E14: 32 | F14: 116
D15: =+D14/F14 -> 0.724137931 | E15: =+E14/F14 -> 0.275862069

Sheet Sommaire
B2: TABLE DES MATIÈRES
B4: 1. EMPLOI
C5: BDS FPH 003-O | D5: Effectifs physiques
C6: BDS FPH 003-O bis | D6: Effectifs en équivalent temps plein au 31 décembre
C7: BDS FPH 003-O ter | D7: Effectifs en équivalent temps plein annuel
C8: BDS FPH 004-O | D8: Nombre de CDD transformés en CDI en application de l’article 9 de la loi n° 86-33 du 11 janvier 1986
C9: BDS FPH 005-F | D9: Nombre de stagiaires de droit privé accueillis au cours de l’année
C10: BDS FPH 006-O | D10: Âge moyen
C11: BDS FPH 006-O bis | D11: Âge médian des effectifs d’agents en fonction sur emploi permanent au 31 décembre
B13: 2. RECRUTEMENTS
C14: BDS FPH 008-O | D14: Nombre d'agents fonctionnaires (PNM) ou titulaires (PM)* recrutés au cours de l'année
C15: BDS FPH 010-O | D15: Nombre d’agents contractuels recrutés sur un emploi permanent au cours de l’année
C16: BDS FPH 011-O | D16: Nombre d’agents contractuels et autres personnels recrutés sur un emploi non permanent au cours de l’année
C17: BDS FPH 012-F | D17: Nombre d'agents nommés au cours de l'année sur un poste de cadre supérieur ou dirigeant dont en primo-nomination
B19: 3. PARCOURS PROFESSIONNELS
B20: a) Mobilité
C21: BDS FPH 013-O | D21: Nombre de postes publiés comme vacants ou susceptibles d’être vacants au cours de l’année
C22: BDS FPH 014-O | D22: Nombre de candidatures reçues au cours de l’année
C23: BDS FPH 015-O | D23: Nombre de postes pourvus au cours de l’année suite à publication comme poste vacant ou susceptible d’être vacant
C24: BDS FPH 016-O | D24: Nombre de postes n’ayant fait l’objet d’aucune candidature
B25: b) Avancement de grade et promotion interne (uniquement pour les PNM)
C26: BDS FPH 017-O | D26: Nombre de promouvables pour chaque grade
C27: BDS FPH 017-O bis | D27: Nombre de promus pour chaque grade
C28: BDS FPH 018-O bis | D28: Nombre de promus pour chaque corps
C29: BDS FPH 019-O | D29: Nombre de promouvables pour chaque corps
C30: BDS FPH 021-O | D30: Nombre de fonctionnaires ayant connu dans l'année une réussite à un concours ou examen professionnel
B31: c) Départs
C32: BDS FPH 022-O | D32: Nombre d’agents ayant quitté leurs fonctions au cours de l’année selon le motif de départ
C33: BDS FPH 023-O | D33: Nombre de demandes de ruptures conventionnelles
B35: 4. FORMATION
C36: BDS FPH 024-O | D36: Nombre d’agents formés
C37: BDS FPH 026-F | D37: Nombre de jours de formation
C38: BDS FPH 026-F bis | D38: Nombre de stagiaires en formation
C39: BDS FPH 027-F | D39: Nombre de demandes de congés formation
B41: 5. RÉMUNÉRATIONS
C42: BDS FPH 028-O | D42: Masse salariale en euros
C43: BDS FPH 030-O | D43: Nombre d'agents bénéficiant de la GIPA
B44: ð Pour les agents sur emploi permanent rémunérés au cours de l'année
C45: BDS FPH 031-O | D45: Total des rémunérations annuelles brutes versées
C46: BDS FPH 032-O | D46: Nombre d'équivalents temps plein annuels rémunérés
B47: ð Pour les agents des autres catégories et autres statuts rémunérés (non permaments) au cours de l'année
C48: BDS FPH 034-O | D48: Total des rémunérations annuelles brutes versées, dont heures supplémentaires
C49: BDS FPH 035-O | D49: Nombre d'équivalent temps plein rémunérés
B51: 6. SANTÉ ET SÉCURITÉ AU TRAVAIL
B52: a) Risques professionnels
C53: BDS FPH 036-O | D53: Nombre d’accidents de service, accidents de trajet, maladies professionnelles (ventilées par tableau), maladies hors tableau, affections psychiques, reconnus imputable au service
C54: BDS FPH 037-O | D54: Nombre d’accidents mortels reconnus imputables au service (distinguer accidents de la route et autres)
B55: b) Dispositifs de signalement
C56: BDS FPH 040-O | D56: Nombre de saisines du dispositif de signalement au cours de l’année
C57: BDS FPH 041-O | D57: Nombre de saisines du dispositif de signalement au cours de l’année précédente
C58: BDS FPH 042-O | D58: Nombre d’actes de violence, de discrimination, de harcèlement moral ou sexuel et d’agissements sexistes recensés au cours de l’année par les dispositifs de signalement
C59: BDS FPH 043-O | D59: Nombre de victimes d’actes de violence, de discrimination, de harcèlement moral ou sexuel et d’agissements sexistes recensées au cours de l’année par les dispositifs de signalement
C60: BDS FPH 044-O | D60: Nombre de signalements par type d’actes
C61: BDS FPH 045-O | D61: Nombre de reconnaissance d'une faute inexcusable de l'employeur au cours de l’année
B62: c) Protection fonctionnelle
C63: BDS FPH 046-O | D63: Nombre de mesures de protection fonctionnelle demandées d’une part, mise en œuvre d’autre part
B64: d) Suicides
C65: BDS FPH 048-O | D65: Nombre de suicides, déclarés et reconnus imputables au service au cours de l'année.
C66: BDS FPH 049-O | D66: Nombre de tentatives de suicides, déclarées et reconnues imputables au service au cours de l'année.
C67: BDS FPH 050-O | D67: Nombre de suicides intervenus sur le lieu de travail.
C68: BDS FPH 051-O | D68: Nombre de tentatives de suicides intervenues sur le lieu de travail.
B69: e) Acteurs de la prévention
C70: BDS FPH 052-O | D70: Nombre d’acteurs de la prévention en fonction au 31 décembre
C71: BDS FPH 053-F | D71: Répartition des intervenants en prévention des risques professionnels selon leur quotité de travail
C72: BDS FPH 054-F | D72: Une formation initiale type uniformisée et généralisée est-elle mise en place au sein de l’hôpital ?
C73: BDS FPH 055-F | D73: Nombre d’acteurs de la prévention ayant pris leurs fonctions au cours de l’année
C74: BDS FPH 056-F | D74: Nombre d’acteurs de la prévention en fonction ayant suivi une formation continue au cours de l’année, par catégorie d’acteur
C75: BDS FPH 056-F bis | D75: Une équipe de SST existe-t-il au sein de l’hôpital ?
C76: BDS FPH 056-F ter | D76: Nombre de recours à l’inspection du travail
B77: f) Instances de prévention
B78: 1. Les Formations Spécialisées (FS) en matière de santé, de sécurité et de conditions de travail
C79: BDS FPH 057-O | D79: Nombre de Formations Spécialisées
C80: BDS FPH 058-O | D80: Nombre de CSE exerçant les compétences d'une Formation Spécialisée
B81: 2. Les membres des Formations Spécialisées et leur formation
C82: BDS FPH 059-O | D82: Nombre de membres des FS par catégorie de FS, en distinguant titulaires et suppléants
C83: BDS FPH 060-O | D83: Nombre de membres ayant reçu une formation et durée de celle-ci
C84: BDS FPH 061-O | D84: Nombre de membres ayant bénéficié d'un congé pour formation en matière d'hygiène, de sécurité et de conditions de travail
B85: 3. Les réunions des Formations Spécialisées
C86: BDS FPH 065-O | D86: Nombre de réunions de FS (hors groupes de travail) par type
B87: 4. Les visites et les enquêtes des FS
C88: BDS FPH 068-O | D88: Nombre de visites de sites effectuées
B89: 5. Recours à un expert certifié
C90: BDS FPH 070-O | D90: Nombre de demandes de recours à un expert certifié
B91: 6. Signalement d'un danger grave et imminent et droit de retrait
C92: BDS FPH 075-O | D92: Nombre de signalements d'un danger grave et imminent dont
C93: BDS FPH 076-F | D93: Nombre d'invocations du droit de retrait effectuées au cours de l’année
B94: 7. Documents reçus, consultations, études et avis
C95: BDS FPH 079-O | D95: Nombre de rapports annuels des médecins du travail reçus
C96: BDS FPH 080-F | D96: Nombre des signalements de refus par l'administration d'aménagement de poste reçus
C97: BDS FPH 085-F | D97: Nombre de consultations des FS sur mesures générales prises en vue de faciliter la mise, la remise ou le maintien au travail des accidentés du travail, des invalides de guerre, des invalides civils et des travailleurs handicapés, notamment sur l'aménagement des postes de travail
C98: BDS FPH 086-F | D98: Nombre de programmes annuels de prévention des risques professionnels et des conditions de travail
C99: BDS FPH 088-O | D99: Nombre de DUERP
C100: BDS FPH 094-F | D100: Nombres d'aménagements de poste proposés par le médecin du travail
B101: g) Commissions médicales
C102: BDS FPH 096-O | D102: Nombre d'agents
C103: BDS FPH 097-O | D103: Nombre d'agents
C104: BDS FPH 098-O | D104: Nombre d'agents
C105: BDS FPH 099-O | D105: Nombre de bénéficiaires d'un temps partiel thérapeutique recensés sur l'année
C106: BDS FPH 102-O | D106: Nombre de licenciements pour inaptitude physique au cours de l'année
B107: h) Actions de prévention
B108: 1. Inspection
C109: BDS FPH 103-O | D109: Nombre et motifs des recours à l'inspection du travail (risque grave ou désaccord sérieux et persistant) initiés au cours de l'année
C110: BDS FPH 104-F | D110: Nombre de rapports transmis par l'inspection du travail au ministre au cours de l'année suite à un désaccord avec le chef de service
B111: 2. Formation SST
C112: BDS FPH 105-O | D112: Nombre d’agents formés à la SST (santé, sécurité, RPS, TMS, ergonomie, risque incendie, secourisme, etc.) au cours de l’année parmi les agents en poste au 31 décembre
C113: BDS FPH 106-F | D113: Des formations SST ont-elles été organisées au cours de l'année suite à des événements graves ?
B114: 3. DUERP
C115: BDS FPH 107-O | D115: Nombre de services et nombre d’agents concernés
C116: BDS FPH 108-F | D116: Taux de réalisation du programme annuel de prévention de l’année précédente, y compris concernant les risques psychosociaux
C117: BDS FPH 109-F | D117: Nombre de documents de traçabilité des expositions professionnelles établis au cours de l’année
B118: 4. Actions de prévention
C119: BDS FPH 110-O | D119: Nombre de services et nombre d’agents concernés
C120: BDS FPH 111-O | D120: Nombre de services et nombre d’agents concernés
B121: 5. Usure
C122: BDS FPH 112-O | D122: Nombre d’agents au 31 décembre exposés à un risque d’usure professionnelle identifiés
B123: 6. Risques psycho-sociaux
C124: BDS FPH 114-O | D124: Nombre de signalements au cours de l’année
B125: i) Médecine de prévention
C126: BDS FPH 116-F | D126: Organisation des services de médecine du travail au 31 décembre
C127: BDS FPH 117-O | D127: Suivi médical
C128: BDS FPH 118-O | D128: Nombre de visites de site réalisées par le médecin du travail ou par un membre de l’équipe pluridisciplinaire de santé au travail au cours de l’année
C129: BDS FPH 119-O | D129: Nombre de rapports de médecins du travail transmis aux comités médicaux et aux commissions de réforme au cours de l’année
B131: 7. ORGANISATION DU TRAVAIL ET TEMPS DE TRAVAIL
B132: a) Organisation et cycles de travail
C133: BDS FPH 123-O | D133: Répartition des effectifs en fonction au 31 décembre
C134: BDS FPH 124-O | D134: Existence de chartes de fonctionnement sur les pools de remplacement (PNM)
C135: BDS FPH 125-F | D135: Nombre total de nuits-agents travaillées au cours de l’année
B136: b) Astreintes et interventions
C137: BDS FPH 126-O | D137: Nombre d'agents en fonction au 31 décembre soumis à des astreintes (ou à défaut ayant bénéficié de paiements d’indemnités d’astreintes)
B138: c) Télétravail et travail à distance
C139: BDS FPH 129-O | D139: Nombre d'agents en fonction au 31 décembre exerçant leurs fonctions dans le cadre du télétravail
B140: d) Heures supplémentaires ou temps de travail additionnel (personnel médicaux)
C141: BDS FPH 132-O | D141: Nombre d'agents en fonction au 31 décembre ayant effectué des heures supplémentaires ou du temps de travail additionnel au cours de l’année
C142: BDS FPH 133-F | D142: Nombre d'heures supplémentaires effectuées au cours de l’année
B143: e) Temps complet/incomplet ou non complet – Temps plein et temps partiel
C144: BDS FPH 134-O | D144: Répartition des effectifs en fonction au 31 décembre
C145: BDS FPH 135-O | D145: Nombre de demandes liées au temps partiel au cours de l’année
B146: f) Taux d’absentéisme
C147: BDS FPH 136-O | D147: Taux d’absentéisme pour motif médical et non médical
B148: g) Congés (annuels, RTT...)
C149: BDS FPH 137-O | D149: Nombre de jours de congés
B150: h) CET
C151: BDS FPH 141-O | D151: Nombre total de comptes épargne-temps ouverts au 31 décembre
C152: BDS FPH 142-F | D152: Nombre d'agents ayant déposé des jours sur leur compte épargne-temps au cours de l'année
C153: BDS FPH 143-F | D153: Nombre total de jours stockés sur les comptes épargne-temps au 31 décembre
C154: BDS FPH 144-F | D154: Nombre de jours des comptes épargne-temps consommés au cours l'année par type de consommation
B155: i) Absences au travail hors raisons de santé
C156: BDS FPH 145-O | D156: Nombre d'agents ayant eu au moins une absence hors raison de santé au cours de l’année par motif
B157: j) Absences au travail pour raisons de santé
C158: BDS FPH 150-O | D158: Nombre d'agents ayant été absents au moins un jour dans l’année pour raison de santé, par motif
C159: BDS FPH 151-F | D159: Nombre total de journées d'absence pour raison de santé au cours de l’année par motif
B160: k) Jours de carence
C161: BDS FPH 152-O | D161: Nombre de jours de carence imputés aux agents suite à une absence survenue au cours de l’année
B163: 8. ACTION SOCIALE ET PROTECTION SOCIALE
C164: BDS FPH 154-O | D164: Montant de la dépense consacrée à l'action sociale
C165: BDS FPH 155-O | D165: Nombre d'agents bénéficiaires de prestations sociales
B167: 9. DIALOGUE SOCIAL
B168: a) Organismes consultatifs
C169: BDS FPH 158-O | D169: Nombre de représentants du personnel par type d'instance et niveau pour le CSE
C170: BDS FPH 159-F | D170: Nombre de réunions des instances au cours de l'année
B171: b) Moyens humains accordés aux syndicats pour les besoins de l'activité syndicale (article 16 du décret n° 86-660 du 19 mars 1986) à vérifier
C172: BDS FPH 163-F | D172: Volume annuel du contingent global de crédit de temps syndical
C173: BDS FPH 164-F | D173: Volume de crédits de temps syndical effectivement utilisé en distinguant
B174: c) Les négociations engagées et les accords signés
C175: BDS FPH 167-F | D175: Nombre de demandes formulées par les organisations syndicales visant à ouvrir une négociation collective
C176: BDS FPH 168-F | D176: Nombre d'accords conclus et signés majoritairement au cours de l'année
B178: 10. DISCIPLINE
C179: BDS FPH 171-O | D179: Nombre sanctions prononcées

Sheet CONTROLES (hidden)
B1: Contrôles de la saisie dans le cadre RSU
B2: Cet onglet a pour objet de vérifier que les éléments ventilés entre les différents tableaux sont identiques. Les contrôles portent exclusivement sur les tableaux des onglets : EMPLOI - RECRUTEMENT - PARCOURS - REMUNERATION
B3: Générer le fichier d'import pour la plateforme de saisie en ligne
B4: *** Niveau des contrôles
B5: NIV1 - Un premier niveau de contrôle est réalisé sur les répartitions à plat entre les différentes modalités
B6: NIV2 - Un second niveau de contrôle porte sur les croisements
C8: CTRL
C9: VALEUR
B10: 1. EMPLOI
B12: BDS FPH 003-O / 003-O bis / 003-O ter
B13: Effectifs physiques au 31/12 NIVEAU
A14: CT1a | B14: Statut d'emploi (personnel médical) ou filière (personnel non médical) | C14: ='1. Emploi'!I39 -> 3627
A15: CT2a | B15: Catégorie hiérarchique | C15: ='1. Emploi'!I46 -> 4120
A16: CT3a | B16: Position statutaire | C16: ='1. Emploi'!I118 -> 4120
A17: CT4a | B17: Métier | C17: ='1. Emploi'!I383 -> 3651
A18: CT5a | B18: Tranches d'âges | C18: ='1. Emploi'!I390 -> 4120
A19: CT6a | B19: Sexe | C19: ='1. Emploi'!I406 -> 4120
A20: CT_EMP1a | B20: Contrôle Emp_1a NIV1 | C20: =IF(AND(C14=C15,C14=C16,C14=C17,C14=C18,C14=C19),"OK","A CORRIGER") -> A CORRIGER
A21: CT7a | B21: Fondement juridique de recrutement pour les contractuels | C21: ='1. Emploi'!I141 -> 290
A22: CT8a | B22: Types de contrats pour les contractuels | C22: ='1. Emploi'!I149 -> 1414
A23: CT_EMP2a | B23: Contrôle Emp_2a NIV1 | C23: =IF(AND(C21=C22),"OK","A CORRIGER") -> A CORRIGER
A24: CT9a | B24: Corps (personnel non médical) | C24: ='1. Emploi'!I111 -> 3071
A25: CT10a | B25: Croisements Corps et Catégories et Statuts et sexe | C25: ='1. Emploi'!L723 -> 2633
A26: CT_EMP3a | B26: Contrôle Emp_3a NIV2 | C26: =IF(AND(C24=C25),"OK","A CORRIGER") -> A CORRIGER
A27: CT11a | B27: Métier | C27: ='1. Emploi'!I383 -> 3651
A28: CT12a | B28: Croisement Métier/âge/sexe | C28: ='1. Emploi'!L948+'1. Emploi'!Q948 -> 3467
A29: CT_EMP4a | B29: Contrôle Emp_4a NIV2 | C29: =IF(AND(C27=C28),"OK","A CORRIGER") -> A CORRIGER
A30: CT13a | B30: Indicateur de situation au regard du handicap | C30: ='1. Emploi'!I401 -> 0
A31: CT14a | B31: Croisement Situation au regard du handicap et Statut d'emploi ou Filière | C31: ='1. Emploi'!L1086+'1. Emploi'!Q1086 -> 0
A32: CT_EMP5a | B32: Contrôle Emp_5a NIV2 | C32: =IF(AND(C30=C31),"OK","A CORRIGER") -> OK
B35: Effectifs en ETP au 31/12 NIVEAU
A36: CT1b | B36: Statut d'emploi (personnel médical) ou filière (personnel non médical) | C36: ='1. Emploi'!J39 -> 3446.9
A37: CT2b | B37: Catégorie hiérarchique | C37: ='1. Emploi'!J46 -> 3935.714
A38: CT3b | B38: Position statutaire | C38: ='1. Emploi'!J118 -> 3935.714
A39: CT4b | B39: Métier | C39: ='1. Emploi'!J383 -> 3487.724
A40: CT5b | B40: Tranches d'âges | C40: ='1. Emploi'!J390 -> 3935.714
A41: CT6b | B41: Sexe | C41: ='1. Emploi'!J406 -> 3935.714
A42: CT_EMP1b | B42: Contrôle Emp_1b NIV1 | C42: =IF(AND(C36=C37,C36=C38,C36=C39,C36=C40,C36=C41),"OK","A CORRIGER") -> A CORRIGER
A43: CT7b | B43: Fondement juridique de recrutement pour les contractuels | C43: ='1. Emploi'!J141 -> 241.15
A44: CT8b | B44: Types de contrats pour les contractuels | C44: ='1. Emploi'!J149 -> 1324.664
A45: CT_EMP2b | B45: Contrôle Emp_2b NIV1 | C45: =IF(AND(C43=C44),"OK","A CORRIGER") -> A CORRIGER
A46: CT9b | B46: Corps (personnel non médical) | C46: ='1. Emploi'!J111 -> 2989.35
A47: CT10b | B47: Croisements Corps et Catégories et Statuts et sexe | C47: ='1. Emploi'!O723 -> 2563.7
A48: CT_EMP3b | B48: Contrôle Emp_3b NIV2 | C48: =IF(AND(C46=C47),"OK","A CORRIGER") -> A CORRIGER
A49: CT11b | B49: Métier | C49: ='1. Emploi'!J383 -> 3487.724
A50: CT12b | B50: Croisement Métier/âge/sexe | C50: ='1. Emploi'!V948+'1. Emploi'!AA948 -> 3302.264
A51: CT_EMP4b | B51: Contrôle Emp_4b NIV2 | C51: =IF(AND(C49=C50),"OK","A CORRIGER") -> A CORRIGER
A52: CT13b | B52: Indicateur de situation au regard du handicap | C52: ='1. Emploi'!J401 -> 0
A53: CT14b | B53: Croisement Situation au regard du handicap et Statut d'emploi ou Filière | C53: ='1. Emploi'!V1086+'1. Emploi'!AA1086 -> 0
A54: CT_EMP5b | B54: Contrôle Emp_5b NIV2 | C54: =IF(AND(C52=C53),"OK","A CORRIGER") -> OK
B56: Effectifs en ETP annuel NIVEAU
A57: CT1c | B57: Statut d'emploi (personnel médical) ou filière (personnel non médical) | C57: ='1. Emploi'!K39 -> 3383.6245
A58: CT2c | B58: Catégorie hiérarchique | C58: ='1. Emploi'!K46 -> 3848.193833
A59: CT3c | B59: Position statutaire | C59: ='1. Emploi'!K118 -> 3714.8415
A60: CT4c | B60: Métier | C60: ='1. Emploi'!K383 -> 3412.673917
A61: CT5c | B61: Tranches d'âges | C61: ='1. Emploi'!K390 -> 3848.193833
A62: CT6c | B62: Sexe | C62: ='1. Emploi'!K406 -> 3848.193833
A63: CT_EMP1c | B63: Contrôle Emp_1c NIV1 | C63: =IF(AND(C57=C58,C57=C59,C57=C60,C57=C61,C57=C62),"OK","A CORRIGER") -> A CORRIGER
A64: CT7c | B64: Fondement juridique de recrutement pour les contractuels | C64: ='1. Emploi'!K141 -> 246.649
A65: CT8c | B65: Types de contrats pour les contractuels | C65: ='1. Emploi'!K149 -> 1305.88675
A66: CT_EMP2c | B66: Contrôle Emp_2c NIV1 | C66: =IF(AND(C64=C65),"OK","A CORRIGER") -> A CORRIGER
A67: CT9c | B67: Corps (personnel non médical) | C67: ='1. Emploi'!K111 -> 2932.91675
A68: CT10c | B68: Croisements Corps et Catégories et Statuts et sexe | C68: ='1. Emploi'!R723 -> 2477.614167
A69: CT_EMP3c | B69: Contrôle Emp_3c NIV2 | C69: =IF(AND(C67=C68),"OK","A CORRIGER") -> A CORRIGER
A70: CT11c | B70: Métier | C70: ='1. Emploi'!K383 -> 3412.673917
A71: CT12c | B71: Croisement Métier/âge/sexe | C71: ='1. Emploi'!AF948+'1. Emploi'!AK948 -> 3272.371667
A72: CT_EMP4c | B72: Contrôle Emp_4c NIV2 | C72: =IF(AND(C70=C71),"OK","A CORRIGER") -> A CORRIGER
A73: CT13c | B73: Indicateur de situation au regard du handicap | C73: ='1. Emploi'!K401 -> 0
A74: CT14c | B74: Croisement Situation au regard du handicap et Statut d'emploi ou Filière | C74: ='1. Emploi'!AF1086+'1. Emploi'!AK1086 -> 0
A75: CT_EMP5c | B75: Contrôle Emp_5c NIV2 | C75: =IF(AND(C73=C74),"OK","A CORRIGER") -> OK
B77: BDS FPH 004-O
B78: Nombre de CDD transformés en CDI en application de l’article 9 de la loi n° 86-33 du 11 janvier 1986 NIVEAU
A79: CT15 | B79: Moment de la transformation | C79: ='1. Emploi'!I1099 -> 128
A80: CT16 | B80: Fondement juridique de recrutement pour les contractuels | C80: ='1. Emploi'!I1122 -> 0
A81: CT17 | B81: Ancienneté | C81: ='1. Emploi'!I1127 -> 128
A82: CT18 | B82: Statut d'emploi (personnel médical) ou filière (personnel non médical) | C82: ='1. Emploi'!I1148 -> 128
A83: CT_EMP6 | B83: Contrôle Emp_6 NIV1 | C83: =IF(AND(C79=C80,C79=C81,C79=C82),"OK","A CORRIGER") -> A CORRIGER
B86: 2. RECRUTEMENTS
B88: BDS FPH 008-O
B89: Nb agents fonctionnaires recrutés (PNM) NIVEAU
A90: CT19a | B90: Catégorie hiérarchique | C90: ='2. Recrutements'!I23 -> 11
A91: CT20a | B91: Corps (personnel non médical) | C91: ='2. Recrutements'!I88 -> 11
A92: CT21a | B92: Grade | C92: ='2. Recrutements'!I313 -> 11
A93: CT22a | B93: Voie d'accès | C93: ='2. Recrutements'!I329 -> 2
A94: CT23a | B94: Sexe | C94: ='2. Recrutements'!I345 -> 11
A95: CT_REC1a | B95: Contrôle Rec_1a NIV1 | C95: =IF(AND(C90=C91,C90=C92,C90=C93,C90=C94),"OK","A CORRIGER") -> A CORRIGER
A96: CT24a | B96: Corps (personnel non médical) | C96: ='2. Recrutements'!I88 -> 11
A97: CT25a | B97: Croisement Corps et Catégories et Voie d'accès | C97: ='2. Recrutements'!L662 -> 2
A98: CT_REC2a | B98: Contrôle Rec_2a NIV2 | C98: =IF(AND(C90=C91,C90=C92,C90=C93,C90=C94,C90=C97),"OK","A CORRIGER") -> A CORRIGER
A99: CT26 | B99: Indicateur de situation au regard du handicap | C99: ='2. Recrutements'!I340 -> 0
A100: CT27 | B100: Croisement Indicateurs de situation au regard du handicap & Catégories | C100: ='2. Recrutements'!L693 -> 0
A101: CT_REC3 | B101: Contrôle Rec_3a NIV2 | C101: =IF(AND(C99=C100),"OK","A CORRIGER") -> OK
B103: Nb agents titulaires recrutés (PM) NIVEAU
A104: CT19b | B104: Catégorie hiérarchique | C104: ='2. Recrutements'!J23 -> 7
A105: CT22b | B105: Voie d'accès | C105: ='2. Recrutements'!J329 -> 1
A106: CT23b | B106: Sexe | C106: ='2. Recrutements'!J345 -> 7
A107: CT_REC1b | B107: Contrôle Rec_1b NIV1 | C107: =IF(AND(C104=C105,C104=C106),"OK","A CORRIGER") -> A CORRIGER
B109: BDS FPH 010-O
B110: Nb agents contractuels recrutés sur un emploi permanent NIVEAU
A111: CT28 | B111: Niveau hiérarchique | C111: ='2. Recrutements'!I708 -> 282
A112: CT29 | B112: Statut d'emploi (personnel médical) ou filière (personnel non médical) | C112: ='2. Recrutements'!I729 -> 288
A113: CT30 | B113: Fondement juridique de recrutement pour les contractuels (sur emploi permanent) | C113: ='2. Recrutements'!I748 -> 0
A114: CT31 | B114: Type de contrat | C114: ='2. Recrutements'!I756 -> 282
A115: CT32 | B115: Durée des contrats (pour les contractuels sur emploi permanent) | C115: ='2. Recrutements'!I770 -> 80
A116: CT33 | B116: Sexe | C116: ='2. Recrutements'!I786 -> 281
A117: CT_REC4 | B117: Contrôle Rec_4 NIV1 | C117: =IF(AND(C111=C112,C111=C113,C111=C114,C111=C115,C111=C116),"OK","A CORRIGER") -> A CORRIGER
A119: CT34 | B119: Statut d'emploi (personnel médical) | C119: ='2. Recrutements'!I711 -> 0
A120: CT35 | B120: Croisement Fondement juridique et statut d'emploi - Personnel médical | C120: N/A
A121: CT_REC5 | B121: Contrôle Rec_5 NIV2 | C121: N/A
A123: CT36 | B123: Statut d'emploi filière (personnel non médical) | C123: ='2. Recrutements'!I719 -> 288
A124: CT37 | B124: Croisement Fondement juridique et statut d'emploi - Personnel non médical | C124: ='2. Recrutements'!M900+'2. Recrutements'!R900+'2. Recrutements'!W900+'2. Recrutements'!AB900+'2. Recrutements'!AG900+'2. Recrutements'!AL900+'2. Recrutements'!AQ900+'2. Recrutements'!AV900+'2. Recrutements'!BA900+'2. Recrutements'!BF900 -> 0
A125: CT_REC6 | B125: Contrôle Rec_6 NIV2 | C125: =IF(AND(C123=C124),"OK","A CORRIGER") -> A CORRIGER
A127: CT38 | B127: Type de contrat | C127: ='2. Recrutements'!I756 -> 282
A128: CT39 | B128: Croisement Types de contrats pour les contractuels | C128: ='2. Recrutements'!Q913+'2. Recrutements'!N913+'2. Recrutements'!K913 -> 80
A129: CT_REC7 | B129: Contrôle Rec_7 NIV2 | C129: =IF(AND(C127=C128),"OK","A CORRIGER") -> A CORRIGER
B131: BDS FPH 011-O
B132: Nb agents contractuels et autres personnels, recrutés sur un emploi non permanent NIVEAU
A133: CT40 | B133: Statut d'emploi (personnel médical) ou filière (personnel non médical) | C133: ='2. Recrutements'!I942 -> 267
A134: CT41 | B134: Métier | C134: ='2. Recrutements'!I1162 -> 257
A135: CT42 | B135: Sexe | C135: ='2. Recrutements'!I1178 -> 270
A136: CT_REC8 | B136: Contrôle Rec_8 NIV1 | C136: =IF(AND(C133=C134,C133=C135),"OK","A CORRIGER") -> A CORRIGER
A138: CT43 | B138: Métier | C138: ='2. Recrutements'!I1162 -> 257
A139: CT44 | B139: Croisement Métier - Sexe | C139: ='2. Recrutements'!K1402 -> 257
A140: CT_REC9 | B140: Contrôle Rec_9 NIV2 | C140: =IF(AND(C138=C139),"OK","A CORRIGER") -> OK
B142: BDS FPH 012-F
B143: Nb agents nommés NIVEAU
A144: CT45a | B144: Catégorie hiérarchique | C144: ='2. Recrutements'!I1413 -> 59
A145: CT46a | B145: Statut d'emploi (personnel médical) ou filière (personnel non médical) | C145: ='2. Recrutements'!I1434 -> 59
A146: CT47a | B146: Sexe | C146: ='2. Recrutements'!I1450 -> 59
A147: CT_REC10a | B147: Contrôle Rec_10a NIV1 | C147: =IF(AND(C144=C145,C144=C146),"OK","A CORRIGER") -> OK
A148: CT48a | B148: Statut d'emploi (personnel médical) ou filière (personnel non médical) | C148: ='2. Recrutements'!I1434 -> 59
A149: CT49a | B149: Croisement Statut d'emploi - Sexe | C149: ='2. Recrutements'!K1463 -> 59
A150: CT_REC11a | B150: Contrôle Rec_11a NIV2 | C150: =IF(AND(C148=C149),"OK","A CORRIGER") -> OK
A151: CT50a | B151: Indicateur de situation au regard du handicap | C151: ='2. Recrutements'!I1445 -> 0
A152: CT51a | B152: Croisement Indicateur de situation au regard du handicap & Emplois supérieurs hospitaliers | C152: ='2. Recrutements'!R1518 -> 0
A153: CT_REC12a | B153: Contrôle Rec_12a NIV2 | C153: =IF(AND(C151=C152),"OK","A CORRIGER") -> OK
B155: dont primo-nomination NIVEAU
A156: CT45b | B156: Catégorie hiérarchique | C156: ='2. Recrutements'!J1413 -> 17
A157: CT46b | B157: Statut d'emploi (personnel médical) ou filière (personnel non médical) | C157: ='2. Recrutements'!J1434 -> 17
A158: CT47b | B158: Sexe | C158: ='2. Recrutements'!J1450 -> 17
A159: CT_REC10b | B159: Contrôle Rec_10b NIV1 | C159: =IF(AND(C156=C157,C156=C158),"OK","A CORRIGER") -> OK
A160: CT48b | B160: Statut d'emploi (personnel médical) ou filière (personnel non médical) | C160: ='2. Recrutements'!J1434 -> 17
A161: CT49b | B161: Croisement Statut d'emploi - Sexe | C161: ='2. Recrutements'!N1463 -> 17
A162: CT_REC11b | B162: Contrôle Rec_11b NIV2 | C162: =IF(AND(C160=C161),"OK","A CORRIGER") -> OK
A163: CT50b | B163: Indicateur de situation au regard du handicap | C163: ='2. Recrutements'!J1445 -> 0
A164: CT51b | B164: Croisement Indicateur de situation au regard du handicap & Emplois supérieurs hospitaliers | C164: ='2. Recrutements'!U1518 -> 0
A165: CT_REC12b | B165: Contrôle Rec_12b NIV2 | C165: =IF(AND(C163=C164),"OK","A CORRIGER") -> OK
B168: 3. PARCOURS PROFESSIONNELS
B170: BDS FPH 016-O
B171: Nombre de postes n’ayant fait l’objet d’aucune candidature NIVEAU
A172: CT52 | B172: Statut d'emploi (personnel médical) ou filière (personnel non médical) du candidat retenu | C172: ='3. Parcours'!H100 -> 36
A173: CT53 | B173: Catégorie hiérarchique | C173: ='3. Parcours'!H107 -> 36
A174: CT54 | B174: Métier | C174: ='3. Parcours'!H327 -> 36
A175: CT_PAR1 | B175: Contrôle PAR_1 NIV1 | C175: =IF(AND(C172=C173,C172=C174),"OK","A CORRIGER") -> OK
A177: CT55 | B177: Métier (personnel médical) | C177: ='3. Parcours'!H110 -> 0
A178: CT56 | B178: Croisement Métier (personnel médical) | C178: ='3. Parcours'!O362 -> 0
A179: CT_PAR2 | B179: Contrôle PAR_2 NIV2 | C179: =IF(AND(C177=C178),"OK","A CORRIGER") -> OK
A181: CT57 | B181: Métier (personnel non médical) | C181: ='3. Parcours'!H134 -> 36
A182: CT58 | B182: Croisement Métier (personnel non médical) | C182: ='3. Parcours'!K562+'3. Parcours'!O562+'3. Parcours'!S562+'3. Parcours'!W562+'3. Parcours'!AA562+'3. Parcours'!AE562 -> 36
A183: CT_PAR3 | B183: Contrôle PAR_3 NIV2 | C183: =IF(AND(C181=C182),"OK","A CORRIGER") -> OK
B185: BDS FPH 017-O / 017-O bis - BDS FPH 019 / 018-O bis
B186: Nombre de promouvables* NIVEAU
A187: CT59a | B187: Grade | C187: ='3. Parcours'!M800+'3. Parcours'!R800 -> 434
A188: CT60a | B188: Corps | C188: ='3. Parcours'!R874 -> 434
A189: CT_PAR4a | B189: Contrôle PAR_4a NIV1 | C189: =IF(AND(C187=C188),"OK","A CORRIGER") -> OK
A190: CT61a | B190: Croisement Corps - âge | C190: ='3. Parcours'!M943 -> 434
A191: CT62a | B191: Croisement Corps - sexe | C191: ='3. Parcours'!K1012 -> 434
A192: CT_PAR5a | B192: Contrôle PAR_5a NIV2 | C192: =IF(AND(C190=C191),"OK","A CORRIGER") -> OK
B194: BDS FPH 019 / 018-O bis - BDS FPH 017-O / 017-O bis
B195: Nombre de promus* pour chaque corps NIVEAU
A196: CT59b | B196: Grade | C196: ='3. Parcours'!W800+'3. Parcours'!AB800 -> 71
A197: CT60b | B197: Corps | C197: ='3. Parcours'!AB874 -> 71
A198: CT_PAR4b | B198: Contrôle PAR_4b NIV1 | C198: =IF(AND(C196=C197),"OK","A CORRIGER") -> OK
A199: CT61b | B199: Croisement Corps - âge | C199: ='3. Parcours'!R943 -> 71
A200: CT62b | B200: Croisement Corps - sexe | C200: ='3. Parcours'!N1012 -> 71
A201: CT_PAR5b | B201: Contrôle PAR_5b NIV2 | C201: =IF(AND(C199=C200),"OK","A CORRIGER") -> OK
B203: BDS FPH 021-O
B204: Nombre de fonctionnaires ayant connu dans l'année une réussite à un concours ou examen professionnel NIVEAU
A205: CT63 | B205: Type d'épreuves | C205: ='3. Parcours'!G1028 -> 44
A206: CT64 | B206: Tranches d'âges | C206: ='3. Parcours'!G1035 -> 44
A207: CT65 | B207: Sexe | C207: ='3. Parcours'!G1040 -> 44
A208: CT_PAR6 | B208: Contrôle PAR_6 NIV1 | C208: =IF(AND(C205=C206,C205=C207),"OK","A CORRIGER") -> OK
A209: CT66 | B209: Type d'épreuves | C209: ='3. Parcours'!G1028 -> 44
A210: CT67 | B210: Croisement Type d'épreuves / sexe / âge | C210: ='3. Parcours'!K1053+'3. Parcours'!P1053 -> 44
A211: CT_PAR7 | B211: Contrôle PAR_7 NIV2 | C211: =IF(AND(C209=C210),"OK","A CORRIGER") -> OK
B213: BDS FPH 022-O
B214: Nombre d’agents ayant quitté leurs fonctions au cours de l’année selon le motif de départ NIVEAU
A215: CT68 | B215: Motif | C215: ='3. Parcours'!G1083 -> 884
A216: CT69 | B216: Statut d'emploi ou filière | C216: ='3. Parcours'!G1104 -> 852
A217: CT70 | B217: Catégorie hiérarchique | C217: ='3. Parcours'!G1111 -> 885
A218: CT71 | B218: Catégorie active ou sédentaire | C218: ='3. Parcours'!G1116 -> 886
A219: CT72 | B219: Âge ou tranche d'âge | C219: ='3. Parcours'!G1123 -> 884
A220: CT73 | B220: Sexe | C220: ='3. Parcours'!G1128 -> 884
A221: CT_PAR8 | B221: Contrôle PAR_8 NIV1 | C221: =IF(AND(C215=C216,C215=C217,C215=C218,C215=C219,C215=C220),"OK","A CORRIGER") -> A CORRIGER
A222: CT74 | B222: Motif | C222: ='3. Parcours'!G1083 -> 884
A223: CT75 | B223: Croisement motif / sexe / âge / catégorie | C223: ='3. Parcours'!L1407+'3. Parcours'!O1407+'3. Parcours'!R1407+'3. Parcours'!U1407+'3. Parcours'!X1407+'3. Parcours'!AA1407+'3. Parcours'!AD1407+'3. Parcours'!AG1407+'3. Parcours'!AJ1407+'3. Parcours'!AM1407+'3. Parcours'!AP1407+'3. Parcours'!AS1407 -> 334
A224: CT_PAR_9 | B224: Contrôle PAR_9 NIV2 | C224: =IF(AND(C222=C223),"OK","A CORRIGER") -> A CORRIGER
B226: BDS FPH 023-O
B227: Nombre de demandes de ruptures conventionnelles NIVEAU
A228: CT76 | B228: Statut d'emploi ou filière | C228: ='3. Parcours'!G1436 -> 0
... 55 more rows

Sheet 1. Emploi
B1: 1. EMPLOI | U1: Retour au sommaire
B2: Générer le fichier d'import du thème 1. Emploi pour la plateforme de saisie en ligne
D4: BDS FPH 003-O | F4: Effectifs physiques
D5: BDS FPH 003-O bis | F5: Effectifs en équivalent temps plein au 31 décembre
D6: BDS FPH 003-O ter | F6: Effectifs en équivalent temps plein annuel
D7: BDS FPH 004-O | F7: Nombre de CDD transformés en CDI en application de l’article 9 de la loi n° 86-33 du 11 janvier 1986
D8: BDS FPH 005-F | F8: Nombre de stagiaires de droit privé accueillis au cours de l’année
D9: BDS FPH 006-O | F9: Âge moyen
D10: BDS FPH 006-O bis | F10: Âge médian des effectifs d’agents en fonction sur emploi permanent au 31 décembre
B16: BDS FPH 003-O / 003-O bis / 003-O ter | G16: Effectifs physiques - Effectifs en équivalent temps plein au 31 décembre - Effectifs en équivalent temps plein annuel | U16: Retour haut de page
I18: NB_PHYS | J18: NB_ETP | K18: NB_ETPA
B19: Statut d'emploi (personnel médical) ou filière (personnel non médical) | I19: Effectifs physiques au 31/12 | J19: Effectifs en ETP au 31/12 | K19: Effectifs en ETP annuel
A21: PM_TOT | B21: Personnel médical | I21: =+SUM(I22:I28) -> 549 | J21: 451.85 | K21: 444.00775
A22: PM_HUT | B22: Hospitaliers universitaires titulaires | I22: 0 | J22: 0 | K22: 0
A23: PM_PHT | B23: Praticiens hospitaliers titulaires | I23: 228 | J23: 214.4 | K23: 207.6865
A24: PM_ASS | B24: Assistants | I24: 17 | J24: 17 | K24: 19.12233333
A25: PM_HUNT | B25: Hospitaliers universitaires non titulaires | I25: 0 | J25: 0 | K25: 0
A26: PM_ATT | B26: Attachés | I26: 34 | J26: 6.61 | K26: 3.999666667
A27: PM_PAS | B27: Praticiens associés | I27: 18 | J27: 18 | K27: 26.06833333
A28: PM_AUT | B28: Autres salariés (y compris ne relevant pas d'un statut) | I28: 252 | J28: 195.84 | K28: 187.1309167
A29: PNM_TOT | B29: Personnel non médical | I29: =+SUM(I30:I38) -> 3078 | J29: 2995.05 | K29: 2939.61675
A30: PNM_SOI | B30: Soins | I30: 1977 | J30: 1929.05 | K30: 1903.416917
A31: PNM_REE | B31: Rééducation | I31: 52 | J31: 48 | K31: 44.59891667
A32: PNM_MT | B32: Médico-technique | I32: 188 | J32: 176.3 | K32: 173.2519167
A33: PNM_ADM | B33: Administrative | I33: 440 | J33: 429.25 | K33: 416.1160833
A34: PNM_OUV | B34: Ouvrière et technique | I34: 303 | J34: 301.25 | K34: 294.67325
A35: PNM_SOC | B35: Socio-éducative | I35: 27 | J35: 26.6 | K35: 24.49
A36: PNM_DIR | B36: Personnels de direction | I36: 11 | J36: 11 | K36: 13.08333333
A37: PNM_PSY | B37: Psychologues | I37: 23 | J37: 20.9 | K37: 19.10375
A38: PNM_SF | B38: Sages-femmes | I38: 57 | J38: 52.7 | K38: 50.88258333
A39: TOT_PMPNM | B39: TOTAL | I39: =SUM(I29,I21) -> 3627 | J39: 3446.9 | K39: 3383.6245
B41: Catégorie hiérarchique | I41: Effectifs physiques au 31/12 | J41: Effectifs en ETP au 31/12 | K41: Effectifs en ETP annuel
A42: CATA | B42: A | I42: 1885 | J42: 1738.8 | K42: 1666.9765
A43: CATB | B43: B | I43: 767 | J43: 749.75 | K43: 767.7693333
A44: CATC | B44: C | I44: 977 | J44: 960.15 | K44: 948.94925
A45: CATX | B45: NC (non catégorisé A B C) | I45: 491 | J45: 487.014 | K45: 464.49875
A46: TOT_CAT | B46: TOTAL | I46: =SUM(I42:I45) -> 4120 | J46: 3935.714 | K46: 3848.193833
B48: Corps (personnel non médical) | I48: Effectifs physiques au 31/12 | J48: Effectifs en ETP au 31/12 | K48: Effectifs en ETP annuel
A49: 0001 | B49: Directeurs d'hôpitaux | I49: 10 | J49: 10 | K49: 11.08333333
A50: 0002 | B50: Directeurs d'établissements sanitaires, sociaux et médico-sociaux | I50: 0 | J50: 0 | K50: 0
A51: 0006 | B51: Attachés d'administration hospitalière | I51: 11 | J51: 10.8 | K51: 10.68975
A52: 0010 | B52: Adjoints des cadres hospitaliers | I52: 22 | J52: 22 | K52: 20.28241667
A53: 0016 | B53: Assistants médico-administratifs | I53: 140 | J53: 135.95 | K53: 131.4574167
A54: 0021 | B54: Adjoints administratifs hospitaliers | I54: 266 | J54: 259.5 | K54: 252.0115
A55: 0205 | B55: Infirmiers | I55: 0 | J55: 0 | K55: 0
A56: 0206 | B56: Infirmiers en soins généraux et spécialisés | I56: 908 | J56: 880.25 | K56: 855.1031667
A57: 0207 | B57: Cadres de santé paramédicaux | I57: 82 | J57: 81.4 | K57: 78.84583333
A58: 0208 | B58: Directeurs des soins | I58: 1 | J58: 1 | K58: 2
A59: 0209 | B59: Infirmiers anesthésistes | I59: 39 | J59: 38 | K59: 39.63708333
A60: 0211 | B60: Auxiliaires médicaux exerçant en pratique avancée | I60: 5 | J60: 5 | K60: 4.497166667
A61: 0223 | B61: Accompagnants éducatifs et sociaux | I61: 0 | J61: 0 | K61: 0
A62: 0224 | B62: Agents des services hospitaliers qualifiés | I62: 103 | J62: 101.55 | K62: 105.1395
A63: 0225 | B63: Aides-soignants | I63: 0 | J63: 0 | K63: 0
A64: 0229 | B64: Aides-soignants et auxiliaires de puériculture de catégorie B | I64: 826 | J64: 808.85 | K64: 803.6969167
A65: 0231 | B65: Conseillers en économie sociale et familiale | I65: 0 | J65: 0 | K65: 0
A66: 0232 | B66: Educateurs techniques spécialisés | I66: 0 | J66: 0 | K66: 0
A67: 0233 | B67: Educateurs de jeunes enfants | I67: 1 | J67: 1 | K67: 1
A68: 0234 | B68: Assistants socio-éducatifs | I68: 19 | J68: 18.6 | K68: 19.07058333
A69: 0241 | B69: Orthophonistes | I69: 0 | J69: 0 | K69: 0
A70: 0246 | B70: Orthoptistes | I70: 4 | J70: 3.9 | K70: 2.475
A71: 0256 | B71: Diététiciens | I71: 15 | J71: 14 | K71: 14.01333333
A72: 0258 | B72: Animateurs | I72: 1 | J72: 1 | K72: 1
A73: 0259 | B73: Moniteurs-éducateurs | I73: 5 | J73: 5 | K73: 2.419416667
A74: 0261 | B74: Ergothérapeutes | I74: 7 | J74: 7 | K74: 6.388833333
A75: 0266 | B75: Psychomotriciens | I75: 0 | J75: 0 | K75: 0
A76: 0268 | B76: Sages-femmes des hôpitaux | I76: 57 | J76: 52.7 | K76: 50.88258333
A77: 0271 | B77: Masseurs-kinésithérapeutes | I77: 22 | J77: 20.9 | K77: 20.7245
A78: 0276 | B78: Pédicures-podologues | I78: 2 | J78: 1.5 | K78: 1.5
A79: 0278 | B79: Cadres socio-éducatifs | I79: 1 | J79: 1 | K79: 1
A80: 0281 | B80: Psychologues | I80: 23 | J80: 20.9 | K80: 19.10375
A81: 0286 | B81: Educateurs techniques spécialisés (élèves) | I81: 0 | J81: 0 | K81: 0
A82: 0288 | B82: Moniteurs-éducateurs (élèves) | I82: 0 | J82: 0 | K82: 0
A83: 0301 | B83: Préparateurs en pharmacie hospitalière | I83: 41 | J83: 38.25 | K83: 36.98375
A84: 0311 | B84: Techniciens de laboratoire médical | I84: 58 | J84: 55.2 | K84: 53.63483333
A85: 0321 | B85: Manipulateurs électroradiologie médicale | I85: 87 | J85: 81.15 | K85: 81.01666667
A86: 0400 | B86: Ingénieurs hospitaliers | I86: 19 | J86: 17.45 | K86: 16.9975
A87: 0407 | B87: Techniciens et techniciens supérieurs | I87: 50 | J87: 49.8 | K87: 50.13616667
A88: 0412 | B88: Dessinateurs (cadres d'extinction) | I88: 0 | J88: 0 | K88: 0
A89: 0422 | B89: Maîtrises ouvrières | I89: 31 | J89: 31 | K89: 30.59583333
A90: 0427 | B90: Personnels ouvriers | I90: 199 | J90: 199 | K90: 193.241
A91: 0449 | B91: Ambulanciers de la fonction publique hospitalière | I91: 14 | J91: 14 | K91: 13.99725
A92: 0465 | B92: Agents de service mortuaire et de désinfection | I92: 0 | J92: 0 | K92: 0
A93: 08Z0 | B93: Aumôniers | I93: 0 | J93: 0 | K93: 0
A94: 0DIV | B94: Etudiants | I94: 0 | J94: 0 | K94: 0
A95: 0MET | B95: Radiophysiciens | I95: 2 | J95: 1.7 | K95: 1.616666667
A96: 0P01 | B96: Médecins de médecine préventive | I96: 0 | J96: 0 | K96: 0
A97: 1DIV | B97: Contrats aidés | I97: 0 | J97: 0 | K97: 0
A98: 2DIV | B98: Formateurs occasionnels | I98: 0 | J98: 0 | K98: 0
A99: 3DIV | B99: Travailleurs handicapés c.a.t | I99: 0 | J99: 0 | K99: 0
A100: ADMI | B100: Autres personnels administratifs | I100: 0 | J100: 0 | K100: 0.675
A101: DIRE | B101: Autres personnels de direction | I101: 0 | J101: 0 | K101: 0
A102: ECOL | B102: Autres personnels des écoles | I102: 0 | J102: 0 | K102: 0
A103: INFO | B103: Autres personnels informaticiens | I103: 0 | J103: 0 | K103: 0
A104: MEDI | B104: Autres personnels des services soignants | I104: 0 | J104: 0 | K104: 0
A105: MEDT | B105: Autres personnels des services médico-techniques | I105: 0 | J105: 0 | K105: 0
A106: OUVR | B106: Autres personnels ouvriers | I106: 0 | J106: 0 | K106: 0
A107: REED | B107: Autres personnels de rééducation | I107: 0 | J107: 0 | K107: 0
A108: SAGE | B108: Autres sages-femmes | I108: 0 | J108: 0 | K108: 0
A109: SOCI | B109: Autres personnels socio-éducatifs | I109: 0 | J109: 0 | K109: 0
A110: TECH | B110: Autres personnels des services techniques | I110: 0 | J110: 0 | K110: 0
A111: TOT_CORPS | B111: TOTAL | I111: =SUM(I49:I110) -> 3071 | J111: 2989.35 | K111: 2932.91675
B113: Position statutaire | I113: Effectifs physiques au 31/12 | J113: Effectifs en ETP au 31/12 | K113: Effectifs en ETP annuel
A114: POSACT | B114: Activité | I114: 4100 | J114: 3916.714 | K114: 3695.698333
A115: POSDET | B115: Détachement | I115: 20 | J115: 19 | K115: 19.14316667
A116: POSDIS | B116: Disponibilité
A117: POSCPA | B117: Congé parental
A118: TOT_POS | B118: TOTAL | I118: =SUM(I114:I115) -> 4120 | J118: 3935.714 | K118: 3714.8415
B120: Fondement juridique de recrutement pour les contractuels | I120: Effectifs physiques au 31/12 | J120: Effectifs en ETP au 31/12 | K120: Effectifs en ETP annuel
A121: FJPM | B121: Sur emploi permanent titulaire ou non titulaire (PM) : | I121: =+SUM(I122:I127) -> 73 | J121: 56.36 | K121: 50.1235
A122: FJRPLPH | B122: • Assurer le remplacement d’un praticien ou en cas d’accroissement temporaire d’activité | I122: 2 | J122: 1 | K122: 1.025
A123: FJDIF | B123: • Difficultés particulières de recrutement ou d'exercice pour une activité nécessaire à l'offre de soin sur le territoire | I123: 6 | J123: 4 | K123: 2.495
A124: FJCNPH | B124: • Dans l'attente de l’inscription sur la liste d'aptitude au concours national de praticien hospitalier | I124: 36 | J124: 32.4 | K124: 25.512
A125: FJCPL | B125: • Pour compléter l'offre de soins de l'établissement avec le concours de la médecine de ville et des établissements de santé privés d'intérêt collectif et privés | I125: 12 | J125: 1.96 | K125: 1.969166667
A126: FJASS | B126: • Assistant des hôpitaux | I126: 17 | J126: 17 | K126: 19.12233333
A127: FJCA | B127: • CCA-AHU | I127: 0 | J127: 0 | K127: 0
A128: FJEP | B128: Sur emploi permanent (PNM) : | I128: =+SUM(I129:I136) -> 217 | J128: 184.79 | K128: 196.5255
A129: FJABS | B129: • Absence de corps de titulaires, contractuels sur des fonctions particulières, contractuels pour les besoins du service, emploi ne nécessitant pas une formation statutaire donnant lieu à titularisation dans un corps de fonctionnaires | I129: 0 | J129: 0 | K129: 0
A130: FJCTI | B130: • Contractuels sur emplois à « temps incomplet » | I130: 76 | J130: 47.44 | K130: 44.57808333
A131: FJCDI | B131: • Portabilité d'un CDI entre fonctions publiques | I131: 0 | J131: 0 | K131: 0
A132: FJRPL | B132: • Remplacement momentané, à temps complet ou incomplet, d'un fonctionnaire ou d'un agent contractuel indisponible ou autorisé à exercer ses fonctions à temps partiel | I132: 0 | J132: 0 | K132: 0
A133: FJVAC | B133: • Vacance temporaire d'emploi dans l'attente du recrutement d'un fonctionnaire, temps complet | I133: 141 | J133: 137.35 | K133: 151.9474167
A134: FJTFT | B134: • Transfert d'autorité ou transfert de compétence | I134: 0 | J134: 0 | K134: 0
A135: FJFAN | B135: • Travailleurs handicapés | I135: 0 | J135: 0 | K135: 0
A136: FJCSA | B136: • Contractuels de statut antérieur | I136: 0 | J136: 0 | K136: 0
A137: FJENP | B137: Sur emploi non permanent (PNM) : | I137: =+SUM(I138:I140) -> 0 | J137: 0 | K137: 0
A138: FJACC | B138: • Accroissement temporaire ou saisonnier d'activité, temps complet ou incomplet | I138: 0 | J138: 0 | K138: 0
A139: FJCPO | B139: • Contrat de projet ou d'opération | I139: 0 | J139: 0 | K139: 0
A140: FJDOC | B140: • Recrutement de doctorants pour une durée de 3 ans renouvelable dans la limite de 5 ans maximum, temps complet | I140: 0 | J140: 0 | K140: 0
A141: TOT_FJUR | B141: TOTAL | I141: =SUM(I128,I137,I121) -> 290 | J141: 241.15 | K141: 246.649
B143: Types de contrats pour les contractuels | I143: Effectifs physiques au 31/12 | J143: Effectifs en ETP au 31/12 | K143: Effectifs en ETP annuel
A144: CDI | B144: CDI | I144: 557 | J144: 529.64 | K144: 522.8445833
A145: CDD | B145: CDD | I145: 857 | J145: 795.024 | K145: 783.0421667
A146: INTER | B146: Intérim
A147: AIDE | B147: Contrat aidé | I147: 0 | J147: 0 | K147: 0
A148: APPRE | B148: Contrat d'apprentissage | I148: 0 | J148: 0 | K148: 0
A149: TOT_CONTRA | B149: TOTAL | I149: =+SUM(I144:I145, I147:I148) -> 1414 | J149: 1324.664 | K149: 1305.88675
B151: Durée des contrats (pour les contractuels sur emploi permanent) | I151: Effectifs physiques au 31/12 | J151: Effectifs en ETP au 31/12 | K151: Effectifs en ETP annuel
A152: DCPM | B152: Personnel médical | I152: =+SUM(I153:I158) -> 73 | J152: 56.36 | K152: 50.1235
A153: DC6M | B153: Durée maximale de 6 mois, renouvelable par période de 6 mois jusqu'à 2 ans | I153: 2 | J153: 1 | K153: 1.025
A154: DC3AR | B154: Durée maximale de 3 ans renouvelable 1 fois | I154: 6 | J154: 4 | K154: 2.495
A155: DC3AM | B155: Durée maximale de 3 ans | I155: 36 | J155: 32.4 | K155: 25.512
A156: DC3ARCDI | B156: Durée maximale de 3 ans renouvelable 1 fois ou CDI | I156: 12 | J156: 1.96 | K156: 1.969166667
A157: DC2A6A | B157: Durée maximale de 2 ans renouvelable par période d'1 an jusqu'à 6 ans | I157: 17 | J157: 17 | K157: 19.12233333
A158: DC2A4A | B158: Durée maximale de 2 ans, renouvelable par période d'1 an jusqu'à 4 ans | I158: 0 | J158: 0 | K158: 0
A159: DCPNM | B159: Personnel non médical | I159: =+SUM(I160:I162) -> 559 | J159: 530.94 | K159: 524.1585
A160: DC3A | B160: CDD d'une durée maximum de 3 ans renouvelable 1 fois | I160: 2 | J160: 1.3 | K160: 1.313916667
A161: DCPR | B161: Contrat de projet d'une durée minimale d'1 an et d'une durée maximale 6 ans | I161: 0 | J161: 0 | K161: 0
A162: DCDI | B162: Contrat à durée indéterminée | I162: 557 | J162: 529.64 | K162: 522.8445833
A163: TOT_DUR | B163: TOTAL | I163: =SUM(I152,I159) -> 632 | J163: 587.3 | K163: 574.282
B165: Métier | I165: Effectifs physiques au 31/12 | J165: Effectifs en ETP au 31/12 | K165: Effectifs en ETP annuel
A166: PM_MTOT | B166: Personnel médical | I166: =+SUM(I167:I189) -> 506 | J166: 427.66 | K166: 412.7539167
A167: MED06 | B167: Anesthésie réanimation | I167: 29 | J167: 26.21 | K167: 26.662
A168: MED03 | B168: Autre spécialiste des spécialités médicales | I168: 157 | J168: 129.72 | K168: 126.64825
A169: MED01 | B169: Généraliste et spécialiste de médecine générale | I169: 78 | J169: 60.89 | K169: 59.99791667
A170: MED04 | B170: Médecin biologiste | I170: 8 | J170: 7.9 | K170: 7.9
A171: MED05 | B171: Médecin des spécialités chirurgicales | I171: 39 | J171: 35.7 | K171: 34.529
A172: 30I20 | B172: Médecin du travail | I172: 0 | J172: 0 | K172: 0
A173: MED02 | B173: Médecin psychiatre | I173: 0 | J173: 0 | K173: 0
A174: 40L60 | B174: Médecin responsable de l'information médicale et de l'évaluation (DIM) | I174: 0 | J174: 0 | K174: 0
A175: ODO01 | B175: Odontologiste (chirurgien-dentiste) | I175: 3 | J175: 0.21 | K175: 0.7605833333
A176: PHA02 | B176: Pharmacien | I176: 13 | J176: 12.4 | K176: 12.4
A177: PHA01 | B177: Pharmacien biologiste | I177: 0 | J177: 0 | K177: 0
A178: PNPE1 | B178: Praticien n'ayant pas la plénitude d'exercice (3° de l'article l6152-1 du CSP) | I178: 0 | J178: 0 | K178: 0
A179: MED07 | B179: Radiologie imagerie | I179: 19 | J179: 0.28 | K179: 0.48
A180: SPUB1 | B180: Santé publique | I180: 2 | J180: 2 | K180: 1.75275
A181: SCIE1 | B181: Scientifique | I181: 0 | J181: 0 | K181: 0
A182: 30C18 | B182: Spécialiste en hémovigilance | I182: 0 | J182: 0 | K182: 0
A183: 30C15 | B183: Spécialiste en pharmacovigilance | I183: 0 | J183: 0 | K183: 0
A184: INME0 | B184: Interne en médecine (et FFI) | I184: 158 | J184: 152.35 | K184: 139.6985
A185: INPH0 | B185: Interne en pharmacie (et FFI) | I185: 0 | J185: 0 | K185: 1.00825
A186: INOD0 | B186: Interne en odontologie | I186: 0 | J186: 0 | K186: 0.9166666667
A187: ETME0 | B187: Etudiant en médecine | I187: 0 | J187: 0 | K187: 0
A188: ETPH0 | B188: Etudiant en pharmacie | I188: 0 | J188: 0 | K188: 0
A189: ETOD0 | B189: Etudiant en odontologie | I189: 0 | J189: 0 | K189: 0
A190: PNM_MTOT | B190: Personnel non médical | I190: =+SUM(I191:I382) -> 3145 | J190: 3060.064 | K190: 2999.92
A191: 10I30 | B191: Accueillant familial | I191: 0 | J191: 0 | K191: 0
A192: 25F20 | B192: Acheteur | I192: 0 | J192: 0 | K192: 0
A193: 40F20 | B193: Agent d'accueil | I193: 26 | J193: 25.8 | K193: 26.55866667
A194: 30F30 | B194: Agent de bionettoyage | I194: 146 | J194: 143.4 | K194: 139.5025
A195: 25M20 | B195: Agent de blanchisserie | I195: 18 | J195: 18 | K195: 19.21941667
A196: 45S20 | B196: Agent de gestion administrative | I196: 56 | J196: 55.25 | K196: 49.909
A197: 25I30 | B197: Agent de logistique | I197: 80 | J197: 80 | K197: 78.23933333
A198: 20I30 | B198: Agent de maintenance générale des bâtiments | I198: 7 | J198: 7 | K198: 6.55275
A199: 30L40 | B199: Agent de prévention et de sécurité des personnes et des biens | I199: 0 | J199: 0 | K199: 0
A200: 25R30 | B200: Agent de restauration et/ou d'hôtellerie | I200: 73 | J200: 73 | K200: 71.13158333
A201: 30L20 | B201: Agent de sécurité incendie | I201: 16 | J201: 16 | K201: 15.8195
A202: 05R60 | B202: Agent de service mortuaire | I202: 3 | J202: 3 | K202: 2.75
A203: 30F50 | B203: Agent de stérilisation | I203: 14 | J203: 13.8 | K203: 13.28608333
A204: 20X20 | B204: Agent d'entretien des espaces verts | I204: 0 | J204: 0 | K204: 0
A205: 10I10 | B205: Aide médico psychologique | I205: 0 | J205: 0 | K205: 0
A206: 05R10 | B206: Aide-soignant | I206: 662 | J206: 646.9 | K206: 649.0375833
A207: 05R95 | B207: Ambulancier | I207: 18 | J207: 18 | K207: 17.66391667
A208: 40L50 | B208: Analyste des données d'activités hospitalières | I208: 0 | J208: 0 | K208: 0
A209: 10L30 | B209: Animateur | I209: 1 | J209: 1 | K209: 1
A210: 30C20 | B210: Animateur qualité / gestion des risques | I210: 0 | J210: 0 | K210: 0
A211: 35I10 | B211: Architecte / Urbaniste du SI | I211: 0 | J211: 0 | K211: 0
A212: 40M20 | B212: Archiviste | I212: 6 | J212: 6 | K212: 5.644416667
A213: 15D10 | B213: Assistant de recherche clinique | I213: 0 | J213: 0 | K213: 0
A214: 15L10 | B214: Assistant de recherche clinique | I214: 6 | J214: 5.1 | K214: 5.538916667
A215: 40F30 | B215: Assistant de régulation médicale | I215: 42 | J215: 41.25 | K215: 39.50833333
... 1463 more rows

Sheet 2. Recrutements
B1: 2. RECRUTEMENTS | X1: Retour au sommaire
B2: Générer le fichier d'import du thème 2. Recrutements pour la plateforme de saisie en ligne
D4: BDS FPH 008-O | F4: Nombre d'agents fonctionnaires (PNM) ou titulaires (PM)* recrutés au cours de l'année
D5: BDS FPH 010-O | F5: Nombre d’agents contractuels recrutés sur un emploi permanent au cours de l’année
D6: BDS FPH 011-O | F6: Nombre d’agents contractuels et autres personnels recrutés sur un emploi non permanent au cours de l’année
D7: BDS FPH 012-F | F7: Nombre d'agents nommés au cours de l'année sur un poste de cadre supérieur ou dirigeant dont en primo-nomination
B13: BDS FPH 008-O | D13: Nombre d'agents fonctionnaires (PNM) ou titulaires (PM)* recrutés au cours de l'année | X13: Retour haut de page
B14: * les PM titulaires inclus dans cet indicateurs sont les praticiens hospitaliers (PH)
I16: NB_FONCTR | J16: NB_TITUR
B17: Catégorie hiérarchique | I17: Nb agents fonctionnaires recrutés (PNM) | J17: Nb agents titulaires recrutés (PM)
A19: CATA | B19: A | I19: 9 | J19: 7
A20: CATB | B20: B | I20: 2
A21: CATC | B21: C | I21: 0
A22: CATX | B22: NC (non catégorisé A B C) | I22: 0
A23: TOT_CAT | B23: TOTAL | I23: =SUM(I19:I22) -> 11 | J23: =SUM(J19) -> 7
B25: Corps (personnel non médical) | I25: Nb agents fonctionnaires recrutés (PNM)
A26: 0001 | B26: Directeurs d'hôpitaux | I26: 0
A27: 0002 | B27: Directeurs d'établissements sanitaires, sociaux et médico-sociaux | I27: 0
A28: 0006 | B28: Attachés d'administration hospitalière | I28: 0
A29: 0010 | B29: Adjoints des cadres hospitaliers | I29: 0
A30: 0016 | B30: Assistants médico-administratifs | I30: 0
A31: 0021 | B31: Adjoints administratifs hospitaliers | I31: 0
A32: 0205 | B32: Infirmiers | I32: 0
A33: 0206 | B33: Infirmiers en soins généraux et spécialisés | I33: 6
A34: 0207 | B34: Cadres de santé paramédicaux | I34: 1
A35: 0208 | B35: Directeurs des soins | I35: 0
A36: 0209 | B36: Infirmiers anesthésistes | I36: 1
A37: 0211 | B37: Auxiliaires médicaux exerçant en pratique avancée | I37: 0
A38: 0223 | B38: Accompagnants éducatifs et sociaux | I38: 0
A39: 0224 | B39: Agents des services hospitaliers qualifiés | I39: 0
A40: 0225 | B40: Aides-soignants | I40: 0
A41: 0229 | B41: Aides-soignants et auxiliaires de puériculture de catégorie B | I41: 1
A42: 0231 | B42: Conseillers en économie sociale et familiale | I42: 0
A43: 0232 | B43: Educateurs techniques spécialisés | I43: 0
A44: 0233 | B44: Educateurs de jeunes enfants | I44: 0
A45: 0234 | B45: Assistants socio-éducatifs | I45: 0
A46: 0241 | B46: Orthophonistes | I46: 0
A47: 0246 | B47: Orthoptistes | I47: 0
A48: 0256 | B48: Diététiciens | I48: 0
A49: 0258 | B49: Animateurs | I49: 0
A50: 0259 | B50: Moniteurs-éducateurs | I50: 0
A51: 0261 | B51: Ergothérapeutes | I51: 0
A52: 0266 | B52: Psychomotriciens | I52: 0
A53: 0268 | B53: Sages-femmes des hôpitaux | I53: 0
A54: 0271 | B54: Masseurs-kinésithérapeutes | I54: 0
A55: 0276 | B55: Pédicures-podologues | I55: 0
A56: 0278 | B56: Cadres socio-éducatifs | I56: 0
A57: 0281 | B57: Psychologues | I57: 2
A58: 0286 | B58: Educateurs techniques spécialisés (élèves) | I58: 0
A59: 0288 | B59: Moniteurs-éducateurs (élèves) | I59: 0
A60: 0301 | B60: Préparateurs en pharmacie hospitalière | I60: 0
A61: 0311 | B61: Techniciens de laboratoire médical | I61: 0
A62: 0321 | B62: Manipulateurs électroradiologie médicale | I62: 0
A63: 0400 | B63: Ingénieurs hospitaliers | I63: 0
A64: 0407 | B64: Techniciens et techniciens supérieurs | I64: 0
A65: 0412 | B65: Dessinateurs (cadres d'extinction) | I65: 0
A66: 0422 | B66: Maîtrises ouvrières | I66: 0
A67: 0427 | B67: Personnels ouvriers | I67: 0
A68: 0449 | B68: Ambulanciers de la fonction publique hospitalière | I68: 0
A69: 0465 | B69: Agents de service mortuaire et de désinfection | I69: 0
A70: 08Z0 | B70: Aumôniers | I70: 0
A71: 0DIV | B71: Etudiants | I71: 0
A72: 0MET | B72: Radiophysiciens | I72: 0
A73: 0P01 | B73: Médecins de médecine préventive | I73: 0
A74: 1DIV | B74: Contrats aidés | I74: 0
A75: 2DIV | B75: Formateurs occasionnels | I75: 0
A76: 3DIV | B76: Travailleurs handicapés c.a.t | I76: 0
A77: ADMI | B77: Autres personnels administratifs | I77: 0
A78: DIRE | B78: Autres personnels de direction | I78: 0
A79: ECOL | B79: Autres personnels des écoles | I79: 0
A80: INFO | B80: Autres personnels informaticiens | I80: 0
A81: MEDI | B81: Autres personnels des services soignants | I81: 0
A82: MEDT | B82: Autres personnels des services médico-techniques | I82: 0
A83: OUVR | B83: Autres personnels ouvriers | I83: 0
A84: REED | B84: Autres personnels de rééducation | I84: 0
A85: SAGE | B85: Autres sages-femmes | I85: 0
A86: SOCI | B86: Autres personnels socio-éducatifs | I86: 0
A87: TECH | B87: Autres personnels des services techniques | I87: 0
A88: TOT_CORPS | B88: TOTAL | I88: =SUM(I26:I87) -> 11
B90: Grade | I90: Nb agents fonctionnaires recrutés (PNM)
A91: GRAD_0315 | B91: Directeur général CHU (HEE) | I91: 0
A92: GRAD_0325 | B92: Directeur général CHU (HED) | I92: 0
A93: GRAD_0340 | B93: Directeur hors classe | I93: 0
A94: GRAD_0342 | B94: Directeur de classe normale | I94: 0
A95: GRAD_0344 | B95: Directeur de classe exceptionnelle | I95: 0
A96: GRAD_0365 | B96: Elève directeur | I96: 0
A97: GRAD_0710 | B97: Emploi fonctionnel / groupe I | I97: 0
A98: GRAD_0720 | B98: Emploi fonctionnel / groupe II | I98: 0
A99: GRAD_0730 | B99: Emploi fonctionnel / groupe III | I99: 0
A100: GRAD_0630 | B100: Emploi fonctionnel / directeur d'établissement sanitaire, social et médico-social | I100: 0
A101: GRAD_0640 | B101: Directeur d'établissement sanitaire, social et médico-social de hors classe | I101: 0
A102: GRAD_0650 | B102: Directeur d'établissement sanitaire, social et médico-social de classe normale (01/2008) | I102: 0
A103: GRAD_0660 | B103: Elève directeur d'établissement sanitaire, social et médico-social (01/2008) | I103: 0
A104: GRAD_0420 | B104: Attaché d'administration hors classe | I104: 0
A105: GRAD_0423 | B105: Attaché principal d'administration hospitalière | I105: 0
A106: GRAD_0430 | B106: Attaché d'administration hospitalière | I106: 0
A107: GRAD_1261 | B107: Adjoint des cadres hospitaliers de classe exceptionnelle | I107: 0
A108: GRAD_1262 | B108: Adjoint des cadres hospitaliers de classe supérieure | I108: 0
A109: GRAD_1263 | B109: Adjoint des cadres hospitaliers de classe normale | I109: 0
A110: GRAD_1361 | B110: Assistant médico-administratif de classe exceptionnelle | I110: 0
A111: GRAD_1362 | B111: Assistant médico-administratif de classe supérieure | I111: 0
A112: GRAD_1363 | B112: Assistant médico-administratif de classe normale | I112: 0
A113: GRAD_1314 | B113: Adjoint administratif | I113: 0
A114: GRAD_1317 | B114: Adjoint administratif principal de 2e classe | I114: 0
A115: GRAD_1327 | B115: Adjoint administratif principal de 1re classe | I115: 0
A116: GRAD_2911 | B116: Elève infirmier d.e. / formation professionnelle | I116: 0
A117: GRAD_2154 | B117: Grade 1 ISGS Infirmier en soins généraux (DE) | I117: 3
A118: GRAD_2155 | B118: Grade 1 ISGS Infirmier en soins généraux (Psychiatrique) | I118: 0
A119: GRAD_2164 | B119: Grade 2 ISGS Infirmier en soins généraux (DE) | I119: 2
A120: GRAD_2165 | B120: Grade 2 ISGS Infirmier en soins généraux (Psychiatrique) | I120: 0
A121: GRAD_2940 | B121: Grade 2 ISGS Infirmier de bloc opératoire | I121: 1
A122: GRAD_2948 | B122: Grade 3 ISGS Infirmier de bloc opératoire | I122: 0
A123: GRAD_2950 | B123: Grade 2 ISGS Puéricultrice | I123: 0
A124: GRAD_2958 | B124: Grade 3 ISGS Puéricultrice | I124: 0
A125: GRAD_1001 | B125: Infirmier cadre supérieur de santé paramédical | I125: 0
A126: GRAD_1002 | B126: Infirmier de bloc opératoire cadre supérieur de santé paramédical | I126: 0
A127: GRAD_1003 | B127: Infirmier anesthésiste cadre supérieur de santé paramédical | I127: 0
A128: GRAD_1004 | B128: Puéricultrice cadre supérieur de santé paramédical | I128: 0
A129: GRAD_1011 | B129: Pédicure-podologue cadre supérieur de santé paramédical | I129: 0
A130: GRAD_1012 | B130: Masseur-kinésithérapeute cadre supérieur de santé paramédical | I130: 0
A131: GRAD_1013 | B131: Ergothérapeute cadre supérieur de santé paramédical | I131: 0
A132: GRAD_1014 | B132: Psychomotricien cadre supérieur de santé paramédical | I132: 0
A133: GRAD_1015 | B133: Orthophoniste cadre supérieur de santé paramédical | I133: 0
A134: GRAD_1016 | B134: Orthoptiste cadre supérieur de santé paramédical | I134: 0
A135: GRAD_1017 | B135: Diététicien cadre supérieur de santé paramédical | I135: 0
A136: GRAD_1021 | B136: Préparateur en pharmacie hospitalière cadre supérieur de santé paramédical | I136: 0
A137: GRAD_1022 | B137: Technicien de laboratoire médical cadre supérieur de santé paramédical | I137: 0
A138: GRAD_1023 | B138: Manipulateur d'électroradiologie médicale cadre supérieur de santé paramédical | I138: 0
A139: GRAD_1801 | B139: Infirmier cadre de santé paramédical | I139: 1
A140: GRAD_1802 | B140: Infirmier de bloc opératoire cadre de santé paramédical | I140: 0
A141: GRAD_1803 | B141: Infirmier anesthésiste cadre de santé paramédical | I141: 0
A142: GRAD_1804 | B142: Puéricultrice cadre de santé paramédical | I142: 0
A143: GRAD_1811 | B143: Pédicure-podologue cadre de santé paramédical | I143: 0
A144: GRAD_1812 | B144: Masseur-kinésithérapeute cadre de santé paramédical | I144: 0
A145: GRAD_1813 | B145: Ergothérapeute cadre de santé paramédical | I145: 0
A146: GRAD_1814 | B146: Psychomotricien cadre de santé paramédical | I146: 0
A147: GRAD_1815 | B147: Orthophoniste cadre de santé paramédical | I147: 0
A148: GRAD_1816 | B148: Orthoptiste cadre de santé paramédical | I148: 0
A149: GRAD_1817 | B149: Diététicien cadre de santé paramédical | I149: 0
A150: GRAD_1821 | B150: Préparateur en pharmacie hospitalière cadre de santé paramédical | I150: 0
A151: GRAD_1822 | B151: Technicien de laboratoire médical cadre de santé paramédical | I151: 0
A152: GRAD_1823 | B152: Manipulateur d'électroradiologie médicale cadre de santé paramédical | I152: 0
A153: GRAD_1901 | B153: Infirmier cadre de santé hors classe de catégorie sédentaire | I153: 0
A154: GRAD_1902 | B154: Infirmier de bloc opératoire cadre de santé hors-classe de catégorie sédentaire | I154: 0
A155: GRAD_1903 | B155: Infirmier anesthésiste cadre de santé hors-classe de catégorie sédentaire | I155: 0
A156: GRAD_1904 | B156: Puéricultrice cadre de santé hors-classe de catégorie sédentaire | I156: 0
A157: GRAD_1911 | B157: Pédicure-podologue cadre de santé hors-classe de catégorie sédentaire | I157: 0
A158: GRAD_1912 | B158: Masseur-kinésithérapeute cadre de santé hors-classe de catégorie sédentaire | I158: 0
A159: GRAD_1913 | B159: Ergothérapeute cadre de santé hors-classe de catégorie sédentaire | I159: 0
A160: GRAD_1914 | B160: Psychomotricien cadre de santé hors-classe de catégorie sédentaire | I160: 0
A161: GRAD_1915 | B161: Orthophoniste cadre de santé hors-classe de catégorie sédentaire | I161: 0
A162: GRAD_1916 | B162: Orthoptiste cadre de santé hors-classe de catégorie sédentaire | I162: 0
A163: GRAD_1917 | B163: Diététicien cadre de santé hors-classe de catégorie sédentaire | I163: 0
A164: GRAD_1921 | B164: Préparateur en pharmacie hospitalière cadre de santé hors-classe de catégorie sédentaire | I164: 0
A165: GRAD_1922 | B165: Technicien de laboratoire cadre de santé hors-classe de catégorie sédentaire | I165: 0
A166: GRAD_1923 | B166: Manipulateur d’électroradiologie médicale cadre de santé hors-classe de catégorie sédentaire | I166: 0
A167: GRAD_1941 | B167: Infirmier cadre de santé hors-classe de catégorie sédentaire, moniteur | I167: 0
A168: GRAD_1942 | B168: Infirmier de bloc opératoire cadre de santé hors-classe de catégorie sédentaire, moniteur | I168: 0
A169: GRAD_1943 | B169: Infirmier anesthésiste cadre de santé hors-classe de catégorie sédentaire, moniteur | I169: 0
A170: GRAD_1944 | B170: Puéricultrice cadre de santé hors-classe de catégorie sédentaire, monitrice | I170: 0
A171: GRAD_1951 | B171: Pédicure-podologue cadre de santé hors-classe de catégorie sédentaire, moniteur | I171: 0
A172: GRAD_1952 | B172: Masseur-kinésithérapeute cadre de santé hors-classe de catégorie sédentaire, moniteur | I172: 0
A173: GRAD_1953 | B173: Ergothérapeute cadre de santé hors-classe de catégorie sédentaire, moniteur | I173: 0
A174: GRAD_1954 | B174: Psychomotricien cadre de santé hors-classe de catégorie sédentaire, moniteur | I174: 0
A175: GRAD_1955 | B175: Orthophoniste cadre de santé hors-classe de catégorie sédentaire, moniteur | I175: 0
A176: GRAD_1956 | B176: Orthoptiste cadre de santé hors-classe de catégorie sédentaire, moniteur | I176: 0
A177: GRAD_1957 | B177: Diététicien cadre de santé hors-classe de catégorie sédentaire, moniteur | I177: 0
A178: GRAD_1961 | B178: Préparateur en pharmacie hospitalière cadre de santé hors-classe de catégorie sédentaire, moniteur | I178: 0
A179: GRAD_1962 | B179: Technicien de laboratoire cadre de santé hors-classe de catégorie sédentaire, moniteur | I179: 0
A180: GRAD_1963 | B180: Manipulateur d’électroradiologie médicale cadre de santé hors-classe de catégorie sédentaire, moniteur | I180: 0
A181: GRAD_1627 | B181: Emploi fonctionnel / directeur des soins, coordonnateur gén. act. soins infirmiers, rééducation, médico-techniques Gpe II | I181: 0
A182: GRAD_1628 | B182: Emploi fonctionnel / directeur des soins coordonnateur gén. act. formation dans un ou plusieurs groupes d’instituts de formation Gpe II | I182: 0
A183: GRAD_1629 | B183: Emploi fonctionnel / directeur des soins, coordonnateur gén. act. soins infirmiers, rééducation, médico-techniques Gpe I | I183: 0
A184: GRAD_1630 | B184: Directeur des soins classe normale, coordination gén. act. soins infirmiers, rééducation, médico-techniques | I184: 0
A185: GRAD_1631 | B185: Directeur des soins classe normale, direction d’un institut de formation ou coordination gén. de plusieurs instituts de formation | I185: 0
A186: GRAD_1632 | B186: Directeur des soins hors classe, coordination générale act. soins infirmiers, rééducation, médico-techniques | I186: 0
A187: GRAD_1633 | B187: Directeur des soins hors classe, direction d’un institut de formation ou coordination gén. de plusieurs instituts de formation | I187: 0
A188: GRAD_1634 | B188: Directeur des soins de classe exceptionnelle, coordination générale des activités de soins infirmiers, de rééducation et médico-techniques | I188: 0
A189: GRAD_1635 | B189: Directeur des soins de classe exceptionnelle, direction d'un institut de formation ou coordination générale de plusieurs instituts de formations | I189: 0
A190: GRAD_2961 | B190: Infirmier anesthésiste Grade 1 | I190: 1
A191: GRAD_2962 | B191: Infirmier anesthésiste Grade 2 | I191: 0
A192: GRAD_2176 | B192: Grade de classe normale des auxiliaires médicaux exerçant en pratique avancée de cat. A | I192: 0
A193: GRAD_2177 | B193: Grade de classe supérieure des auxiliaires médicaux exerçant en pratique avancée de cat. A | I193: 0
A194: GRAD_3310 | B194: Accompagnant éducatif et social | I194: 0
A195: GRAD_3311 | B195: Accompagnant éducatif et social principal | I195: 0
A196: GRAD_3312 | B196: Agent des services hospitaliers qualifié de la classe normale | I196: 0
A197: GRAD_3313 | B197: Agent des services hospitaliers qualifié de classe supérieure | I197: 0
A198: GRAD_2922 | B198: Elève aide-soignant / formation professionnelle | I198: 0
A199: GRAD_3300 | B199: Aide-soignant de classe normale de catégorie B | I199: 1
A200: GRAD_3301 | B200: Aide-soignant de classe supérieure de catégorie B | I200: 0
A201: GRAD_3302 | B201: Auxiliaire de puériculture de classe normale de catégorie B | I201: 0
A202: GRAD_3303 | B202: Auxiliaire de puériculture de classe supérieure de catégorie B | I202: 0
A203: GRAD_2625 | B203: Conseiller en économie sociale et familiale de classe normale du premier grade | I203: 0
A204: GRAD_2626 | B204: Conseiller en économie sociale et familiale de classe supérieure du premier grade | I204: 0
A205: GRAD_2627 | B205: Conseiller en économie sociale et familiale du second grade | I205: 0
A206: GRAD_2646 | B206: Educateur technique spécialisé de classe normale du premier grade | I206: 0
A207: GRAD_2647 | B207: Educateur technique spécialisé de classe supérieure du premier grade | I207: 0
A208: GRAD_2648 | B208: Educateur technique spécialisé du second grade | I208: 0
A209: GRAD_2672 | B209: Educateur de jeunes enfants de classe normale du premier grade | I209: 0
A210: GRAD_2673 | B210: Educateur de jeunes enfants de classe supérieure du premier grade | I210: 0
... 1260 more rows

Sheet 3. Parcours
B1: 3. PARCOURS PROFESSIONNELS | Y1: Retour au sommaire
B2: Générer le fichier d'import du thème 3. Parcours pour la plateforme de saisie en ligne
C4: a) Mobilité
D5: BDS FPH 013-O | F5: Nombre de postes publiés comme vacants ou susceptibles d’être vacants au cours de l’année
D6: BDS FPH 014-O | F6: Nombre de candidatures reçues au cours de l’année
D7: BDS FPH 015-O | F7: Nombre de postes pourvus au cours de l’année suite à publication comme poste vacant ou susceptible d’être vacant
D8: BDS FPH 016-O | F8: Nombre de postes n’ayant fait l’objet d’aucune candidature
C10: b) Avancement de grade et promotion interne (uniquement pour les PNM)
D11: BDS FPH 017-O | F11: Nombre de promouvables pour chaque grade
D12: BDS FPH 017-O bis | F12: Nombre de promus pour chaque grade
D13: BDS FPH 018-O bis | F13: Nombre de promus pour chaque corps
D14: BDS FPH 019-O | F14: Nombre de promouvables pour chaque corps
D15: BDS FPH 021-O | F15: Nombre de fonctionnaires ayant connu dans l'année une réussite à un concours ou examen professionnel
C17: c) Départs
D18: BDS FPH 022-O | F18: Nombre d’agents ayant quitté leurs fonctions au cours de l’année selon le motif de départ
D19: BDS FPH 023-O | F19: Nombre de demandes de ruptures conventionnelles
B25: a) Mobilité | Y25: Retour haut de page
B28: BDS FPH 013-O | D28: Nombre de postes publiés comme vacants ou susceptibles d’être vacants au cours de l’année | Y28: Retour haut de page
H30: NB
A31: POSTE | B31: Nombre de postes publiés comme vacants ou susceptibles d’être vacants au cours de l’année | H31: 234
H32: PAR_013 | I32: PAR 013 | J32: 3__Parcours | K32: 3__PARCOURS | L32: 3. Parcours
B37: BDS FPH 014-O | D37: Nombre de candidatures reçues au cours de l’année | Y37: Retour haut de page
H39: NB
A40: CANDI | B40: Nombre de candidatures reçues au cours de l’année | H40: 904
H41: PAR_014 | I41: PAR 014 | J41: 3__Parcours | K41: 3__PARCOURS | L41: 3. Parcours
B46: BDS FPH 015-O | D46: Nombre de postes pourvus au cours de l’année suite à publication comme poste vacant ou susceptible d’être vacant | Y46: Retour haut de page
H48: NBPP
H49: Nombre de postes pourvus
A50: POURVU | B50: Pourvu par des candidats extérieurs au périmètre du ministère ou en interne | H50: 137
B52: Statut d'emploi (personnel médical) ou filière (personnel non médical) du candidat retenu | H52: Nombre de postes pourvus
A53: PM_TOT | B53: Personnel médical | H53: =+SUM(H54:H60) -> 0
A54: PM_HUT | B54: Hospitaliers universitaires titulaires | H54: 0
A55: PM_PHT | B55: Praticiens hospitaliers titulaires | H55: 0
A56: PM_ASS | B56: Assistants | H56: 0
A57: PM_HUNT | B57: Hospitaliers universitaires non titulaires | H57: 0
A58: PM_ATT | B58: Attachés | H58: 0
A59: PM_PAS | B59: Praticiens associés | H59: 0
A60: PM_AUT | B60: Autres salariés (y compris ne relevant pas d'un statut) | H60: 0
A61: PNM_TOT | B61: Personnel non médical | H61: =+SUM(H62:H70) -> 137
A62: PNM_SOI | B62: Soins | H62: 87
A63: PNM_REE | B63: Rééducation | H63: 0
A64: PNM_MT | B64: Médico-technique | H64: 1
A65: PNM_ADM | B65: Administrative | H65: 40
A66: PNM_OUV | B66: Ouvrière et technique | H66: 5
A67: PNM_SOC | B67: Socio-éducative | H67: 1
A68: PNM_DIR | B68: Personnels de direction | H68: 0
A69: PNM_PSY | B69: Psychologues | H69: 1
A70: PNM_SF | B70: Sages-femmes | H70: 2
A71: TOT_PMPNM | B71: TOTAL | H71: =SUM(H61,H53) -> 137
H72: PAR_015 | I72: PAR 015 | J72: 3__Parcours | K72: 3__PARCOURS | L72: 3. Parcours
B77: BDS FPH 016-O | D77: Nombre de postes n’ayant fait l’objet d’aucune candidature | Y77: Retour haut de page
H79: NB0C
B80: Statut d'emploi (personnel médical) ou filière (personnel non médical) du candidat retenu | H80: Nombre de postes n'ayant fait l'objet d'aucune candidature
A82: PM_TOT | B82: Personnel médical | H82: =+SUM(H83:H89) -> 0
A83: PM_HUT | B83: Hospitaliers universitaires titulaires | H83: 0
A84: PM_PHT | B84: Praticiens hospitaliers titulaires | H84: 0
A85: PM_ASS | B85: Assistants | H85: 0
A86: PM_HUNT | B86: Hospitaliers universitaires non titulaires | H86: 0
A87: PM_ATT | B87: Attachés | H87: 0
A88: PM_PAS | B88: Praticiens associés | H88: 0
A89: PM_AUT | B89: Autres salariés (y compris ne relevant pas d'un statut) | H89: 0
A90: PNM_TOT | B90: Personnel non médical | H90: =+SUM(H91:H99) -> 36
A91: PNM_SOI | B91: Soins | H91: 27
A92: PNM_REE | B92: Rééducation | H92: 0
A93: PNM_MT | B93: Médico-technique | H93: 1
A94: PNM_ADM | B94: Administrative | H94: 3
A95: PNM_OUV | B95: Ouvrière et technique | H95: 3
A96: PNM_SOC | B96: Socio-éducative | H96: 0
A97: PNM_DIR | B97: Personnels de direction | H97: 0
A98: PNM_PSY | B98: Psychologues | H98: 2
A99: PNM_SF | B99: Sages-femmes | H99: 0
A100: TOT_PMPNM | B100: TOTAL | H100: =SUM(H90,H82) -> 36
B102: Catégorie hiérarchique | H102: Nombre de postes n'ayant fait l'objet d'aucune candidature
A103: CATA | B103: A | H103: 22
A104: CATB | B104: B | H104: 6
A105: CATC | B105: C | H105: 8
A106: CATX | B106: NC (non catégorisé A B C) | H106: 0
A107: TOT_CAT | B107: TOTAL | H107: =SUM(H103:H106) -> 36
B109: Métier | H109: Nombre de postes n'ayant fait l'objet d'aucune candidature
A110: PM_MTOT | B110: Personnel médical | H110: =+SUM(H111:H133) -> 0
A111: MED06 | B111: Anesthésie réanimation | H111: 0
A112: MED03 | B112: Autre spécialiste des spécialités médicales | H112: 0
A113: MED01 | B113: Généraliste et spécialiste de médecine générale | H113: 0
A114: MED04 | B114: Médecin biologiste | H114: 0
A115: MED05 | B115: Médecin des spécialités chirurgicales | H115: 0
A116: 30I20 | B116: Médecin du travail | H116: 0
A117: MED02 | B117: Médecin psychiatre | H117: 0
A118: 40L60 | B118: Médecin responsable de l'information médicale et de l'évaluation (DIM) | H118: 0
A119: ODO01 | B119: Odontologiste (chirurgien-dentiste) | H119: 0
A120: PHA02 | B120: Pharmacien | H120: 0
A121: PHA01 | B121: Pharmacien biologiste | H121: 0
A122: PNPE1 | B122: Praticien n'ayant pas la plénitude d'exercice (3° de l'article l6152-1 du CSP) | H122: 0
A123: MED07 | B123: Radiologie imagerie | H123: 0
A124: SPUB1 | B124: Santé publique | H124: 0
A125: SCIE1 | B125: Scientifique | H125: 0
A126: 30C18 | B126: Spécialiste en hémovigilance | H126: 0
A127: 30C15 | B127: Spécialiste en pharmacovigilance | H127: 0
A128: INME0 | B128: Interne en médecine (et FFI) | H128: 0
A129: INPH0 | B129: Interne en pharmacie (et FFI) | H129: 0
A130: INOD0 | B130: Interne en odontologie | H130: 0
A131: ETME0 | B131: Etudiant en médecine | H131: 0
A132: ETPH0 | B132: Etudiant en pharmacie | H132: 0
A133: ETOD0 | B133: Etudiant en odontologie | H133: 0
A134: PNM_MTOT | B134: Personnel non médical | H134: =+SUM(H135:H326) -> 36
A135: 10I30 | B135: Accueillant familial
A136: 25F20 | B136: Acheteur
A137: 40F20 | B137: Agent d'accueil
A138: 30F30 | B138: Agent de bionettoyage | H138: 5
A139: 25M20 | B139: Agent de blanchisserie
A140: 45S20 | B140: Agent de gestion administrative | H140: 3
A141: 25I30 | B141: Agent de logistique
A142: 20I30 | B142: Agent de maintenance générale des bâtiments
A143: 30L40 | B143: Agent de prévention et de sécurité des personnes et des biens
A144: 25R30 | B144: Agent de restauration et/ou d'hôtellerie
A145: 30L20 | B145: Agent de sécurité incendie
A146: 05R60 | B146: Agent de service mortuaire | H146: 1
A147: 30F50 | B147: Agent de stérilisation | H147: 1
A148: 20X20 | B148: Agent d'entretien des espaces verts
A149: 10I10 | B149: Aide médico psychologique
A150: 05R10 | B150: Aide-soignant | H150: 5
A151: 05R95 | B151: Ambulancier
A152: 40L50 | B152: Analyste des données d'activités hospitalières
A153: 10L30 | B153: Animateur
A154: 30C20 | B154: Animateur qualité / gestion des risques
A155: 35I10 | B155: Architecte / Urbaniste du SI
A156: 40M20 | B156: Archiviste
A157: 15D10 | B157: Assistant de recherche clinique
A158: 15L10 | B158: Assistant de recherche clinique
A159: 40F30 | B159: Assistant de régulation médicale
A160: 05R40 | B160: Assistant dentaire
A161: 10I20 | B161: Assistant familial
A162: 10I70 | B162: Assistant maternel
A163: 10F40 | B163: Assistant social | H163: 1
A164: 05Z10 | B164: Audioprothésiste
A165: 05R50 | B165: Auxiliaire de puériculture
A166: 10I60 | B166: Auxiliaire de vie sociale
A167: 40M60 | B167: Bibliothécaire
A168: 05L80 | B168: Bio informaticien
A169: 30F80 | B169: Biohygiéniste
A170: 15D60 | B170: Biostatisticien
A171: 05R30 | B171: Brancardier
A172: 45S50 | B172: Cadre administratif de pôle
A173: 05U10 | B173: Cadre soignant de pôle
A174: 45R20 | B174: Chargé de communication
A175: 45F30 | B175: Chargé de la formation continue
A176: 45I20 | B176: Chargé de la trésorerie et de la dette
A177: 45M20 | B177: Chargé de valorisation de la recherche
A178: 35F05 | B178: Chargé des applications informatiques
A179: 30C40 | B179: Chargé des relations avec les usagers
A180: 45F60 | B180: Chargé des relations sociales
A181: 45F40 | B181: Chargé du développement des ressources humaines
A182: 35F30 | B182: Chef de projet informatique
A183: 15L20 | B183: Chef de projets de recherche clinique
A184: 20F20 | B184: Conducteur de travaux tous corps d'état TCE
A185: 20F10 | B185: Conducteur d'opérations tous corps d'état TCE
A186: 05M60 | B186: Conseiller conjugal
A187: 10F50 | B187: Conseiller en économie sociale et familiale
A188: 05M20 | B188: Conseiller en génétique
A189: 20M10 | B189: Conseiller en ingénierie biomédicale
A190: 45L20 | B190: Conseiller en organisation
A191: 30I10 | B191: Conseiller en prévention des risques professionnels
A192: 30I30 | B192: Conseiller environnement et développement durable
A193: 25R40 | B193: Conseiller hôtelier
A194: 45M10 | B194: Conseiller juridique
A195: 45L10 | B195: Contrôleur de gestion
A196: 05T10 | B196: Coordinateur de parcours en santé
A197: 05T20 | B197: Coordinateur de prélèvement ou de transplantation d'organe
A198: 15F20 | B198: Coordinateur d'études cliniques
A199: 30C10 | B199: Coordinateur qualité / gestion des risques
A200: 25R20 | B200: Cuisinier
A201: 20F70 | B201: Dessinateur-projeteur
A202: 05I10 | B202: Diététicien
A203: 45C75 | B203: Directeur de la communication et des relations avec les usagers
A204: 45C10 | B204: Directeur de la logistique et des achats
A205: 45C55 | B205: Directeur de la qualité (et de la gestion des risques)
A206: 45C85 | B206: Directeur de site / pôle / projets
A207: 45C20 | B207: Directeur des affaires générales
A208: 45C65 | B208: Directeur des affaires médicales (et de la recherche)
A209: 45C35 | B209: Directeur des finances
A210: 45C60 | B210: Directeur des investissements et de la maintenance
A211: 45C45 | B211: Directeur des ressources humaines
A212: 45C30 | B212: Directeur des soins en établissement
A213: 45C40 | B213: Directeur des soins en institut de formation (aux métiers de la santé)
A214: 45C70 | B214: Directeur des systèmes d'information
A215: 45C80 | B215: Directeur d'établissement de santé - chef d'établissement
A216: 45C90 | B216: Directeur d'établissement social et médico-social - chef d'établissement
A217: 40M30 | B217: Documentaliste
A218: 05L60 | B218: Dosimétriste
A219: 10F20 | B219: Educateur jeunes enfants
A220: 10F10 | B220: Educateur spécialisé
A221: 10F80 | B221: Educateur sportif
A222: 10F30 | B222: Educateur technique spécialisé
A223: 20L40 | B223: Electricien de maintenance
A224: 20L20 | B224: Electromécanicien de maintenance
A225: 20U20 | B225: Electromécanicien(ne) / mécanicien(ne) / de maintenance
A226: 40F10 | B226: Encadrant Accueil - Standard
A227: 40M10 | B227: Encadrant archives
A228: 30F20 | B228: Encadrant bionettoyage
A229: 40L10 | B229: Encadrant de département d’information médicale
A230: 30L10 | B230: Encadrant de la sécurité des personnes et des biens
... 1181 more rows

Sheet 4. Formation
B1: 4. FORMATION | Z1: Retour au sommaire
B2: Générer le fichier d'import du thème 4. Formation pour la plateforme de saisie en ligne
D4: BDS FPH 024-O | F4: Nombre d’agents formés
D5: BDS FPH 026-F | F5: Nombre de jours de formation
D6: BDS FPH 026-F bis | F6: Nombre de stagiaires en formation
D7: BDS FPH 027-F | F7: Nombre de demandes de congés formation
B13: BDS FPH 024-O | D13: Nombre d’agents formés | Z13: Retour haut de page
G15: NB_AGT | H15: NB_AG1 | I15: NB_AG2 | J15: NB_AG3 | K15: NB_AG4 | L15: NB_AG5
B16: Statut d'emploi (personnel médical) ou filière (personnel non médical) | H16: Dont
G17: Nombre d'agents formés | H17: Ayant suivi au moins une formation statutaire | I17: Ayant suivi au moins une formation professionnelle continue | J17: Ayant suivi au moins une formation professionnelle via une formation à distance | K17: Ayant suivi au moins une formation professionnelle continue via l'utilisation du CPF | L17: Ayant obtenu un diplôme via la VAE
A19: PM_TOT | B19: Personnel médical | G19: =+SUM(G20:G26) -> 592 | H19: 359 | I19: 211 | J19: 22 | K19: 0 | L19: 0
A20: PM_HUT | B20: Hospitaliers universitaires titulaires | G20: 0 | H20: 0
A21: PM_PHT | B21: Praticiens hospitaliers titulaires | G21: 1 | H21: 1
A22: PM_ASS | B22: Assistants | G22: 0 | H22: 0
A23: PM_HUNT | B23: Hospitaliers universitaires non titulaires | G23: 0 | H23: 0
A24: PM_ATT | B24: Attachés | G24: 0 | H24: 0
A25: PM_PAS | B25: Praticiens associés | G25: 0 | H25: 0
A26: PM_AUT | B26: Autres salariés (y compris ne relevant pas d'un statut) | G26: 591 | H26: 358 | I26: 211 | J26: 22
A27: PNM_TOT | B27: Personnel non médical | G27: =+SUM(G28:G36) -> 5139 | H27: 3382 | I27: 1689 | J27: 5 | K27: 63 | L27: 0
A28: PNM_SOI | B28: Soins | G28: 3767 | H28: 2487 | I28: 1226 | J28: 1 | K28: 53 | L28: 0
A29: PNM_REE | B29: Rééducation | L29: 0
A30: PNM_MT | B30: Médico-technique | G30: 313 | H30: 202 | I30: 108 | K30: 3 | L30: 0
A31: PNM_ADM | B31: Administrative | G31: 628 | H31: 421 | I31: 197 | J31: 4 | K31: 6 | L31: 0
A32: PNM_OUV | B32: Ouvrière et technique | G32: 426 | H32: 268 | I32: 157 | K32: 1 | L32: 0
A33: PNM_SOC | B33: Socio-éducative | G33: 5 | H33: 4 | I33: 1 | L33: 0
A34: PNM_DIR | B34: Personnels de direction | L34: 0
A35: PNM_PSY | B35: Psychologues | L35: 0
A36: PNM_SF | B36: Sages-femmes | L36: 0
A37: TOT_PMPNM | B37: TOTAL | G37: =SUM(G27,G19) -> 5731 | H37: 3741 | I37: 1900 | J37: 27 | K37: 63 | L37: 0
B39: Catégorie hiérarchique | G39: Nombre d'agents formés | H39: Dont
H40: Ayant suivi au moins une formation statutaire | I40: Ayant suivi au moins une formation professionnelle continue | J40: Ayant suivi au moins une formation professionnelle via une formation à distance | K40: Ayant suivi au moins une formation professionnelle continue via l'utilisation du CPF | L40: Ayant obtenu un diplôme via la VAE
A41: CATA | B41: A | G41: 2666 | H41: 1856 | I41: 793 | J41: 1 | K41: 16 | L41: 0
A42: CATB | B42: B | G42: 609 | H42: 398 | I42: 203 | J42: 1 | K42: 7 | L42: 0
A43: CATC | B43: C | G43: 1298 | H43: 758 | I43: 498 | J43: 2 | K43: 40 | L43: 0
A44: CATX | B44: NC (non catégorisé A B C) | G44: 1158 | H44: 729 | I44: 406 | J44: 23 | K44: 0 | L44: 0
A45: TOT_CAT | B45: TOTAL | G45: =SUM(G41:G44) -> 5731 | H45: 3741 | I45: 1900 | J45: 27 | K45: 63 | L45: 0
B47: Sexe | G47: Nombre d'agents formés | H47: Dont
H48: Ayant suivi au moins une formation statutaire | I48: Ayant suivi au moins une formation professionnelle continue | J48: Ayant suivi au moins une formation professionnelle via une formation à distance | K48: Ayant suivi au moins une formation professionnelle continue via l'utilisation du CPF | L48: Ayant obtenu un diplôme via la VAE
A49: HOMME | B49: H | G49: 1350 | H49: 879 | I49: 453 | J49: 7 | K49: 11 | L49: 0
A50: FEMME | B50: F | G50: 4381 | H50: 2862 | I50: 1447 | J50: 20 | K50: 52 | L50: 0
A51: TOT_SEXE | B51: TOTAL | G51: =+SUM(G49:G50) -> 5731 | H51: 3741 | I51: 1900 | J51: 27 | K51: 63 | L51: 0
G52: FOR_024_A | H52: FOR 024 a) | I52: 4__Formation | J52: 4__FORMATION | K52: 4. Formation
G55: NB_AGHA | H55: NB_AGHB | I55: NB_AGHC | J55: NB_AGHT | K55: NB_AGFA | L55: NB_AGFB | M55: NB_AGFC | N55: NB_AGFT | O55: NB_AGHA1 | P55: NB_AGHB1 | Q55: NB_AGHC1 | R55: NB_AGHT1 | S55: NB_AGFA1 | T55: NB_AGFB1 | U55: NB_AGFC1 | V55: NB_AGFT1 | W55: NB_AGHA2 | X55: NB_AGHB2 | Y55: NB_AGHC2 | Z55: NB_AGHT2 | AA55: NB_AGFA2 | AB55: NB_AGFB2 | AC55: NB_AGFC2 | AD55: NB_AGFT2 | AE55: NB_AGHA3 | AF55: NB_AGHB3 | AG55: NB_AGHC3 | AH55: NB_AGHT3 | AI55: NB_AGFA3 | AJ55: NB_AGFB3 | AK55: NB_AGFC3 | AL55: NB_AGFT3 | AM55: NB_AGHA4 | AN55: NB_AGHB4 | AO55: NB_AGHC4 | AP55: NB_AGHT4 | AQ55: NB_AGFA4 | AR55: NB_AGFB4 | AS55: NB_AGFC4 | AT55: NB_AGFT4 | AU55: NB_AGHA5 | AV55: NB_AGHB5 | AW55: NB_AGHC5 | AX55: NB_AGHT5 | AY55: NB_AGFA5 | AZ55: NB_AGFB5 | BA55: NB_AGFC5 | BB55: NB_AGFT5
B56: Statut d'emploi (personnel médical) ou filière (personnel non médical) | G56: Nombre d'agents formés | O56: Dont
O57: Ayant suivi au moins une formation statutaire | W57: Ayant suivi au moins une formation professionnelle continue | AE57: Ayant suivi au moins une formation professionnelle via une formation à distance | AM57: Ayant suivi au moins une formation professionnelle continue via l'utilisation du CPF | AU57: Ayant obtenu un diplôme via la VAE
G58: H | K58: F | O58: H | S58: F | W58: H | AA58: F | AE58: H | AI58: F | AM58: H | AQ58: F | AU58: H | AY58: F
G59: A | H59: B | I59: C | J59: TOTAL | K59: A | L59: B | M59: C | N59: TOTAL | O59: A | P59: B | Q59: C | R59: TOTAL | S59: A | T59: B | U59: C | V59: TOTAL | W59: A | X59: B | Y59: C | Z59: TOTAL | AA59: A | AB59: B | AC59: C | AD59: TOTAL | AE59: A | AF59: B | AG59: C | AH59: TOTAL | AI59: A | AJ59: B | AK59: C | AL59: TOTAL | AM59: A | AN59: B | AO59: C | AP59: TOTAL | AQ59: A | AR59: B | AS59: C | AT59: TOTAL | AU59: A | AV59: B | AW59: C | AX59: TOTAL | AY59: A | AZ59: B | BA59: C | BB59: TOTAL
A60: PM_TOT | B60: Personnel médical | G60: =+SUM(G61:G67) -> 254 | J60: =+SUM(J61:J67) -> 254 | K60: 338 | N60: =+SUM(N61:N67) -> 338 | O60: 159 | R60: =+SUM(R61:R67) -> 159 | S60: 200 | V60: =+SUM(V61:V67) -> 200 | W60: 89 | Z60: =+SUM(Z61:Z67) -> 89 | AA60: 122 | AD60: =+SUM(AD61:AD67) -> 122 | AE60: 6 | AH60: =+SUM(AH61:AH67) -> 6 | AI60: 16 | AL60: =+SUM(AL61:AL67) -> 16 | AM60: 0 | AP60: =+SUM(AP61:AP67) -> 0 | AQ60: 0 | AT60: =+SUM(AT61:AT67) -> 0 | AU60: 0 | AX60: =+SUM(AX61:AX67) -> 0 | AY60: 0 | BB60: =+SUM(BB61:BB67) -> 0
A61: PM_HUT | B61: Hospitaliers universitaires titulaires | G61: 0 | J61: =G61 -> 0 | K61: 0 | N61: =K61 -> 0 | O61: 0 | R61: =O61 -> 0 | V61: =S61 -> 0 | Z61: =W61 -> 0 | AD61: =AA61 -> 0 | AH61: =AE61 -> 0 | AL61: =AI61 -> 0 | AP61: =AM61 -> 0 | AT61: =AQ61 -> 0 | AX61: =AU61 -> 0 | BB61: =AY61 -> 0
A62: PM_PHT | B62: Praticiens hospitaliers titulaires | G62: 1 | J62: 1 | K62: 0 | N62: 0 | O62: 1 | R62: 1 | V62: 0 | Z62: 0 | AD62: 0 | AH62: 0 | AL62: 0 | AP62: 0 | AT62: 0 | AX62: 0 | BB62: 0
A63: PM_ASS | B63: Assistants | G63: 0 | J63: 0 | K63: 0 | N63: 0 | O63: 0 | R63: 0 | V63: 0 | Z63: 0 | AD63: 0 | AH63: 0 | AL63: 0 | AP63: 0 | AT63: 0 | AX63: 0 | BB63: 0
A64: PM_HUNT | B64: Hospitaliers universitaires non titulaires | G64: 0 | J64: 0 | K64: 0 | N64: 0 | O64: 0 | R64: 0 | V64: 0 | Z64: 0 | AD64: 0 | AH64: 0 | AL64: 0 | AP64: 0 | AT64: 0 | AX64: 0 | BB64: 0
A65: PM_ATT | B65: Attachés | G65: 0 | J65: 0 | K65: 0 | N65: 0 | O65: 0 | R65: 0 | V65: 0 | Z65: 0 | AD65: 0 | AH65: 0 | AL65: 0 | AP65: 0 | AT65: 0 | AX65: 0 | BB65: 0
A66: PM_PAS | B66: Praticiens associés | G66: 0 | J66: 0 | K66: 0 | N66: 0 | O66: 0 | R66: 0 | V66: 0 | Z66: 0 | AD66: 0 | AH66: 0 | AL66: 0 | AP66: 0 | AT66: 0 | AX66: 0 | BB66: 0
A67: PM_AUT | B67: Autres salariés (y compris ne relevant pas d'un statut) | G67: 253 | J67: 253 | K67: 338 | N67: 338 | O67: 158 | R67: 158 | S67: 200 | V67: 200 | W67: 89 | Z67: 89 | AA67: 122 | AD67: 122 | AE67: 6 | AH67: 6 | AI67: 16 | AL67: 16 | AP67: 0 | AT67: 0 | AX67: 0 | BB67: 0
A68: PNM_TOT | B68: Personnel non médical | G68: =+SUM(G69:G77) -> 537 | H68: 130 | I68: 343 | J68: 1010 | K68: 2129 | L68: 479 | M68: 955 | N68: 3563 | O68: 381 | P68: 82 | Q68: 199 | R68: 662 | S68: 1475 | T68: 316 | U68: 559 | V68: 2350 | W68: 152 | X68: 47 | Y68: 138 | Z68: 337 | AA68: 641 | AB68: 156 | AC68: 360 | AD68: 1157 | AE68: 0 | AF68: 0 | AG68: 0 | AH68: 0 | AI68: 1 | AJ68: 1 | AK68: 2 | AL68: 4 | AM68: 4 | AN68: 1 | AO68: 6 | AP68: 11 | AQ68: 12 | AR68: 6 | AS68: 34 | AT68: 52 | AU68: 0 | AV68: 0 | AW68: 0 | AX68: 0 | AY68: 0 | AZ68: 0 | BA68: 0 | BB68: 0
A69: PNM_SOI | B69: Soins | G69: 399 | H69: 28 | I69: 119 | J69: =SUM(G69:I69) -> 546 | K69: 1861 | L69: 171 | M69: 623 | N69: =SUM(K69:M69) -> 2655 | O69: 284 | P69: 16 | Q69: 67 | R69: =SUM(O69:Q69) -> 367 | S69: 1288 | T69: 109 | U69: 353 | V69: =SUM(S69:U69) -> 1750 | W69: 113 | X69: 11 | Y69: 47 | Z69: =SUM(W69:Y69) -> 171 | AA69: 561 | AB69: 58 | AC69: 241 | AD69: =SUM(AA69:AC69) -> 860 | AH69: =SUM(AE69:AG69) -> 0 | AL69: =SUM(AI69:AK69) -> 0 | AM69: 2 | AN69: 1 | AO69: 5 | AP69: =SUM(AM69:AO69) -> 8 | AQ69: 12 | AR69: 4 | AS69: 29 | AT69: =SUM(AQ69:AS69) -> 45 | AX69: =SUM(AU69:AW69) -> 0 | BB69: =SUM(AY69:BA69) -> 0
A70: PNM_REE | B70: Rééducation | G70: 0 | H70: 0 | I70: 0 | J70: 0 | K70: 0 | L70: 0 | M70: 0 | N70: 0 | R70: 0 | V70: 0 | Z70: 0 | AD70: 0 | AH70: 0 | AL70: 0 | AP70: 0 | AT70: 0 | AX70: 0 | BB70: 0
A71: PNM_MT | B71: Médico-technique | G71: 75 | H71: 20 | I71: 0 | J71: 95 | K71: 189 | L71: 29 | M71: 0 | N71: 218 | O71: 48 | P71: 12 | R71: 60 | S71: 124 | T71: 18 | U71: 0 | V71: 142 | W71: 25 | X71: 8 | Z71: 33 | AA71: 65 | AB71: 10 | AD71: 75 | AH71: 0 | AL71: 0 | AM71: 2 | AN71: 0 | AO71: 0 | AP71: 2 | AQ71: 0 | AR71: 1 | AS71: 0 | AT71: 1 | AX71: 0 | BB71: 0
A72: PNM_ADM | B72: Administrative | G72: 31 | H72: 0 | I72: 5 | J72: 36 | K72: 66 | L72: 241 | M72: 286 | N72: 593 | O72: 24 | Q72: 2 | R72: 26 | S72: 52 | T72: 163 | U72: 180 | V72: 395 | W72: 7 | Y72: 2 | Z72: 9 | AA72: 13 | AB72: 76 | AC72: 99 | AD72: 188 | AH72: 0 | AI72: 1 | AJ72: 1 | AK72: 2 | AL72: 4 | AO72: 1 | AP72: 1 | AQ72: 0 | AR72: 1 | AS72: 5 | AT72: 6 | AX72: 0 | BB72: 0
A73: PNM_OUV | B73: Ouvrière et technique | G73: 32 | H73: 82 | I73: 219 | J73: 333 | K73: 13 | L73: 33 | M73: 46 | N73: 92 | O73: 25 | P73: 54 | Q73: 130 | R73: 209 | S73: 11 | T73: 22 | U73: 26 | V73: 59 | W73: 7 | X73: 28 | Y73: 89 | Z73: 124 | AA73: 2 | AB73: 11 | AC73: 20 | AD73: 33 | AH73: 0 | AL73: 0 | AP73: 0 | AT73: 0 | AX73: 0 | BB73: 0
A74: PNM_SOC | B74: Socio-éducative | G74: 0 | H74: 0 | I74: 0 | J74: 0 | K74: 0 | L74: 5 | M74: 0 | N74: 5 | R74: 0 | T74: 4 | V74: 4 | Z74: 0 | AB74: 1 | AD74: 1 | AH74: 0 | AL74: 0 | AP74: 0 | AT74: 0 | AX74: 0 | BB74: 0
A75: PNM_DIR | B75: Personnels de direction | G75: 0 | H75: 0 | I75: 0 | J75: 0 | K75: 0 | L75: 0 | M75: 0 | N75: 0 | R75: 0 | V75: 0 | Z75: 0 | AD75: 0 | AH75: 0 | AL75: 0 | AP75: 0 | AT75: 0 | AX75: 0 | BB75: 0
A76: PNM_PSY | B76: Psychologues | G76: 0 | H76: 0 | I76: 0 | J76: 0 | K76: 0 | L76: 0 | M76: 0 | N76: 0 | R76: 0 | V76: 0 | Z76: 0 | AD76: 0 | AH76: 0 | AL76: 0 | AP76: 0 | AT76: 0 | AX76: 0 | BB76: 0
A77: PNM_SF | B77: Sages-femmes | G77: 0 | H77: 0 | I77: 0 | J77: 0 | K77: 0 | L77: 0 | M77: 0 | N77: 0 | R77: 0 | V77: 0 | Z77: 0 | AD77: 0 | AH77: 0 | AL77: 0 | AP77: 0 | AT77: 0 | AX77: 0 | BB77: 0
A78: TOT_PMPNM | B78: TOTAL | G78: =SUM(G68,G60) -> 791 | H78: 130 | I78: 343 | J78: 1264 | K78: 2467 | L78: 479 | M78: 955 | N78: 3901 | O78: 540 | P78: 82 | Q78: 199 | R78: 821 | S78: 1675 | T78: 316 | U78: 559 | V78: 2550 | W78: 241 | X78: 47 | Y78: 138 | Z78: 426 | AA78: 763 | AB78: 156 | AC78: 360 | AD78: 1279 | AE78: 6 | AF78: 0 | AG78: 0 | AH78: 6 | AI78: 17 | AJ78: 1 | AK78: 2 | AL78: 20 | AM78: 4 | AN78: 1 | AO78: 6 | AP78: 11 | AQ78: 12 | AR78: 6 | AS78: 34 | AT78: 52 | AU78: 0 | AV78: 0 | AW78: 0 | AX78: 0 | AY78: 0 | AZ78: 0 | BA78: 0 | BB78: 0
G79: FOR_024_B | H79: FOR 024 b) | I79: 4__Formation | J79: 4__FORMATION | K79: 4. Formation
B84: BDS FPH 026-F | D84: Nombre de jours de formation | Z84: Retour haut de page
G86: NBJ_FOR | H86: NBJ_FO1 | I86: NBJ_FO2 | J86: NBJ_FO3 | K86: NBJ_FO4 | L86: NBJ_FO5 | M86: NBJ_FO6 | N86: NBJ_FO7
B87: Statut d'emploi (personnel médical) ou filière (personnel non médical) | H87: Dont
G88: Nombre de jours de formation | H88: Formation statutaire | I88: Formation continue | J88: Préparation aux concours et examens | K88: Réalisation de bilans de compétences | L88: Validation des acquis de l’expérience (VAE) | M88: Congé de formation professionnelle | N88: Période de professionnalisation
A90: PM_TOT | B90: Personnel médical | G90: =+SUM(G91:G97) -> 2545 | H90: 681 | I90: 1864 | J90: 0 | K90: 0 | L90: 0 | M90: 0 | N90: 0
A91: PM_HUT | B91: Hospitaliers universitaires titulaires | G91: 0 | H91: 0 | L91: 0 | N91: 0
A92: PM_PHT | B92: Praticiens hospitaliers titulaires | G92: 4 | H92: 1 | I92: 3 | L92: 0 | N92: 0
A93: PM_ASS | B93: Assistants | G93: 0 | H93: 0 | L93: 0 | N93: 0
A94: PM_HUNT | B94: Hospitaliers universitaires non titulaires | G94: 0 | H94: 0 | L94: 0 | N94: 0
A95: PM_ATT | B95: Attachés | G95: 0 | H95: 0 | L95: 0 | N95: 0
A96: PM_PAS | B96: Praticiens associés | G96: 0 | H96: 0 | L96: 0 | N96: 0
A97: PM_AUT | B97: Autres salariés (y compris ne relevant pas d'un statut) | G97: 2541 | H97: 680 | I97: 1861 | L97: 0 | N97: 0
A98: PNM_TOT | B98: Personnel non médical | G98: =+SUM(G99:G107) -> 19659 | H98: 6423 | I98: 12884 | J98: 0 | K98: 0 | L98: 0 | M98: 343 | N98: 3
A99: PNM_SOI | B99: Soins | G99: 15460 | H99: 4725 | I99: 10546 | L99: 0 | M99: 184 | N99: 3
A100: PNM_REE | B100: Rééducation | G100: 0 | H100: 0 | L100: 0
A101: PNM_MT | B101: Médico-technique | G101: 987 | H101: 383 | I101: 530 | L101: 0 | M101: 72
A102: PNM_ADM | B102: Administrative | G102: 1753 | H102: 799 | I102: 945 | L102: 0 | M102: 7
A103: PNM_OUV | B103: Ouvrière et technique | G103: 1450 | H103: 509 | I103: 861 | L103: 0 | M103: 80
A104: PNM_SOC | B104: Socio-éducative | G104: 9 | H104: 7 | I104: 2 | L104: 0
A105: PNM_DIR | B105: Personnels de direction | G105: 0 | H105: 0 | L105: 0
A106: PNM_PSY | B106: Psychologues | G106: 0 | H106: 0 | L106: 0
A107: PNM_SF | B107: Sages-femmes | G107: 0 | H107: 0 | L107: 0
A108: TOT_PMPNM | B108: TOTAL | G108: =SUM(G98,G90) -> 22204 | H108: 7104 | I108: 14748 | J108: 0 | K108: 0 | L108: 0 | M108: 343 | N108: 3
B110: Catégorie hiérarchique | G110: Nombre de jours de formation | H110: Dont
H111: Formation statutaire | I111: Formation continue | J111: Préparation aux concours et examens | K111: Réalisation de bilans de compétences | L111: Validation des acquis de l’expérience (VAE) | M111: Congé de formation professionnelle | N111: Période de professionnalisation
A112: CATA | B112: A | G112: 8001 | H112: 3526 | I112: 4398 | L112: 0 | M112: 72 | N112: 3
A113: CATB | B113: B | G113: 2296 | H113: 756 | I113: 1532 | L113: 0 | M113: 7
A114: CATC | B114: C | G114: 8057 | H114: 1440 | I114: 6353 | L114: 0 | M114: 264
A115: CATX | B115: NC (non catégorisé A B C) | G115: 3851 | H115: 1385 | I115: 2466 | L115: 0
A116: TOT_CAT | B116: TOTAL | G116: =SUM(G112:G115) -> 22205 | H116: 7107 | I116: 14749 | J116: 0 | K116: 0 | L116: 0 | M116: 343 | N116: 3
B118: Sexe | G118: Nombre de jours de formation | H118: Dont
H119: Formation statutaire | I119: Formation continue | J119: Préparation aux concours et examens | K119: Réalisation de bilans de compétences | L119: Validation des acquis de l’expérience (VAE) | M119: Congé de formation professionnelle | N119: Période de professionnalisation
A120: HOMME | B120: H | G120: 5310 | H120: 1670 | I120: 3640 | L120: 0 | M120: 0 | N120: 0
A121: FEMME | B121: F | G121: 16896 | H121: 5437 | I121: 11110 | L121: 0 | M121: 345 | N121: 3
A122: TOT_SEXE | B122: TOTAL | G122: =+SUM(G120:G121) -> 22206 | H122: 7107 | I122: 14750 | J122: 0 | K122: 0 | L122: 0 | M122: 345 | N122: 3
G123: FOR_026_F_A | H123: FOR 026-F a) | I123: 4__Formation | J123: 4__FORMATION | K123: 4. Formation
G126: NBJ_FOHA | H126: NBJ_FOHB | I126: NBJ_FOHC | J126: NBJ_FOHT | K126: NBJ_FOFA | L126: NBJ_FOFB | M126: NBJ_FOFC | N126: NBJ_FOFT | O126: NBJ_FO1HA | P126: NBJ_FO1HB | Q126: NBJ_FO1HC | R126: NBJ_FO1HT | S126: NBJ_FO1FA | T126: NBJ_FO1FB | U126: NBJ_FO1FC | V126: NBJ_FO1FT | W126: NBJ_FO2HA | X126: NBJ_FO2HB | Y126: NBJ_FO2HC | Z126: NBJ_FO2HT | AA126: NBJ_FO2FA | AB126: NBJ_FO2FB | AC126: NBJ_FO2FC | AD126: NBJ_FO2FT | AE126: NBJ_FO3HA | AF126: NBJ_FO3HB | AG126: NBJ_FO3HC | AH126: NBJ_FO3HT | AI126: NBJ_FO3FA | AJ126: NBJ_FO3FB | AK126: NBJ_FO3FC | AL126: NBJ_FO3FT | AM126: NBJ_FO4HA | AN126: NBJ_FO4HB | AO126: NBJ_FO4HC | AP126: NBJ_FO4HT | AQ126: NBJ_FO4FA | AR126: NBJ_FO4FB | AS126: NBJ_FO4FC | AT126: NBJ_FO4FT | AU126: NBJ_FO5HA | AV126: NBJ_FO5HB | AW126: NBJ_FO5HC | AX126: NBJ_FO5HT | AY126: NBJ_FO5FA | AZ126: NBJ_FO5FB | BA126: NBJ_FO5FC | BB126: NBJ_FO5FT | BC126: NBJ_FO6HA | BD126: NBJ_FO6HB | BE126: NBJ_FO6HC | BF126: NBJ_FO6HT | BG126: NBJ_FO6FA | BH126: NBJ_FO6FB | BI126: NBJ_FO6FC | BJ126: NBJ_FO6FT | BK126: NBJ_FO7HA | BL126: NBJ_FO7HB | BM126: NBJ_FO7HC | BN126: NBJ_FO7HT | BO126: NBJ_FO7FA | BP126: NBJ_FO7FB | BQ126: NBJ_FO7FC | BR126: NBJ_FO7FT
B127: Statut d'emploi (personnel médical) ou filière (personnel non médical) | G127: Nombre de jours de formation | O127: Dont
O128: Formation statutaire | W128: Formation continue | AE128: Préparation aux concours et examens | AM128: Réalisation de bilans de compétences | AU128: Validation des acquis de l’expérience (VAE) | BC128: Congé de formation professionnelle | BK128: Période de professionnalisation
G129: H | K129: F | O129: H | S129: F | W129: H | AA129: F | AE129: H | AI129: F | AM129: H | AQ129: F | AU129: H | AY129: F | BC129: H | BG129: F | BK129: H | BO129: F
G130: A | H130: B | I130: C | J130: TOTAL | K130: A | L130: B | M130: C | N130: TOTAL | O130: A | P130: B | Q130: C | R130: TOTAL | S130: A | T130: B | U130: C | V130: TOTAL | W130: A | X130: B | Y130: C | Z130: TOTAL | AA130: A | AB130: B | AC130: C | AD130: TOTAL | AE130: A | AF130: B | AG130: C | AH130: TOTAL | AI130: A | AJ130: B | AK130: C | AL130: TOTAL | AM130: A | AN130: B | AO130: C | AP130: TOTAL | AQ130: A | AR130: B | AS130: C | AT130: TOTAL | AU130: A | AV130: B | AW130: C | AX130: TOTAL | AY130: A | AZ130: B | BA130: C | BB130: TOTAL | BC130: A | BD130: B | BE130: C | BF130: TOTAL | BG130: A | BH130: B | BI130: C | BJ130: TOTAL | BK130: A | BL130: B | BM130: C | BN130: TOTAL | BO130: A | BP130: B | BQ130: C | BR130: TOTAL
A131: PM_TOT | B131: Personnel médical | G131: =+SUM(G132:G138) -> 1039 | J131: =+SUM(J132:J138) -> 1039 | K131: 1505 | N131: =+SUM(N132:N138) -> 1505 | O131: 301 | R131: =+SUM(R132:R138) -> 301 | S131: 380 | V131: =+SUM(V132:V138) -> 380 | W131: 738 | Z131: =+SUM(Z132:Z138) -> 738 | AA131: 1125 | AD131: =+SUM(AD132:AD138) -> 1125 | AE131: 0 | AH131: =+SUM(AH132:AH138) -> 0 | AI131: 0 | AL131: =+SUM(AL132:AL138) -> 0 | AM131: 0 | AP131: =+SUM(AP132:AP138) -> 0 | AQ131: 0 | AT131: =+SUM(AT132:AT138) -> 0 | AU131: 0 | AX131: =+SUM(AX132:AX138) -> 0 | AY131: 0 | BB131: =+SUM(BB132:BB138) -> 0 | BC131: 0 | BF131: =+SUM(BF132:BF138) -> 0 | BG131: 0 | BJ131: =+SUM(BJ132:BJ138) -> 0 | BK131: 0 | BN131: =+SUM(BN132:BN138) -> 0 | BO131: 0 | BR131: =+SUM(BR132:BR138) -> 0
A132: PM_HUT | B132: Hospitaliers universitaires titulaires | G132: 0 | J132: =+SUM(G132:I132) -> 0 | K132: 0 | N132: =+SUM(K132:M132) -> 0 | O132: 0 | R132: =+SUM(O132:Q132) -> 0 | S132: 0 | V132: =+SUM(S132:U132) -> 0 | Z132: =+SUM(W132:Y132) -> 0 | AD132: =+SUM(AA132:AC132) -> 0 | AH132: =+SUM(AE132:AG132) -> 0 | AL132: =+SUM(AI132:AK132) -> 0 | AP132: =+SUM(AM132:AO132) -> 0 | AT132: =+SUM(AQ132:AS132) -> 0 | AX132: =+SUM(AU132:AW132) -> 0 | BB132: =+SUM(AY132:BA132) -> 0 | BF132: =+SUM(BC132:BE132) -> 0 | BJ132: =+SUM(BG132:BI132) -> 0 | BN132: =+SUM(BK132:BM132) -> 0 | BR132: =+SUM(BO132:BQ132) -> 0
A133: PM_PHT | B133: Praticiens hospitaliers titulaires | G133: 4 | J133: 4 | K133: 0 | N133: 0 | O133: 1 | R133: 1 | S133: 0 | V133: 0 | W133: 3 | Z133: 3 | AD133: 0 | AH133: 0 | AL133: 0 | AP133: 0 | AT133: 0 | AX133: 0 | BB133: 0 | BF133: 0 | BJ133: 0 | BN133: 0 | BR133: 0
A134: PM_ASS | B134: Assistants | G134: 0 | J134: 0 | K134: 0 | N134: 0 | O134: 0 | R134: 0 | S134: 0 | V134: 0 | Z134: 0 | AD134: 0 | AH134: 0 | AL134: 0 | AP134: 0 | AT134: 0 | AX134: 0 | BB134: 0 | BF134: 0 | BJ134: 0 | BN134: 0 | BR134: 0
A135: PM_HUNT | B135: Hospitaliers universitaires non titulaires | G135: 0 | J135: 0 | K135: 0 | N135: 0 | O135: 0 | R135: 0 | S135: 0 | V135: 0 | Z135: 0 | AD135: 0 | AH135: 0 | AL135: 0 | AP135: 0 | AT135: 0 | AX135: 0 | BB135: 0 | BF135: 0 | BJ135: 0 | BN135: 0 | BR135: 0
A136: PM_ATT | B136: Attachés | G136: 0 | J136: 0 | K136: 0 | N136: 0 | O136: 0 | R136: 0 | S136: 0 | V136: 0 | Z136: 0 | AD136: 0 | AH136: 0 | AL136: 0 | AP136: 0 | AT136: 0 | AX136: 0 | BB136: 0 | BF136: 0 | BJ136: 0 | BN136: 0 | BR136: 0
A137: PM_PAS | B137: Praticiens associés | G137: 0 | J137: 0 | K137: 0 | N137: 0 | O137: 0 | R137: 0 | S137: 0 | V137: 0 | Z137: 0 | AD137: 0 | AH137: 0 | AL137: 0 | AP137: 0 | AT137: 0 | AX137: 0 | BB137: 0 | BF137: 0 | BJ137: 0 | BN137: 0 | BR137: 0
A138: PM_AUT | B138: Autres salariés (y compris ne relevant pas d'un statut) | G138: 1035 | J138: 1035 | K138: 1505 | N138: 1505 | O138: 300 | R138: 300 | S138: 380 | V138: 380 | W138: 735 | Z138: 735 | AA138: 1125 | AD138: 1125 | AH138: 0 | AL138: 0 | AP138: 0 | AT138: 0 | AX138: 0 | BB138: 0 | BF138: 0 | BJ138: 0 | BN138: 0 | BR138: 0
A139: PNM_TOT | B139: Personnel non médical | G139: =+SUM(G140:G148) -> 1840 | H139: 519 | I139: 1732 | J139: 4091 | K139: 6159 | L139: 1773 | M139: 6323 | N139: 14255 | O139: 722 | P139: 154 | Q139: 377 | R139: 1253 | S139: 2800 | T139: 598 | U139: 1061 | V139: 4459 | W139: 1115 | X139: 364 | Y139: 1355 | Z139: 2834 | AA139: 3279 | AB139: 1165 | AC139: 4996 | AD139: 9440 | AE139: 0 | AF139: 0 | AG139: 0 | AH139: 0 | AI139: 0 | AJ139: 0 | AK139: 0 | AL139: 0 | AM139: 0 | AN139: 0 | AO139: 0 | AP139: 0 | AQ139: 0 | AR139: 0 | AS139: 0 | AT139: 0 | AU139: 0 | AV139: 0 | AW139: 0 | AX139: 0 | AY139: 0 | AZ139: 0 | BA139: 0 | BB139: 0 | BC139: 0 | BD139: 0 | BE139: 0 | BF139: 0 | BG139: 72 | BH139: 7 | BI139: 264 | BJ139: 343 | BK139: 0 | BL139: 0 | BM139: 0 | BN139: 0 | BO139: 3 | BP139: 0 | BQ139: 0 | BR139: 3
A140: PNM_SOI | B140: Soins | G140: 1329 | H140: 214 | I140: 1074 | J140: =+SUM(G140:I140) -> 2617 | K140: 5277 | L140: 926 | M140: 5333 | N140: =+SUM(K140:M140) -> 11536 | O140: 539 | P140: 30 | Q140: 127 | R140: =+SUM(O140:Q140) -> 696 | S140: 2447 | T140: 207 | U140: 670 | V140: =+SUM(S140:U140) -> 3324 | W140: 789 | X140: 184 | Y140: 947 | Z140: =+SUM(W140:Y140) -> 1920 | AA140: 2826 | AB140: 719 | AC140: 4478 | AD140: =+SUM(AA140:AC140) -> 8023 | AH140: =+SUM(AE140:AG140) -> 0 | AL140: =+SUM(AI140:AK140) -> 0 | AP140: =+SUM(AM140:AO140) -> 0 | AT140: =+SUM(AQ140:AS140) -> 0 | AX140: =+SUM(AU140:AW140) -> 0 | BB140: =+SUM(AY140:BA140) -> 0 | BF140: =+SUM(BC140:BE140) -> 0 | BI140: 184 | BJ140: =+SUM(BG140:BI140) -> 184 | BN140: =+SUM(BK140:BM140) -> 0 | BO140: 3 | BR140: =+SUM(BO140:BQ140) -> 3
A141: PNM_REE | B141: Rééducation | G141: 0 | H141: 0 | I141: 0 | J141: 0 | K141: 0 | L141: 0 | M141: 0 | N141: 0 | O141: 0 | P141: 0 | Q141: 0 | R141: 0 | S141: 0 | T141: 0 | U141: 0 | V141: 0 | Z141: 0 | AD141: 0 | AH141: 0 | AL141: 0 | AP141: 0 | AT141: 0 | AX141: 0 | BB141: 0 | BF141: 0 | BJ141: 0 | BN141: 0 | BR141: 0
A142: PNM_MT | B142: Médico-technique | G142: 294 | H142: 34 | I142: 0 | J142: 328 | K142: 528 | L142: 129 | M142: 0 | N142: 657 | O142: 91 | P142: 22 | Q142: 0 | R142: 113 | S142: 235 | T142: 34 | U142: 0 | V142: 269 | W142: 203 | X142: 11 | Y142: 0 | Z142: 214 | AA142: 219 | AB142: 95 | AD142: 314 | AH142: 0 | AL142: 0 | AP142: 0 | AT142: 0 | AX142: 0 | BB142: 0 | BF142: 0 | BG142: 72 | BJ142: 72 | BN142: 0 | BR142: 0
A143: PNM_ADM | B143: Administrative | G143: 107 | H143: 0 | I143: 5 | J143: 112 | K143: 245 | L143: 635 | M143: 759 | N143: 1639 | O143: 45 | P143: 0 | Q143: 3 | R143: 48 | S143: 98 | T143: 309 | U143: 342 | V143: 749 | W143: 61 | X143: 0 | Y143: 2 | Z143: 63 | AA143: 146 | AB143: 317 | AC143: 417 | AD143: 880 | AH143: 0 | AL143: 0 | AP143: 0 | AT143: 0 | AX143: 0 | BB143: 0 | BF143: 0 | BH143: 7 | BJ143: 7 | BN143: 0 | BR143: 0
A144: PNM_OUV | B144: Ouvrière et technique | G144: 110 | H144: 271 | I144: 653 | J144: 1034 | K144: 109 | L144: 74 | M144: 231 | N144: 414 | O144: 47 | P144: 102 | Q144: 247 | R144: 396 | S144: 20 | T144: 41 | U144: 49 | V144: 110 | W144: 62 | X144: 169 | Y144: 406 | Z144: 637 | AA144: 88 | AB144: 32 | AC144: 101 | AD144: 221 | AH144: 0 | AL144: 0 | AP144: 0 | AT144: 0 | AX144: 0 | BB144: 0 | BF144: 0 | BG144: 0 | BI144: 80 | BJ144: 80 | BN144: 0 | BR144: 0
A145: PNM_SOC | B145: Socio-éducative | G145: 0 | H145: 0 | I145: 0 | J145: 0 | K145: 0 | L145: 9 | M145: 0 | N145: 9 | O145: 0 | P145: 0 | Q145: 0 | R145: 0 | S145: 0 | T145: 7 | U145: 0 | V145: 7 | Z145: 0 | AA145: 0 | AB145: 2 | AC145: 0 | AD145: 2 | AH145: 0 | AL145: 0 | AP145: 0 | AT145: 0 | AX145: 0 | BB145: 0 | BF145: 0 | BJ145: 0 | BN145: 0 | BR145: 0
A146: PNM_DIR | B146: Personnels de direction | G146: 0 | H146: 0 | I146: 0 | J146: 0 | K146: 0 | L146: 0 | M146: 0 | N146: 0 | O146: 0 | P146: 0 | Q146: 0 | R146: 0 | S146: 0 | T146: 0 | U146: 0 | V146: 0 | Z146: 0 | AD146: 0 | AH146: 0 | AL146: 0 | AP146: 0 | AT146: 0 | AX146: 0 | BB146: 0 | BF146: 0 | BJ146: 0 | BN146: 0 | BR146: 0
A147: PNM_PSY | B147: Psychologues | G147: 0 | H147: 0 | I147: 0 | J147: 0 | K147: 0 | L147: 0 | M147: 0 | N147: 0 | O147: 0 | P147: 0 | Q147: 0 | R147: 0 | S147: 0 | T147: 0 | U147: 0 | V147: 0 | Z147: 0 | AD147: 0 | AH147: 0 | AL147: 0 | AP147: 0 | AT147: 0 | AX147: 0 | BB147: 0 | BF147: 0 | BJ147: 0 | BN147: 0 | BR147: 0
A148: PNM_SF | B148: Sages-femmes | G148: 0 | H148: 0 | I148: 0 | J148: 0 | K148: 0 | L148: 0 | M148: 0 | N148: 0 | O148: 0 | P148: 0 | Q148: 0 | R148: 0 | S148: 0 | T148: 0 | U148: 0 | V148: 0 | Z148: 0 | AD148: 0 | AH148: 0 | AL148: 0 | AP148: 0 | AT148: 0 | AX148: 0 | BB148: 0 | BF148: 0 | BJ148: 0 | BN148: 0 | BR148: 0
A149: TOT_PMPNM | B149: TOTAL | G149: =SUM(G139,G131) -> 2879 | H149: 519 | I149: 1732 | J149: 5130 | K149: 7664 | L149: 1773 | M149: 6323 | N149: 15760 | O149: 1023 | P149: 154 | Q149: 377 | R149: 1554 | S149: 3180 | T149: 598 | U149: 1061 | V149: 4839 | W149: 1853 | X149: 364 | Y149: 1355 | Z149: 3572 | AA149: 4404 | AB149: 1165 | AC149: 4996 | AD149: 10565 | AE149: 0 | AF149: 0 | AG149: 0 | AH149: 0 | AI149: 0 | AJ149: 0 | AK149: 0 | AL149: 0 | AM149: 0 | AN149: 0 | AO149: 0 | AP149: 0 | AQ149: 0 | AR149: 0 | AS149: 0 | AT149: 0 | AU149: 0 | AV149: 0 | AW149: 0 | AX149: 0 | AY149: 0 | AZ149: 0 | BA149: 0 | BB149: 0 | BC149: 0 | BD149: 0 | BE149: 0 | BF149: 0 | BG149: 72 | BH149: 7 | BI149: 264 | BJ149: 343 | BK149: 0 | BL149: 0 | BM149: 0 | BN149: 0 | BO149: 3 | BP149: 0 | BQ149: 0 | BR149: 3
G150: FOR_026_F_B | H150: FOR 026-F b) | I150: 4__Formation | J150: 4__FORMATION | K150: 4. Formation
B155: BDS FPH 026-F bis | D155: Nombre de stagiaires en formation | Z155: Retour haut de page
G157: NB_STAGT | H157: NB_STAG1 | I157: NB_STAG2 | J157: NB_STAG3 | K157: NB_STAG4 | L157: NB_STAG5 | M157: NB_STAG6 | N157: NB_STAG7
B158: Statut d'emploi (personnel médical) ou filière (personnel non médical) | H158: Dont
G159: Nombre de stagiaires en formation | H159: Formation statutaire | I159: Formation continue | J159: Préparation aux concours et examens | K159: Réalisation de bilans de compétences | L159: Validation des acquis de l’expérience (VAE) | M159: Congé de formation professionnelle | N159: Période de professionnalisation
A161: PM_TOT | B161: Personnel médical | G161: =+SUM(G162:G168) -> 0 | H161: 0 | I161: 0 | J161: 0 | K161: 0 | L161: 0 | M161: 0 | N161: 0
A162: PM_HUT | B162: Hospitaliers universitaires titulaires
A163: PM_PHT | B163: Praticiens hospitaliers titulaires
A164: PM_ASS | B164: Assistants
A165: PM_HUNT | B165: Hospitaliers universitaires non titulaires
A166: PM_ATT | B166: Attachés
A167: PM_PAS | B167: Praticiens associés
A168: PM_AUT | B168: Autres salariés (y compris ne relevant pas d'un statut)
A169: PNM_TOT | B169: Personnel non médical | G169: =+SUM(G170:G178) -> 0 | H169: 0 | I169: 0 | J169: 0 | K169: 0 | L169: 0 | M169: 0 | N169: 0
A170: PNM_SOI | B170: Soins
A171: PNM_REE | B171: Rééducation
A172: PNM_MT | B172: Médico-technique
A173: PNM_ADM | B173: Administrative
A174: PNM_OUV | B174: Ouvrière et technique
A175: PNM_SOC | B175: Socio-éducative
A176: PNM_DIR | B176: Personnels de direction
A177: PNM_PSY | B177: Psychologues
A178: PNM_SF | B178: Sages-femmes
A179: TOT_PMPNM | B179: TOTAL | G179: =SUM(G169,G161) -> 0 | H179: 0 | I179: 0 | J179: 0 | K179: 0 | L179: 0 | M179: 0 | N179: 0
B181: Catégorie hiérarchique | G181: Nombre de stagiaires en formation | H181: Dont
H182: Formation statutaire | I182: Formation continue | J182: Préparation aux concours et examens | K182: Réalisation de bilans de compétences | L182: Validation des acquis de l’expérience (VAE) | M182: Congé de formation professionnelle | N182: Période de professionnalisation
A183: CATA | B183: A
A184: CATB | B184: B
A185: CATC | B185: C
A186: CATX | B186: NC (non catégorisé A B C)
A187: TOT_CAT | B187: TOTAL | G187: =SUM(G183:G186) -> 0 | H187: 0 | I187: 0 | J187: 0 | K187: 0 | L187: 0 | M187: 0 | N187: 0
B189: Sexe | G189: Nombre de stagiaires en formation | H189: Dont
H190: Formation statutaire | I190: Formation continue | J190: Préparation aux concours et examens | K190: Réalisation de bilans de compétences | L190: Validation des acquis de l’expérience (VAE) | M190: Congé de formation professionnelle | N190: Période de professionnalisation
A191: HOMME | B191: H
A192: FEMME | B192: F
A193: TOT_SEXE | B193: TOTAL | G193: =+SUM(G191:G192) -> 0 | H193: 0 | I193: 0 | J193: 0 | K193: 0 | L193: 0 | M193: 0 | N193: 0
G194: FOR_026BIS_F_A | H194: FOR 026bis-F a) | I194: 4__Formation | J194: 4__FORMATION | K194: 4. Formation
G197: NB_STAHA | H197: NB_STAHB | I197: NB_STAHC | J197: NB_STAHT | K197: NB_STAFA | L197: NB_STAFB | M197: NB_STAFC | N197: NB_STAFT | O197: NB_STA1HA | P197: NB_STA1HB | Q197: NB_STA1HC | R197: NB_STA1HT | S197: NB_STA1FA | T197: NB_STA1FB | U197: NB_STA1FC | V197: NB_STA1FT | W197: NB_STA2HA | X197: NB_STA2HB | Y197: NB_STA2HC | Z197: NB_STA2HT | AA197: NB_STA2FA | AB197: NB_STA2FB | AC197: NB_STA2FC | AD197: NB_STA2FT | AE197: NB_STA3HA | AF197: NB_STA3HB | AG197: NB_STA3HC | AH197: NB_STA3HT | AI197: NB_STA3FA | AJ197: NB_STA3FB | AK197: NB_STA3FC | AL197: NB_STA3FT | AM197: NB_STA4HA | AN197: NB_STA4HB | AO197: NB_STA4HC | AP197: NB_STA4HT | AQ197: NB_STA4FA | AR197: NB_STA4FB | AS197: NB_STA4FC | AT197: NB_STA4FT | AU197: NB_STA5HA | AV197: NB_STA5HB | AW197: NB_STA5HC | AX197: NB_STA5HT | AY197: NB_STA5FA | AZ197: NB_STA5FB | BA197: NB_STA5FC | BB197: NB_STA5FT | BC197: NB_STA6HA | BD197: NB_STA6HB | BE197: NB_STA6HC | BF197: NB_STA6HT | BG197: NB_STA6FA | BH197: NB_STA6FB | BI197: NB_STA6FC | BJ197: NB_STA6FT | BK197: NB_STA7HA | BL197: NB_STA7HB | BM197: NB_STA7HC | BN197: NB_STA7HT | BO197: NB_STA7FA | BP197: NB_STA7FB | BQ197: NB_STA7FC | BR197: NB_STA7FT
B198: Statut d'emploi (personnel médical) ou filière (personnel non médical) | G198: Nombre de stagiaires en formation | O198: Dont
O199: Formation statutaire | W199: Formation continue | AE199: Préparation aux concours et examens | AM199: Réalisation de bilans de compétences | AU199: Validation des acquis de l’expérience (VAE) | BC199: Congé de formation professionnelle | BK199: Période de professionnalisation
G200: H | K200: F | O200: H | S200: F | W200: H | AA200: F | AE200: H | AI200: F | AM200: H | AQ200: F | AU200: H | AY200: F | BC200: H | BG200: F | BK200: H | BO200: F
G201: A | H201: B | I201: C | J201: TOTAL | K201: A | L201: B | M201: C | N201: TOTAL | O201: A | P201: B | Q201: C | R201: TOTAL | S201: A | T201: B | U201: C | V201: TOTAL | W201: A | X201: B | Y201: C | Z201: TOTAL | AA201: A | AB201: B | AC201: C | AD201: TOTAL | AE201: A | AF201: B | AG201: C | AH201: TOTAL | AI201: A | AJ201: B | AK201: C | AL201: TOTAL | AM201: A | AN201: B | AO201: C | AP201: TOTAL | AQ201: A | AR201: B | AS201: C | AT201: TOTAL | AU201: A | AV201: B | AW201: C | AX201: TOTAL | AY201: A | AZ201: B | BA201: C | BB201: TOTAL | BC201: A | BD201: B | BE201: C | BF201: TOTAL | BG201: A | BH201: B | BI201: C | BJ201: TOTAL | BK201: A | BL201: B | BM201: C | BN201: TOTAL | BO201: A | BP201: B | BQ201: C | BR201: TOTAL
A202: PM_TOT | B202: Personnel médical | G202: =+SUM(G203:G209) -> 0 | J202: =+SUM(J203:J209) -> 0 | K202: 0 | N202: =+SUM(N203:N209) -> 0 | O202: 0 | R202: =+SUM(R203:R209) -> 0 | S202: 0 | V202: =+SUM(V203:V209) -> 0 | W202: 0 | Z202: =+SUM(Z203:Z209) -> 0 | AA202: 0 | AD202: =+SUM(AD203:AD209) -> 0 | AE202: 0 | AH202: =+SUM(AH203:AH209) -> 0 | AI202: 0 | AL202: =+SUM(AL203:AL209) -> 0 | AM202: 0 | AP202: =+SUM(AP203:AP209) -> 0 | AQ202: 0 | AT202: =+SUM(AT203:AT209) -> 0 | AU202: 0 | AX202: =+SUM(AX203:AX209) -> 0 | AY202: 0 | BB202: =+SUM(BB203:BB209) -> 0 | BC202: 0 | BF202: =+SUM(BF203:BF209) -> 0 | BG202: 0 | BJ202: =+SUM(BJ203:BJ209) -> 0 | BK202: 0 | BN202: =+SUM(BN203:BN209) -> 0 | BO202: 0 | BR202: =+SUM(BR203:BR209) -> 0
A203: PM_HUT | B203: Hospitaliers universitaires titulaires | J203: =+SUM(G203:I203) -> 0 | N203: =+SUM(K203:M203) -> 0 | R203: =+SUM(O203:Q203) -> 0 | V203: =+SUM(S203:U203) -> 0 | Z203: =+SUM(W203:Y203) -> 0 | AD203: =+SUM(AA203:AC203) -> 0 | AH203: =+SUM(AE203:AG203) -> 0 | AL203: =+SUM(AI203:AK203) -> 0 | AP203: =+SUM(AM203:AO203) -> 0 | AT203: =+SUM(AQ203:AS203) -> 0 | AX203: =+SUM(AU203:AW203) -> 0 | BB203: =+SUM(AY203:BA203) -> 0 | BF203: =+SUM(BC203:BE203) -> 0 | BJ203: =+SUM(BG203:BI203) -> 0 | BN203: =+SUM(BK203:BM203) -> 0 | BR203: =+SUM(BO203:BQ203) -> 0
A204: PM_PHT | B204: Praticiens hospitaliers titulaires | J204: 0 | N204: 0 | R204: 0 | V204: 0 | Z204: 0 | AD204: 0 | AH204: 0 | AL204: 0 | AP204: 0 | AT204: 0 | AX204: 0 | BB204: 0 | BF204: 0 | BJ204: 0 | BN204: 0 | BR204: 0
A205: PM_ASS | B205: Assistants | J205: 0 | N205: 0 | R205: 0 | V205: 0 | Z205: 0 | AD205: 0 | AH205: 0 | AL205: 0 | AP205: 0 | AT205: 0 | AX205: 0 | BB205: 0 | BF205: 0 | BJ205: 0 | BN205: 0 | BR205: 0
A206: PM_HUNT | B206: Hospitaliers universitaires non titulaires | J206: 0 | N206: 0 | R206: 0 | V206: 0 | Z206: 0 | AD206: 0 | AH206: 0 | AL206: 0 | AP206: 0 | AT206: 0 | AX206: 0 | BB206: 0 | BF206: 0 | BJ206: 0 | BN206: 0 | BR206: 0
A207: PM_ATT | B207: Attachés | J207: 0 | N207: 0 | R207: 0 | V207: 0 | Z207: 0 | AD207: 0 | AH207: 0 | AL207: 0 | AP207: 0 | AT207: 0 | AX207: 0 | BB207: 0 | BF207: 0 | BJ207: 0 | BN207: 0 | BR207: 0
A208: PM_PAS | B208: Praticiens associés | J208: 0 | N208: 0 | R208: 0 | V208: 0 | Z208: 0 | AD208: 0 | AH208: 0 | AL208: 0 | AP208: 0 | AT208: 0 | AX208: 0 | BB208: 0 | BF208: 0 | BJ208: 0 | BN208: 0 | BR208: 0
A209: PM_AUT | B209: Autres salariés (y compris ne relevant pas d'un statut) | J209: 0 | N209: 0 | R209: 0 | V209: 0 | Z209: 0 | AD209: 0 | AH209: 0 | AL209: 0 | AP209: 0 | AT209: 0 | AX209: 0 | BB209: 0 | BF209: 0 | BJ209: 0 | BN209: 0 | BR209: 0
A210: PNM_TOT | B210: Personnel non médical | G210: =+SUM(G211:G219) -> 0 | H210: 0 | I210: 0 | J210: 0 | K210: 0 | L210: 0 | M210: 0 | N210: 0 | O210: 0 | P210: 0 | Q210: 0 | R210: 0 | S210: 0 | T210: 0 | U210: 0 | V210: 0 | W210: 0 | X210: 0 | Y210: 0 | Z210: 0 | AA210: 0 | AB210: 0 | AC210: 0 | AD210: 0 | AE210: 0 | AF210: 0 | AG210: 0 | AH210: 0 | AI210: 0 | AJ210: 0 | AK210: 0 | AL210: 0 | AM210: 0 | AN210: 0 | AO210: 0 | AP210: 0 | AQ210: 0 | AR210: 0 | AS210: 0 | AT210: 0 | AU210: 0 | AV210: 0 | AW210: 0 | AX210: 0 | AY210: 0 | AZ210: 0 | BA210: 0 | BB210: 0 | BC210: 0 | BD210: 0 | BE210: 0 | BF210: 0 | BG210: 0 | BH210: 0 | BI210: 0 | BJ210: 0 | BK210: 0 | BL210: 0 | BM210: 0 | BN210: 0 | BO210: 0 | BP210: 0 | BQ210: 0 | BR210: 0
A211: PNM_SOI | B211: Soins | J211: =+SUM(G211:I211) -> 0 | N211: =+SUM(K211:M211) -> 0 | R211: =+SUM(O211:Q211) -> 0 | V211: =+SUM(S211:U211) -> 0 | Z211: =+SUM(W211:Y211) -> 0 | AD211: =+SUM(AA211:AC211) -> 0 | AH211: =+SUM(AE211:AG211) -> 0 | AL211: =+SUM(AI211:AK211) -> 0 | AP211: =+SUM(AM211:AO211) -> 0 | AT211: =+SUM(AQ211:AS211) -> 0 | AX211: =+SUM(AU211:AW211) -> 0 | BB211: =+SUM(AY211:BA211) -> 0 | BF211: =+SUM(BC211:BE211) -> 0 | BJ211: =+SUM(BG211:BI211) -> 0 | BN211: =+SUM(BK211:BM211) -> 0 | BR211: =+SUM(BO211:BQ211) -> 0
A212: PNM_REE | B212: Rééducation | J212: 0 | N212: 0 | R212: 0 | V212: 0 | Z212: 0 | AD212: 0 | AH212: 0 | AL212: 0 | AP212: 0 | AT212: 0 | AX212: 0 | BB212: 0 | BF212: 0 | BJ212: 0 | BN212: 0 | BR212: 0
A213: PNM_MT | B213: Médico-technique | J213: 0 | N213: 0 | R213: 0 | V213: 0 | Z213: 0 | AD213: 0 | AH213: 0 | AL213: 0 | AP213: 0 | AT213: 0 | AX213: 0 | BB213: 0 | BF213: 0 | BJ213: 0 | BN213: 0 | BR213: 0
A214: PNM_ADM | B214: Administrative | J214: 0 | N214: 0 | R214: 0 | V214: 0 | Z214: 0 | AD214: 0 | AH214: 0 | AL214: 0 | AP214: 0 | AT214: 0 | AX214: 0 | BB214: 0 | BF214: 0 | BJ214: 0 | BN214: 0 | BR214: 0
A215: PNM_OUV | B215: Ouvrière et technique | J215: 0 | N215: 0 | R215: 0 | V215: 0 | Z215: 0 | AD215: 0 | AH215: 0 | AL215: 0 | AP215: 0 | AT215: 0 | AX215: 0 | BB215: 0 | BF215: 0 | BJ215: 0 | BN215: 0 | BR215: 0
A216: PNM_SOC | B216: Socio-éducative | J216: 0 | N216: 0 | R216: 0 | V216: 0 | Z216: 0 | AD216: 0 | AH216: 0 | AL216: 0 | AP216: 0 | AT216: 0 | AX216: 0 | BB216: 0 | BF216: 0 | BJ216: 0 | BN216: 0 | BR216: 0
A217: PNM_DIR | B217: Personnels de direction | J217: 0 | N217: 0 | R217: 0 | V217: 0 | Z217: 0 | AD217: 0 | AH217: 0 | AL217: 0 | AP217: 0 | AT217: 0 | AX217: 0 | BB217: 0 | BF217: 0 | BJ217: 0 | BN217: 0 | BR217: 0
A218: PNM_PSY | B218: Psychologues | J218: 0 | N218: 0 | R218: 0 | V218: 0 | Z218: 0 | AD218: 0 | AH218: 0 | AL218: 0 | AP218: 0 | AT218: 0 | AX218: 0 | BB218: 0 | BF218: 0 | BJ218: 0 | BN218: 0 | BR218: 0
A219: PNM_SF | B219: Sages-femmes | J219: 0 | N219: 0 | R219: 0 | V219: 0 | Z219: 0 | AD219: 0 | AH219: 0 | AL219: 0 | AP219: 0 | AT219: 0 | AX219: 0 | BB219: 0 | BF219: 0 | BJ219: 0 | BN219: 0 | BR219: 0
A220: TOT_PMPNM | B220: TOTAL | G220: =SUM(G210,G202) -> 0 | H220: 0 | I220: 0 | J220: 0 | K220: 0 | L220: 0 | M220: 0 | N220: 0 | O220: 0 | P220: 0 | Q220: 0 | R220: 0 | S220: 0 | T220: 0 | U220: 0 | V220: 0 | W220: 0 | X220: 0 | Y220: 0 | Z220: 0 | AA220: 0 | AB220: 0 | AC220: 0 | AD220: 0 | AE220: 0 | AF220: 0 | AG220: 0 | AH220: 0 | AI220: 0 | AJ220: 0 | AK220: 0 | AL220: 0 | AM220: 0 | AN220: 0 | AO220: 0 | AP220: 0 | AQ220: 0 | AR220: 0 | AS220: 0 | AT220: 0 | AU220: 0 | AV220: 0 | AW220: 0 | AX220: 0 | AY220: 0 | AZ220: 0 | BA220: 0 | BB220: 0 | BC220: 0 | BD220: 0 | BE220: 0 | BF220: 0 | BG220: 0 | BH220: 0 | BI220: 0 | BJ220: 0 | BK220: 0 | BL220: 0 | BM220: 0 | BN220: 0 | BO220: 0 | BP220: 0 | BQ220: 0 | BR220: 0
G221: FOR_026BIS_F_B | H221: FOR 026bis-F b) | I221: 4__Formation | J221: 4__FORMATION | K221: 4. Formation
B226: BDS FPH 027-F | D226: Nombre de demandes de congés formation | Z226: Retour haut de page
G228: NBCF
B229: Décision prise | G229: Nombre de demandes de congés formation
A231: DROIT | B231: Accord de droit
A232: ACCORD | B232: Accord | G232: 59
A233: REFUS | B233: Refus
A234: TOT_DDE | B234: TOTAL | G234: =SUM(G232:G233) -> 59
B236: Statut d'emploi (personnel médical) ou filière (personnel non médical) | G236: Nombre de demandes de congés formation
A237: PM_TOT | B237: Personnel médical | G237: =+SUM(G238:G244) -> 0
A238: PM_HUT | B238: Hospitaliers universitaires titulaires | G238: 0
A239: PM_PHT | B239: Praticiens hospitaliers titulaires | G239: 0
... 52 more rows

Sheet 5. Rémunérations
B1: 5. RÉMUNÉRATIONS | S1: Retour au sommaire
B2: Générer le fichier d'import du thème 5. Rémunérations pour la plateforme de saisie en ligne
D4: BDS FPH 028-O | F4: Masse salariale en euros
D5: BDS FPH 030-O | F5: Nombre d'agents bénéficiant de la GIPA
C6: ð Pour les agents sur emploi permanent rémunérés au cours de l'année
D7: BDS FPH 031-O | F7: Total des rémunérations annuelles brutes versées
D8: BDS FPH 032-O | F8: Nombre d'équivalents temps plein annuels rémunérés
C9: ð Pour les agents des autres catégories et autres statuts rémunérés (non permaments) au cours de l'année
D10: BDS FPH 034-O | F10: Total des rémunérations annuelles brutes versées, dont heures supplémentaires
D11: BDS FPH 035-O | F11: Nombre d'équivalent temps plein rémunérés
B17: BDS FPH 028-O | D17: Masse salariale en euros | S17: Retour haut de page
H19: MONT
B20: Ensemble des dépenses de rémunération et charges sociales | H20: Masse salariale en euros*
A21: MS_PM | B21: Personnel médical | H21: 54792489
A22: MS_PNM | B22: Personnel non médical | H22: 177730573
A23: TOT_MS | B23: TOTAL | H23: =+SUM(H21:H22) -> 232523062
B24: (*) arrondi à l'euro
H25: REM_028 | I25: REM 028 | J25: 5__Rémunérations | K25: 5__REMUNERATIONS | L25: 5. Rémunérations
B30: BDS FPH 030-O | D30: Nombre d'agents bénéficiant de la GIPA | S30: Retour haut de page
E32: NB_GIPA
B33: Filière (personnels non médicaux) | E33: Nombre d'agents bénéficiant de la GIPA
A35: PNM_SOI | B35: Soins | E35: 60
A36: PNM_REE | B36: Rééducation | E36: 3
A37: PNM_MT | B37: Médico-technique | E37: 10
A38: PNM_ADM | B38: Administrative | E38: 64
A39: PNM_OUV | B39: Ouvrière et technique | E39: 31
A40: PNM_SOC | B40: Socio-éducative | E40: 5
A41: PNM_DIR | B41: Personnels de direction | E41: 0
A42: PNM_PSY | B42: Psychologues | E42: 2
A43: PNM_SF | B43: Sages-femmes | E43: 0
A44: PNM_TOT | B44: TOTAL | E44: =+SUM(E35:E43) -> 175
B46: Catégorie hiérarchique | E46: Nombre d'agents bénéficiant de la GIPA
A47: CATA | B47: A | E47: 20
A48: CATB | B48: B | E48: 130
A49: CATC | B49: C | E49: 25
A50: CATX | B50: NC (non catégorisé A B C) | E50: 0
A51: TOT_CAT | B51: TOTAL | E51: =+SUM(E47:E50) -> 175
B53: Sexe | E53: Nombre d'agents bénéficiant de la GIPA
A54: HOMME | B54: H | E54: 37
A55: FEMME | B55: F | E55: 138
A56: TOT_SEXE | B56: TOTAL | E56: =+SUM(E54:E55) -> 175
E57: REM_030 | F57: REM 030 | G57: 5__Rémunérations | H57: 5__REMUNERATIONS | I57: 5. Rémunérations
B62: ð Pour les agents sur emploi permanent rémunérés au cours de l'année | S62: Retour haut de page
B65: BDS FPH 031-O | D65: Total des rémunérations annuelles brutes versées (Agents sur emploi permanent) | S65: Retour haut de page
F67: REMUNER | G67: FO_PRIME | H67: FO_NBI | I67: FO_FS | J67: FO_IR | K67: FO_SFT | L67: PH_PRIME | M67: PH_IESPE | N67: PH_TPSADD | O67: PH_GARDE
B68: Statut d'emploi (personnel médical) ou filière (personnel non médical) | F68: Total des rémunérations annuelles brutes versées en euros * | G68: dont pour les fonctionnaires : | L68: dont pour les praticiens hospitaliers :
B69: Agents sur emploi permanent | G69: Primes et indemnités | H69: dont NBI et primes de sujétion des aides-soignants | I69: dont heures supplémentaires | J69: dont indemnité de résidence | K69: dont supplément familial de traitement | L69: Primes et indemnités | M69: dont indemnité d’engagement de service public exclusif (IESPE) | N69: dont temps de travail additionnel | O69: dont gardes et astreintes
A71: PM_TOT | B71: Personnel médical | F71: =+SUM(F72:F78) -> 23789594 | G71: 0 | H71: 0 | I71: 0 | J71: 0 | K71: 0 | L71: 3060070 | M71: 2222956 | N71: 750156 | O71: 2583394
A72: PM_HUT | B72: Hospitaliers universitaires titulaires | F72: 0 | G72: 0 | H72: 0 | I72: 0 | J72: 0 | K72: 0 | L72: 0 | M72: 0 | N72: 0 | O72: 0
A73: PM_PHT | B73: Praticiens hospitaliers titulaires | F73: 23789594 | G73: 0 | H73: 0 | I73: 0 | J73: 0 | K73: 0 | L73: 3060070 | M73: 2222956 | N73: 750156 | O73: 2583394
A74: PM_ASS | B74: Assistants | F74: 0 | G74: 0 | H74: 0 | I74: 0 | J74: 0 | K74: 0 | L74: 0 | M74: 0 | N74: 0 | O74: 0
A75: PM_HUNT | B75: Hospitaliers universitaires non titulaires | F75: 0 | G75: 0 | H75: 0 | I75: 0 | J75: 0 | K75: 0 | L75: 0 | M75: 0 | N75: 0 | O75: 0
A76: PM_ATT | B76: Attachés | F76: 0 | G76: 0 | H76: 0 | I76: 0 | J76: 0 | K76: 0 | L76: 0 | M76: 0 | N76: 0 | O76: 0
A77: PM_PAS | B77: Praticiens associés | F77: 0 | G77: 0 | H77: 0 | I77: 0 | J77: 0 | K77: 0 | L77: 0 | M77: 0 | N77: 0 | O77: 0
A78: PM_AUT | B78: Autres salariés (y compris ne relevant pas d'un statut) | F78: 0 | G78: 0 | H78: 0 | I78: 0 | J78: 0 | K78: 0 | L78: 0 | M78: 0 | N78: 0 | O78: 0
A79: PNM_TOT | B79: Personnel non médical | F79: =+SUM(F80:F88) -> 111338388 | G79: 92084397 | H79: 2059223 | I79: 1547301 | J79: 779198 | K79: 844426
A80: PNM_SOI | B80: Soins | F80: 74156529 | G80: 62417983 | H80: 1746054 | I80: 1220315 | J80: 512434 | K80: 561334
A81: PNM_REE | B81: Rééducation | F81: 1738372 | G81: 1370996 | H81: 26104 | I81: 18430 | J81: 13552 | K81: 11454
A82: PNM_MT | B82: Médico-technique | F82: 7193195 | G82: 6118855 | H82: 111077 | I82: 113325 | J82: 52931 | K82: 70287
A83: PNM_ADM | B83: Administrative | F83: 13153212 | G83: 10103779 | H83: 119036 | I83: 34557 | J83: 95822 | K83: 89686
A84: PNM_OUV | B84: Ouvrière et technique | F84: 9590421 | G84: 7026873 | H84: 41063 | I84: 109524 | J84: 67611 | K84: 76007
A85: PNM_SOC | B85: Socio-éducative | F85: 769482 | G85: 635637 | H85: 2345 | I85: 0 | J85: 5991 | K85: 3131
A86: PNM_DIR | B86: Personnels de direction | F86: 1270259 | G86: 1270259 | H86: 12313 | I86: 0 | J86: 6089 | K86: 4739
A87: PNM_PSY | B87: Psychologues | F87: 808169 | G87: 754607 | H87: 0 | I87: 0 | J87: 6359 | K87: 5411
A88: PNM_SF | B88: Sages-femmes | F88: 2658749 | G88: 2385408 | H88: 1231 | I88: 51150 | J88: 18409 | K88: 22377
A89: TOT_PMPNM | B89: TOTAL | F89: =SUM(F79,F71) -> 135127982 | G89: 92084397 | H89: 2059223 | I89: 1547301 | J89: 779198 | K89: 844426 | L89: 3060070 | M89: 2222956 | N89: 750156 | O89: 2583394
B90: (*) arrondi à l'euro
B92: Catégorie hiérarchique | F92: Total des rémunérations annuelles brutes versées en euros * | G92: dont pour les fonctionnaires : | L92: dont pour les praticiens hospitaliers :
B93: Agents sur emploi permanent | G93: Primes et indemnités | H93: dont NBI et primes de sujétion des aides-soignants | I93: dont heures supplémentaires | J93: dont indemnité de résidence | K93: dont supplément familial de traitement | L93: Primes et indemnités | M93: dont indemnité d’engagement de service public exclusif (IESPE) | N93: dont temps de travail additionnel | O93: dont gardes et astreintes
A94: CATA | B94: A | F94: 78199710 | G94: 48906140 | H94: 317680 | I94: 1114871 | J94: 380634 | K94: 398008 | L94: 3060070 | M94: 2222956 | N94: 750156 | O94: 2595595
A95: CATB | B95: B | F95: 30779347 | G95: 29299312 | H95: 1241802 | I95: 302214 | J95: 210399 | K95: 222871 | L95: 0 | M95: 0 | N95: 0 | O95: 0
A96: CATC | B96: C | F96: 26342344 | G96: 13878947 | H96: 499744 | I96: 130217 | J96: 188211 | K96: 224692 | L96: 0 | M96: 0 | N96: 0 | O96: 0
A97: CATX | B97: NC (non catégorisé A B C) | F97: 0 | G97: 0 | H97: 0 | I97: 0 | J97: 0 | K97: 0 | L97: 0 | M97: 0 | N97: 0 | O97: 0
A98: TOT_CAT | B98: TOTAL | F98: =SUM(F94:F97) -> 135321401 | G98: 92084399 | H98: 2059226 | I98: 1547302 | J98: 779244 | K98: 845571 | L98: 3060070 | M98: 2222956 | N98: 750156 | O98: 2595595
B99: (*) arrondi à l'euro
B101: Âge ou tranches d'âge | F101: Total des rémunérations annuelles brutes versées en euros * | G101: dont pour les fonctionnaires : | L101: dont pour les praticiens hospitaliers :
B102: Agents sur emploi permanent | G102: Primes et indemnités | H102: dont NBI et primes de sujétion des aides-soignants | I102: dont heures supplémentaires | J102: dont indemnité de résidence | K102: dont supplément familial de traitement | L102: Primes et indemnités | M102: dont indemnité d’engagement de service public exclusif (IESPE) | N102: dont temps de travail additionnel | O102: dont gardes et astreintes
A103: AGE25 | B103: - 25 ans | F103: 3980131 | G103: 844649 | H103: 42794 | I103: 37895 | J103: 27772 | K103: 47 | L103: 0 | M103: 0 | N103: 0 | O103: 0
A104: AGE2540 | B104: 25-40 ans | F104: 40555792 | G104: 26335352 | H104: 575194 | I104: 609812 | J104: 251210 | K104: 360525 | L104: 667021 | M104: 542114 | N104: 153564 | O104: 537137
A105: AGE4155 | B105: 41-55 ans | F105: 62591356 | G105: 46674177 | H105: 1045868 | I105: 699950 | J105: 360712 | K105: 481780 | L105: 1333909 | M105: 1040512 | N105: 349487 | O105: 1279895
A106: AGE55 | B106: + 55 ans | F106: 28194120 | G106: 18230221 | H106: 395370 | I106: 199644 | J106: 139549 | K106: 3220 | L106: 1059140 | M106: 640329 | N106: 247103 | O106: 778562
A107: TOT_AGE | B107: TOTAL | F107: =SUM(F103:F106) -> 135321399 | G107: 92084399 | H107: 2059226 | I107: 1547301 | J107: 779243 | K107: 845572 | L107: 3060070 | M107: 2222955 | N107: 750154 | O107: 2595594
B108: (*) arrondi à l'euro
B110: Sexe | F110: Total des rémunérations annuelles brutes versées en euros * | G110: dont pour les fonctionnaires : | L110: dont pour les praticiens hospitaliers :
B111: Agents sur emploi permanent | G111: Primes et indemnités | H111: dont NBI et primes de sujétion des aides-soignants | I111: dont heures supplémentaires | J111: dont indemnité de résidence | K111: dont supplément familial de traitement | L111: Primes et indemnités | M111: dont indemnité d’engagement de service public exclusif (IESPE) | N111: dont temps de travail additionnel | O111: dont gardes et astreintes
A112: HOMME | B112: H | F112: 36274325 | G112: 20029689 | H112: 355885 | I112: 529024 | J112: 168922 | K112: 145090 | L112: 1388135 | M112: 891291 | N112: 466561 | O112: 1409026
A113: FEMME | B113: F | F113: 99047075 | G113: 72054711 | H113: 1703341 | I113: 1018278 | J113: 610323 | K113: 700482 | L113: 1671935 | M113: 1331664 | N113: 283594 | O113: 1186568
A114: TOT_SEXE | B114: TOTAL | F114: =SUM(F112:F113) -> 135321400 | G114: 92084400 | H114: 2059226 | I114: 1547302 | J114: 779245 | K114: 845572 | L114: 3060070 | M114: 2222955 | N114: 750155 | O114: 2595594
B115: (*) arrondi à l'euro
F116: REM_031_A | G116: REM 031 a) | H116: 5__Rémunérations | I116: 5__REMUNERATIONS | J116: 5. Rémunérations
G119: REMH_AGE1 | H119: REMH_AGE2 | I119: REMH_AGE3 | J119: REMH_AGE4 | K119: REMH | L119: REMF_AGE1 | M119: REMF_AGE2 | N119: REMF_AGE3 | O119: REMF_AGE4 | P119: REMF
B120: Statut d'emploi (personnel médical) ou filière (personnel non médical) et Catégories | G120: Total des rémunérations annuelles brutes versées en euros - Sexe et tranches d'âge
G121: H | L121: F
B122: Agents sur emploi permanent | G122: - 25 ans | H122: 25-40 ans | I122: 41-55 ans | J122: + 55 ans | K122: TOTAL H | L122: - 25 ans | M122: 25-40 ans | N122: 41-55 ans | O122: + 55 ans | P122: TOTAL F
A123: PM_TOT | B123: Personnel médical | G123: =+SUM(G124:G130) -> 0 | H123: 1285348 | I123: 4536952 | J123: 5721115 | K123: 11543415 | L123: 0 | M123: 3129257 | N123: 6127105 | O123: 2989814 | P123: 12246176
A124: PM_HUTA | B124: Hospitaliers universitaires titulaires | F124: A | G124: 0 | H124: 0 | I124: 0 | J124: 0 | K124: =SUM(G124:J124) -> 0 | L124: 0 | M124: 0 | N124: 0 | O124: 0 | P124: =SUM(L124:O124) -> 0
A125: PM_PHTA | B125: Praticiens hospitaliers titulaires | F125: A | G125: 0 | H125: 1285348 | I125: 4536952 | J125: 5721115 | K125: 11543415 | L125: 0 | M125: 3129257 | N125: 6127105 | O125: 2989814 | P125: 12246176
A126: PM_ASSA | B126: Assistants | F126: A | G126: 0 | H126: 0 | I126: 0 | J126: 0 | K126: 0 | L126: 0 | M126: 0 | N126: 0 | O126: 0 | P126: 0
A127: PM_HUNTA | B127: Hospitaliers universitaires non titulaires | F127: A | G127: 0 | H127: 0 | I127: 0 | J127: 0 | K127: 0 | L127: 0 | M127: 0 | N127: 0 | O127: 0 | P127: 0
A128: PM_ATTA | B128: Attachés | F128: A | G128: 0 | H128: 0 | I128: 0 | J128: 0 | K128: 0 | L128: 0 | M128: 0 | N128: 0 | O128: 0 | P128: 0
A129: PM_PASA | B129: Praticiens associés | F129: A | G129: 0 | H129: 0 | I129: 0 | J129: 0 | K129: 0 | L129: 0 | M129: 0 | N129: 0 | O129: 0 | P129: 0
A130: PM_AUTA | B130: Autres salariés (y compris ne relevant pas d'un statut) | F130: A | G130: 0 | H130: 0 | I130: 0 | J130: 0 | K130: 0 | L130: 0 | M130: 0 | N130: 0 | O130: 0 | P130: 0
A131: PNM_TOT | B131: Personnel non médical | G131: =+SUM(G132:G158) -> 800761 | H131: 7613406 | I131: 11857989 | J131: 4344394 | K131: 24616550 | L131: 3179360 | M131: 28507092 | N131: 39954962 | O131: 15080371 | P131: 86721785
A132: PNM_SOIA | B132: Soins | F132: A | G132: 183107 | H132: 3468383 | I132: 2944146 | J132: 974399 | K132: =SUM(G132:J132) -> 7570035 | L132: 1882231 | M132: 13437805 | N132: 13253672 | O132: 3528718 | P132: =SUM(L132:O132) -> 32102426
A133: PNM_SOIB | F133: B | G133: 0 | H133: 251319 | I133: 1905907 | J133: 562973 | K133: 2720199 | L133: 0 | M133: 2498733 | N133: 11036344 | O133: 5322712 | P133: 18857789
A134: PNM_SOIC | F134: C | G134: 250151 | H134: 823114 | I134: 1175913 | J134: 475428 | K134: 2724606 | L134: 783150 | M134: 4711078 | N134: 3293706 | O134: 1393529 | P134: 10181463
A135: PNM_REEA | B135: Rééducation | F135: A | G135: 0 | H135: 140099 | I135: 130851 | J135: 110461 | K135: 381411 | L135: 12453 | M135: 631731 | N135: 327248 | O135: 268415 | P135: 1239847
A136: PNM_REEB | F136: B | G136: 0 | H136: 46226 | I136: 34395 | J136: 0 | K136: 80621 | L136: 0 | M136: 0 | N136: 36488 | O136: 0 | P136: 36488
A137: PNM_REEC | F137: C | G137: 0 | H137: 0 | I137: 0 | J137: 0 | K137: 0 | L137: 0 | M137: 0 | N137: 0 | O137: 0 | P137: 0
A138: PNM_MTA | B138: Médico-technique | F138: A | G138: 67987 | H138: 464018 | I138: 744423 | J138: 82552 | K138: 1358980 | L138: 181476 | M138: 2137550 | N138: 2010459 | O138: 352648 | P138: 4682133
A139: PNM_MTB | F139: B | G139: 4583 | H139: 91661 | I139: 252306 | J139: 47624 | K139: 396174 | L139: 81837 | M139: 174703 | N139: 499362 | O139: 0 | P139: 755902
A140: PNM_MTC | F140: C | G140: 0 | H140: 0 | I140: 0 | J140: 0 | K140: 0 | L140: 0 | M140: 0 | N140: 0 | O140: 0 | P140: 0
A141: PNM_ADMA | B141: Administrative | F141: A | G141: 0 | H141: 112860 | I141: 174396 | J141: 0 | K141: 287256 | L141: 0 | M141: 40563 | N141: 154613 | O141: 75942 | P141: 271118
A142: PNM_ADMB | F142: B | G142: 0 | H142: 79669 | I142: 328289 | J142: 38986 | K142: 446944 | L142: 20744 | M142: 917858 | N142: 3354324 | O142: 1221459 | P142: 5514385
A143: PNM_ADMC | F143: C | G143: 94626 | H143: 118332 | I143: 145021 | J143: 32289 | K143: 390268 | L143: 105879 | M143: 1720740 | N143: 2928428 | O143: 1488185 | P143: 6243232
A144: PNM_OUVA | B144: Ouvrière et technique | F144: A | G144: 0 | H144: 121817 | I144: 337925 | J144: 205409 | K144: 665151 | L144: 0 | M144: 184294 | N144: 46642 | O144: 0 | P144: 230936
A145: PNM_OUVB | F145: B | G145: 0 | H145: 424404 | I145: 812279 | J145: 183747 | K145: 1420430 | L145: 0 | M145: 1170 | N145: 329668 | O145: 140293 | P145: 471131
A146: PNM_OUVC | F146: C | G146: 179784 | H146: 1339269 | I146: 2536407 | J146: 1319919 | K146: 5375379 | L146: 86757 | M146: 353415 | N146: 621435 | O146: 365778 | P146: 1427385
A147: PNM_SOCA | B147: Socio-éducative | F147: A | G147: 0 | H147: 26695 | I147: 82286 | J147: 0 | K147: 108981 | L147: 0 | M147: 199878 | N147: 227788 | O147: 153565 | P147: 581231
A148: PNM_SOCB | F148: B | G148: 363 | H148: 0 | I148: 0 | J148: 0 | K148: 363 | L148: 5318 | M148: 38081 | N148: 0 | O148: 35504 | P148: 78903
A149: PNM_SOCC | F149: C | G149: 0 | H149: 0 | I149: 0 | J149: 0 | K149: 0 | L149: 0 | M149: 0 | N149: 0 | O149: 0 | P149: 0
A150: PNM_DIRA | B150: Personnels de direction | F150: A | G150: 0 | H150: 0 | I150: 216544 | J150: 282178 | K150: 498722 | L150: 0 | M150: 0 | N150: 463170 | O150: 308365 | P150: 771535
A151: PNM_DIRB | F151: B | G151: 0 | H151: 0 | I151: 0 | J151: 0 | K151: 0 | L151: 0 | M151: 0 | N151: 0 | O151: 0 | P151: 0
A152: PNM_DIRC | F152: C | G152: 0 | H152: 0 | I152: 0 | J152: 0 | K152: 0 | L152: 0 | M152: 0 | N152: 0 | O152: 0 | P152: 0
A153: PNM_PSYA | B153: Psychologues | F153: A | G153: 0 | H153: 10413 | I153: 36901 | J153: 28429 | K153: 75743 | L153: 0 | M153: 165814 | N153: 422395 | O153: 144213 | P153: 732422
A154: PNM_PSYB | F154: B | G154: 0 | H154: 0 | I154: 0 | J154: 0 | K154: 0 | L154: 0 | M154: 0 | N154: 0 | O154: 0 | P154: 0
A155: PNM_PSYC | F155: C | G155: 0 | H155: 0 | I155: 0 | J155: 0 | K155: 0 | L155: 0 | M155: 0 | N155: 0 | O155: 0 | P155: 0
A156: PNM_SFA | B156: Sages-femmes | F156: A | G156: 20160 | H156: 95127 | I156: 0 | J156: 0 | K156: 115287 | L156: 19515 | M156: 1293679 | N156: 949220 | O156: 281045 | P156: 2543459
A157: PNM_SFB | F157: B | G157: 0 | H157: 0 | I157: 0 | J157: 0 | K157: 0 | L157: 0 | M157: 0 | N157: 0 | O157: 0 | P157: 0
A158: PNM_SFC | F158: C | G158: 0 | H158: 0 | I158: 0 | J158: 0 | K158: 0 | L158: 0 | M158: 0 | N158: 0 | O158: 0 | P158: 0
A159: TOT_PMPNM | B159: TOTAL | G159: =SUM(G131,G123) -> 800761 | H159: 8898754 | I159: 16394941 | J159: 10065509 | K159: 36159965 | L159: 3179360 | M159: 31636349 | N159: 46082067 | O159: 18070185 | P159: 98967961
G160: REM_031_B | H160: REM 031 b) | I160: 5__Rémunérations | J160: 5__REMUNERATIONS | K160: 5. Rémunérations
B165: BDS FPH 032-O | D165: Nombre d'équivalents temps plein annuels rémunérés (Agents sur emploi permanent) | S165: Retour haut de page
F167: NB_ETPR_AEP
B168: Statut d'emploi (personnel médical) ou filière (personnel non médical) | F168: Nombre d'équivalents temps plein annuels rémunérés
B169: Agents sur emploi permanent
A171: PM_TOT | B171: Personnel médical | F171: =+SUM(F172:F178) -> 200.2899167
A172: PM_HUT | B172: Hospitaliers universitaires titulaires | F172: 0
A173: PM_PHT | B173: Praticiens hospitaliers titulaires | F173: 200.2899167
A174: PM_ASS | B174: Assistants | F174: 0
A175: PM_HUNT | B175: Hospitaliers universitaires non titulaires | F175: 0
A176: PM_ATT | B176: Attachés | F176: 0
A177: PM_PAS | B177: Praticiens associés | F177: 0
A178: PM_AUT | B178: Autres salariés (y compris ne relevant pas d'un statut) | F178: 0
A179: PNM_TOT | B179: Personnel non médical | F179: =+SUM(F180:F188) -> 2757.495583
A180: PNM_SOI | B180: Soins | F180: 1810.487917
A181: PNM_REE | B181: Rééducation | F181: 43.9705
A182: PNM_MT | B182: Médico-technique | F182: 168.6115
A183: PNM_ADM | B183: Administrative | F183: 367.80825
A184: PNM_OUV | B184: Ouvrière et technique | F184: 265.8481667
A185: PNM_SOC | B185: Socio-éducative | F185: 19.85983333
A186: PNM_DIR | B186: Personnels de direction | F186: 12.08333333
A187: PNM_PSY | B187: Psychologues | F187: 18.38566667
A188: PNM_SF | B188: Sages-femmes | F188: 50.44041667
A189: TOT_PMPNM | B189: TOTAL | F189: =SUM(F171,F179) -> 2957.7855
B191: Sexe Agents sur emploi permanent | F191: Nombre d'équivalents temps plein annuels rémunérés
A192: HOMME | B192: H | F192: 681.3555833
A193: FEMME | B193: F | F193: 2277.203667
A194: TOT_SEXE | B194: TOTAL | F194: =+SUM(F192:F193) -> 2958.55925
F195: REM_032 | G195: REM 032 | H195: 5__Rémunérations | I195: 5__REMUNERATIONS | J195: 5. Rémunérations
B200: ð Pour les agents des autres catégories et autres statuts rémunérés (non permaments) au cours de l'année | S200: Retour haut de page
B203: BDS FPH 034-O | D203: Total des rémunérations annuelles brutes versées, dont heures supplémentaires (Agents des autres catégories et statuts (non permanents)) | S203: Retour haut de page
F205: REMU_ANP | G205: REMU_ANPHS
B206: Agents des autres catégories et statuts (non permanents) | F206: Total des rémunérations annuelles brutes versées en euros * | G206: dont heures supplémentaires
B207: Statut d'emploi (personnel médical) ou filière (personnel non médical)
A208: PM_TOT | B208: Personnel médical | F208: =+SUM(F209:F215) -> 5437251 | G208: 0
A209: PM_HUT | B209: Hospitaliers universitaires titulaires | F209: 0 | G209: 0
A210: PM_PHT | B210: Praticiens hospitaliers titulaires | F210: 0 | G210: 0
A211: PM_ASS | B211: Assistants | F211: 1021318 | G211: 0
A212: PM_HUNT | B212: Hospitaliers universitaires non titulaires | F212: 0 | G212: 0
A213: PM_ATT | B213: Attachés | F213: 113963 | G213: 0
A214: PM_PAS | B214: Praticiens associés | F214: 925832 | G214: 0
A215: PM_AUT | B215: Autres salariés (y compris ne relevant pas d'un statut) | F215: 3376138 | G215: 0
A216: PNM_TOT | B216: Personnel non médical | F216: =+SUM(F217:F225) -> 4467724 | G216: 30724
A217: PNM_SOI | B217: Soins | F217: 2129867 | G217: 19210
A218: PNM_REE | B218: Rééducation | F218: 21200 | G218: 0
A219: PNM_MT | B219: Médico-technique | F219: 147609 | G219: 2241
A220: PNM_ADM | B220: Administrative | F220: 1215505 | G220: 3303
A221: PNM_OUV | B221: Ouvrière et technique | F221: 816132 | G221: 5970
A222: PNM_SOC | B222: Socio-éducative | F222: 109206 | G222: 0
A223: PNM_DIR | B223: Personnels de direction | F223: 0 | G223: 0
A224: PNM_PSY | B224: Psychologues | F224: 28205 | G224: 0
A225: PNM_SF | B225: Sages-femmes | F225: 0 | G225: 0
A226: TOT_PMPNM | B226: TOTAL | F226: =SUM(F208,F216) -> 9904975 | G226: 30724
B227: (*) arrondi à l'euro
B229: Agents des autres catégories et statuts (non permanents) Sexe | F229: Total des rémunérations annuelles brutes versées en euros * | G229: dont heures supplémentaires
A230: HOMME | B230: H | F230: 3789422 | G230: 9966
A231: FEMME | B231: F | F231: 6147832 | G231: 20759
A232: TOT_SEXE | B232: TOTAL | F232: =+SUM(F230:F231) -> 9937254 | G232: 30725
B233: (*) arrondi à l'euro
F234: REM_034 | G234: REM 034 | H234: 5__Rémunérations | I234: 5__REMUNERATIONS | J234: 5. Rémunérations
B239: BDS FPH 035-O | D239: Nombre d'équivalent temps plein rémunérés (Agents des autres catégories et statuts (non permanents)) | S239: Retour haut de page
F241: NB_ETPR_ANP
B242: Statut d'emploi (personnel médical) ou filière (personnel non médical) Agents des autres catégories et statuts (non permanents) | F242: Nombre équivalent temps-plein rémunérés
A244: PM_TOT | B244: Personnel médical | F244: =+SUM(F245:F251) -> 65.77925
A245: PM_HUT | B245: Hospitaliers universitaires titulaires | F245: 0
A246: PM_PHT | B246: Praticiens hospitaliers titulaires | F246: 0
A247: PM_ASS | B247: Assistants | F247: 19.047
A248: PM_HUNT | B248: Hospitaliers universitaires non titulaires | F248: 0
A249: PM_ATT | B249: Attachés | F249: 1.99025
... 18 more rows

Sheet 6. Santé Sécurité
B1: 6. SANTÉ ET SÉCURITÉ AU TRAVAIL | W1: Retour au sommaire
B2: Générer le fichier d'import du thème 6. Santé Sécurité pour la plateforme de saisie en ligne
C4: a) Risques professionnels
D5: BDS FPH 036-O | F5: Nombre d’accidents de service, accidents de trajet, maladies professionnelles (ventilées par tableau), maladies hors tableau, affections psychiques, reconnus imputable au service
D6: BDS FPH 037-O | F6: Nombre d’accidents mortels reconnus imputables au service (distinguer accidents de la route et autres)
C7: b) Dispositifs de signalement
D8: BDS FPH 040-O | F8: Nombre de saisines du dispositif de signalement au cours de l’année
D9: BDS FPH 041-O | F9: Nombre de saisines du dispositif de signalement au cours de l’année précédente
D10: BDS FPH 042-O | F10: Nombre d’actes de violence, de discrimination, de harcèlement moral ou sexuel et d’agissements sexistes recensés au cours de l’année par les dispositifs de signalement
D11: BDS FPH 043-O | F11: Nombre de victimes d’actes de violence, de discrimination, de harcèlement moral ou sexuel et d’agissements sexistes recensées au cours de l’année par les dispositifs de signalement
D12: BDS FPH 044-O | F12: Nombre de signalements par type d’actes
D13: BDS FPH 045-O | F13: Nombre de reconnaissance d'une faute inexcusable de l'employeur au cours de l’année
C14: c) Protection fonctionnelle
D15: BDS FPH 046-O | F15: Nombre de mesures de protection fonctionnelle demandées d’une part, mise en œuvre d’autre part
C16: d) Suicides
D17: BDS FPH 048-O | F17: Nombre de suicides, déclarés et reconnus imputables au service au cours de l'année.
D18: BDS FPH 049-O | F18: Nombre de tentatives de suicides, déclarées et reconnues imputables au service au cours de l'année.
D19: BDS FPH 050-O | F19: Nombre de suicides intervenus sur le lieu de travail.
D20: BDS FPH 051-O | F20: Nombre de tentatives de suicides intervenues sur le lieu de travail.
C21: e) Acteurs de la prévention
D22: BDS FPH 052-O | F22: Nombre d’acteurs de la prévention en fonction au 31 décembre
D23: BDS FPH 053-F | F23: Répartition des intervenants en prévention des risques professionnels selon leur quotité de travail
D24: BDS FPH 054-F | F24: Une formation initiale type uniformisée et généralisée est-elle mise en place au sein de l’hôpital ?
D25: BDS FPH 055-F | F25: Nombre d’acteurs de la prévention ayant pris leurs fonctions au cours de l’année
D26: BDS FPH 056-F | F26: Nombre d’acteurs de la prévention en fonction ayant suivi une formation continue au cours de l’année, par catégorie d’acteur
D27: BDS FPH 056-F bis | F27: Une équipe de SST existe-t-il au sein de l’hôpital ?
D28: BDS FPH 056-F ter | F28: Nombre de recours à l’inspection du travail
C29: f) Instances de prévention
C30: 1. Les Formations Spécialisées (FS) en matière de santé, de sécurité et de conditions de travail
D31: BDS FPH 057-O | F31: Nombre de Formations Spécialisées
D32: BDS FPH 058-O | F32: Nombre de CSE exerçant les compétences d'une Formation Spécialisée
C33: 2. Les membres des Formations Spécialisées et leur formation
D34: BDS FPH 059-O | F34: Nombre de membres des FS par catégorie de FS, en distinguant titulaires et suppléants
D35: BDS FPH 060-O | F35: Nombre de membres ayant reçu une formation et durée de celle-ci
D36: BDS FPH 061-O | F36: Nombre de membres ayant bénéficié d'un congé pour formation en matière d'hygiène, de sécurité et de conditions de travail
C37: 3. Les réunions des Formations Spécialisées
D38: BDS FPH 065-O | F38: Nombre de réunions de FS (hors groupes de travail) par type
C39: 4. Les visites et les enquêtes des FS
D40: BDS FPH 068-O | F40: Nombre de visites de sites effectuées
C41: 5. Recours à un expert certifié
D42: BDS FPH 070-O | F42: Nombre de demandes de recours à un expert certifié
C43: 6. Signalement d'un danger grave et imminent et droit de retrait
D44: BDS FPH 075-O | F44: Nombre de signalements d'un danger grave et imminent dont
D45: BDS FPH 076-F | F45: Nombre d'invocations du droit de retrait effectuées au cours de l’année
C46: 7. Documents reçus, consultations, études et avis
D47: BDS FPH 079-O | F47: Nombre de rapports annuels des médecins du travail reçus
D48: BDS FPH 080-F | F48: Nombre des signalements de refus par l'administration d'aménagement de poste reçus
D49: BDS FPH 085-F | F49: Nombre de consultations des FS sur mesures générales prises en vue de faciliter la mise, la remise ou le maintien au travail des accidentés du travail, des invalides de guerre, des invalides civils et des travailleurs handicapés, notamment sur l'aménagement des postes de travail
D50: BDS FPH 086-F | F50: Nombre de programmes annuels de prévention des risques professionnels et des conditions de travail
D51: BDS FPH 088-O | F51: Nombre de DUERP
D52: BDS FPH 094-F | F52: Nombres d'aménagements de poste proposés par le médecin du travail
C53: g) Commissions médicales
D54: BDS FPH 096-O | F54: Nombre d'agents
D55: BDS FPH 097-O | F55: Nombre d'agents
D56: BDS FPH 098-O | F56: Nombre d'agents
D57: BDS FPH 099-O | F57: Nombre de bénéficiaires d'un temps partiel thérapeutique recensés sur l'année
D58: BDS FPH 102-O | F58: Nombre de licenciements pour inaptitude physique au cours de l'année
C59: h) Actions de prévention
C60: 1. Inspection
D61: BDS FPH 103-O | F61: Nombre et motifs des recours à l'inspection du travail (risque grave ou désaccord sérieux et persistant) initiés au cours de l'année
D62: BDS FPH 104-F | F62: Nombre de rapports transmis par l'inspection du travail au ministre au cours de l'année suite à un désaccord avec le chef de service
C63: 2. Formation SST
D64: BDS FPH 105-O | F64: Nombre d’agents formés à la SST (santé, sécurité, RPS, TMS, ergonomie, risque incendie, secourisme, etc.) au cours de l’année parmi les agents en poste au 31 décembre
D65: BDS FPH 106-F | F65: Des formations SST ont-elles été organisées au cours de l'année suite à des événements graves ?
C66: 3. DUERP
D67: BDS FPH 107-O | F67: Nombre de services et nombre d’agents concernés
D68: BDS FPH 108-F | F68: Taux de réalisation du programme annuel de prévention de l’année précédente, y compris concernant les risques psychosociaux
D69: BDS FPH 109-F | F69: Nombre de documents de traçabilité des expositions professionnelles établis au cours de l’année
C70: 4. Actions de prévention
D71: BDS FPH 110-O | F71: Nombre de services et nombre d’agents concernés
D72: BDS FPH 111-O | F72: Nombre de services et nombre d’agents concernés
C73: 5. Usure
D74: BDS FPH 112-O | F74: Nombre d’agents au 31 décembre exposés à un risque d’usure professionnelle identifiés
C75: 6. Risques psycho-sociaux
D76: BDS FPH 114-O | F76: Nombre de signalements au cours de l’année
C77: i) Médecine de prévention
D78: BDS FPH 116-F | F78: Organisation des services de médecine du travail au 31 décembre
D79: BDS FPH 117-O | F79: Suivi médical
D80: BDS FPH 118-O | F80: Nombre de visites de site réalisées par le médecin du travail ou par un membre de l’équipe pluridisciplinaire de santé au travail au cours de l’année
D81: BDS FPH 119-O | F81: Nombre de rapports de médecins du travail transmis aux comités médicaux et aux commissions de réforme au cours de l’année
B87: a) | C87: Risques professionnels | W87: Retour haut de page
B90: BDS FPH 036-O | D90: Nombre d’accidents de service, accidents de trajet, maladies professionnelles (ventilées par tableau), maladies hors tableau, affections psychiques, reconnus imputable au service | W90: Retour haut de page
G92: NB_ASIS | H92: NB_ATIS | I92: NB_MPIS | J92: NB_MHIS | K92: NB_APIS
B93: Statut d'emploi (personnel médical) ou filière (personnel non médical) | G93: Nombre d’accidents de service | H93: Nombre d'accidents de trajet | I93: Nombre de maladies professionnelles | J93: Nombre de maladies hors tableau | K93: Nombre d'affections psychiques
A95: PM_TOT | B95: Personnel médical | G95: =+SUM(G96:G102) -> 5 | H95: 0 | I95: 1 | J95: 0 | K95: 0
A96: PM_HUT | B96: Hospitaliers universitaires titulaires | G96: 0 | H96: 0 | I96: 0 | J96: 0 | K96: 0
A97: PM_PHT | B97: Praticiens hospitaliers titulaires | G97: 2 | H97: 0 | I97: 1 | J97: 0 | K97: 0
A98: PM_ASS | B98: Assistants | G98: 0 | H98: 0 | I98: 0 | J98: 0 | K98: 0
A99: PM_HUNT | B99: Hospitaliers universitaires non titulaires | G99: 0 | H99: 0 | I99: 0 | J99: 0 | K99: 0
A100: PM_ATT | B100: Attachés | G100: 0 | H100: 0 | I100: 0 | J100: 0 | K100: 0
A101: PM_PAS | B101: Praticiens associés | G101: 1 | H101: 0 | I101: 0 | J101: 0 | K101: 0
A102: PM_AUT | B102: Autres salariés (y compris ne relevant pas d'un statut) | G102: 2 | H102: 0 | I102: 0 | J102: 0 | K102: 0
A103: PNM_TOT | B103: Personnel non médical | G103: =+SUM(G104:G112) -> 299 | H103: 29 | I103: 9 | J103: 0 | K103: 0
A104: PNM_SOI | B104: Soins | G104: 207 | H104: 18 | I104: 7 | J104: 0 | K104: 0
A105: PNM_REE | B105: Rééducation | G105: 3 | H105: 1 | I105: 0 | J105: 0 | K105: 0
A106: PNM_MT | B106: Médico-technique | G106: 35 | H106: 4 | I106: 0 | J106: 0 | K106: 0
A107: PNM_ADM | B107: Administrative | G107: 16 | H107: 4 | I107: 1 | J107: 0 | K107: 0
A108: PNM_OUV | B108: Ouvrière et technique | G108: 34 | H108: 2 | I108: 1 | J108: 0 | K108: 0
A109: PNM_SOC | B109: Socio-éducative | G109: 0 | H109: 0 | I109: 0 | J109: 0 | K109: 0
A110: PNM_DIR | B110: Personnels de direction | G110: 0 | H110: 0 | I110: 0 | J110: 0 | K110: 0
A111: PNM_PSY | B111: Psychologues | G111: 0 | H111: 0 | I111: 0 | J111: 0 | K111: 0
A112: PNM_SF | B112: Sages-femmes | G112: 4 | H112: 0 | I112: 0 | J112: 0 | K112: 0
A113: TOT_PMPNM | B113: TOTAL | G113: =SUM(G103,G95) -> 304 | H113: 29 | I113: 10 | J113: 0 | K113: 0
B115: Gravité | G115: Nombre d’accidents de service | H115: Nombre d'accidents de trajet | I115: Nombre de maladies professionnelles | J115: Nombre de maladies hors tableau | K115: Nombre d'affections psychiques
A116: AVART | B116: Avec arrêt de travail | G116: 121 | H116: 13
A117: SSART | B117: Sans arrêt de travail | G117: 183 | H117: 16
A118: TOT_GRAV | B118: TOTAL | G118: =SUM(G116:G117) -> 304 | H118: 29
B120: Cause | G120: Nombre d’accidents de service | H120: Nombre d'accidents de trajet | I120: Nombre de maladies professionnelles | J120: Nombre de maladies hors tableau | K120: Nombre d'affections psychiques
A121: CHUTEP | B121: Chute de personne | G121: 44 | H121: 2
A122: CHUTEO | B122: Chute d'objet | G122: 6 | H122: 0
A123: MANUT | B123: Manutention | G123: 111 | H123: 0
A124: HEURT | B124: Heurt | G124: 0 | H124: 0
A125: PROJE | B125: Projection | G125: 0 | H125: 0
A126: EXPOS | B126: Contact-exposition | G126: 78 | H126: 0
A127: EXPLO | B127: Explosion | G127: 0 | H127: 0
A128: ROUTE | B128: Accident de la route | G128: 17 | H128: 27
A129: AGRESS | B129: Agression | G129: 14 | H129: 0
A130: AUTRE | B130: Autre | G130: 34 | H130: 0
A131: TOT_ACC | B131: TOTAL | G131: =SUM(G121:G130) -> 304 | H131: 29
B133: Tranches horaires | G133: Nombre d’accidents de service | H133: Nombre d'accidents de trajet | I133: Nombre de maladies professionnelles | J133: Nombre de maladies hors tableau | K133: Nombre d'affections psychiques
A134: HOR02 | B134: 0h-1h59 | G134: 15 | H134: 1
A135: HOR24 | B135: 2h-3h59 | G135: 15 | H135: 0
A136: HOR46 | B136: 4h-5h59 | G136: 9 | H136: 0
A137: HOR68 | B137: 6h-7h59 | G137: 21 | H137: 8
A138: HOR810 | B138: 8h-9h59 | G138: 63 | H138: 4
A139: HOR1012 | B139: 10h-11h59 | G139: 53 | H139: 1
A140: HOR1214 | B140: 12h-13h59 | G140: 25 | H140: 2
A141: HOR1416 | B141: 14h-15h59 | G141: 28 | H141: 1
A142: HOR1618 | B142: 16h-17h59 | G142: 31 | H142: 5
A143: HOR1820 | B143: 18h-19h59 | G143: 19 | H143: 6
A144: HOR2022 | B144: 20h-21h59 | G144: 17 | H144: 1
A145: HOR2224 | B145: 22h-23h59 | G145: 7 | H145: 0
A146: TOT_HOR | B146: TOTAL | G146: =SUM(G134:G145) -> 303 | H146: 29
B148: Catégorie hiérarchique | G148: Nombre d’accidents de service | H148: Nombre d'accidents de trajet | I148: Nombre de maladies professionnelles | J148: Nombre de maladies hors tableau | K148: Nombre d'affections psychiques
A149: CATA | B149: A | G149: 135 | H149: 17 | I149: 2 | J149: 0 | K149: 0
A150: CATB | B150: B | G150: 88 | H150: 6 | I150: 1 | J150: 0 | K150: 0
A151: CATC | B151: C | G151: 65 | H151: 6 | I151: 6 | J151: 0 | K151: 0
A152: CATX | B152: NC (non catégorisé A B C) | G152: 16 | H152: 0 | I152: 1 | J152: 0 | K152: 0
A153: TOT_CAT | B153: TOTAL | G153: =SUM(G149:G152) -> 304 | H153: 29 | I153: 10 | J153: 0 | K153: 0
B155: Âge ou tranches d'âge | G155: Nombre d’accidents de service | H155: Nombre d'accidents de trajet | I155: Nombre de maladies professionnelles | J155: Nombre de maladies hors tableau | K155: Nombre d'affections psychiques
A156: AGE25 | B156: - 25 ans | G156: 23 | H156: 1 | I156: 0 | J156: 0 | K156: 0
A157: AGE2540 | B157: 25-40 ans | G157: 125 | H157: 9 | I157: 0 | J157: 0 | K157: 0
A158: AGE4155 | B158: 41-55 ans | G158: 122 | H158: 16 | I158: 7 | J158: 0 | K158: 0
A159: AGE55 | B159: + 55 ans | G159: 34 | H159: 3 | I159: 3 | J159: 0 | K159: 0
A160: TOT_AGE | B160: TOTAL | G160: =SUM(G156:G159) -> 304 | H160: 29 | I160: 10 | J160: 0 | K160: 0
B162: Sexe | G162: Nombre d’accidents de service | H162: Nombre d'accidents de trajet | I162: Nombre de maladies professionnelles | J162: Nombre de maladies hors tableau | K162: Nombre d'affections psychiques
A163: HOMME | B163: H | G163: 71 | H163: 8 | I163: 1 | J163: 0 | K163: 0
A164: FEMME | B164: F | G164: 233 | H164: 21 | I164: 9 | J164: 0 | K164: 0
A165: TOT_SEXE | B165: TOTAL | G165: =SUM(G163:G164) -> 304 | H165: 29 | I165: 10 | J165: 0 | K165: 0
B167: Métier | G167: Nombre d’accidents de service | H167: Nombre d'accidents de trajet | I167: Nombre de maladies professionnelles | J167: Nombre de maladies hors tableau | K167: Nombre d'affections psychiques
A168: TOT_PM | B168: Personnel médical | G168: =+SUM(G169:G191) -> 5 | H168: 0 | I168: 1 | J168: 0 | K168: 0
A169: MED06 | B169: Anesthésie réanimation
A170: MED03 | B170: Autre spécialiste des spécialités médicales
A171: MED01 | B171: Généraliste et spécialiste de médecine générale | G171: 5 | I171: 1
A172: MED04 | B172: Médecin biologiste
A173: MED05 | B173: Médecin des spécialités chirurgicales
A174: 30I20 | B174: Médecin du travail
A175: MED02 | B175: Médecin psychiatre
A176: 40L60 | B176: Médecin responsable de l'information médicale et de l'évaluation (DIM)
A177: ODO01 | B177: Odontologiste (chirurgien-dentiste)
A178: PHA02 | B178: Pharmacien
A179: PHA01 | B179: Pharmacien biologiste
A180: PNPE1 | B180: Praticien n'ayant pas la plénitude d'exercice (3° de l'article l6152-1 du CSP)
A181: MED07 | B181: Radiologie imagerie
A182: SPUB1 | B182: Santé publique
A183: SCIE1 | B183: Scientifique
A184: 30C18 | B184: Spécialiste en hémovigilance
A185: 30C15 | B185: Spécialiste en pharmacovigilance
A186: INME0 | B186: Interne en médecine (et FFI)
A187: INPH0 | B187: Interne en pharmacie (et FFI)
A188: INOD0 | B188: Interne en odontologie
A189: ETME0 | B189: Etudiant en médecine
A190: ETPH0 | B190: Etudiant en pharmacie
A191: ETOD0 | B191: Etudiant en odontologie
A192: TOT_PNM | B192: Personnel non médical | G192: =+SUM(G193:G384) -> 299 | H192: 29 | I192: 9 | J192: 0 | K192: 0
A193: 10I30 | B193: Accueillant familial | J193: 0 | K193: 0
A194: 25F20 | B194: Acheteur | J194: 0 | K194: 0
A195: 40F20 | B195: Agent d'accueil | J195: 0 | K195: 0
A196: 30F30 | B196: Agent de bionettoyage | G196: 20 | H196: 2 | I196: 4 | J196: 0 | K196: 0
A197: 25M20 | B197: Agent de blanchisserie | J197: 0 | K197: 0
A198: 45S20 | B198: Agent de gestion administrative | G198: 12 | H198: 2 | I198: 1 | J198: 0 | K198: 0
A199: 25I30 | B199: Agent de logistique | J199: 0 | K199: 0
A200: 20I30 | B200: Agent de maintenance générale des bâtiments | J200: 0 | K200: 0
A201: 30L40 | B201: Agent de prévention et de sécurité des personnes et des biens | J201: 0 | K201: 0
A202: 25R30 | B202: Agent de restauration et/ou d'hôtellerie | G202: 34 | H202: 2 | I202: 1 | J202: 0 | K202: 0
A203: 30L20 | B203: Agent de sécurité incendie | J203: 0 | K203: 0
A204: 05R60 | B204: Agent de service mortuaire | J204: 0 | K204: 0
A205: 30F50 | B205: Agent de stérilisation | J205: 0 | K205: 0
A206: 20X20 | B206: Agent d'entretien des espaces verts | J206: 0 | K206: 0
A207: 10I10 | B207: Aide médico psychologique | J207: 0 | K207: 0
A208: 05R10 | B208: Aide-soignant | G208: 81 | H208: 3 | I208: 1 | J208: 0 | K208: 0
A209: 05R95 | B209: Ambulancier | G209: 3 | H209: 1 | I209: 0 | J209: 0 | K209: 0
A210: 40L50 | B210: Analyste des données d'activités hospitalières | J210: 0 | K210: 0
A211: 10L30 | B211: Animateur | J211: 0 | K211: 0
A212: 30C20 | B212: Animateur qualité / gestion des risques | J212: 0 | K212: 0
A213: 35I10 | B213: Architecte / Urbaniste du SI | J213: 0 | K213: 0
A214: 40M20 | B214: Archiviste | J214: 0 | K214: 0
A215: 15D10 | B215: Assistant de recherche clinique | J215: 0 | K215: 0
A216: 15L10 | B216: Assistant de recherche clinique | J216: 0 | K216: 0
A217: 40F30 | B217: Assistant de régulation médicale | J217: 0 | K217: 0
... 1372 more rows

Sheet 7. Organisation
B1: 7. ORGANISATION DU TRAVAIL ET TEMPS DE TRAVAIL | AA1: Retour au sommaire
B2: Générer le fichier d'import du thème 7. Organisation pour la plateforme de saisie en ligne
C4: a) Organisation et cycles de travail
D5: BDS FPH 123-O | F5: Répartition des effectifs en fonction au 31 décembre
D6: BDS FPH 124-O | F6: Existence de chartes de fonctionnement sur les pools de remplacement (PNM)
D7: BDS FPH 125-F | F7: Nombre total de nuits-agents travaillées au cours de l’année
C8: b) Astreintes et interventions
D9: BDS FPH 126-O | F9: Nombre d'agents en fonction au 31 décembre soumis à des astreintes (ou à défaut ayant bénéficié de paiements d’indemnités d’astreintes)
C10: c) Télétravail et travail à distance
D11: BDS FPH 129-O | F11: Nombre d'agents en fonction au 31 décembre exerçant leurs fonctions dans le cadre du télétravail
C12: d) Heures supplémentaires ou temps de travail additionnel (personnel médicaux)
D13: BDS FPH 132-O | F13: Nombre d'agents en fonction au 31 décembre ayant effectué des heures supplémentaires ou du temps de travail additionnel au cours de l’année
D14: BDS FPH 133-F | F14: Nombre d'heures supplémentaires effectuées au cours de l’année
C15: e) Temps complet/incomplet ou non complet – Temps plein et temps partiel
D16: BDS FPH 134-O | F16: Répartition des effectifs en fonction au 31 décembre
D17: BDS FPH 135-O | F17: Nombre de demandes liées au temps partiel au cours de l’année
C18: f) Taux d’absentéisme
D19: BDS FPH 136-O | F19: Taux d’absentéisme pour motif médical et non médical
C20: g) Congés (annuels, RTT...)
D21: BDS FPH 137-O | F21: Nombre de jours de congés
C22: h) CET
D23: BDS FPH 141-O | F23: Nombre total de comptes épargne-temps ouverts au 31 décembre
D24: BDS FPH 142-F | F24: Nombre d'agents ayant déposé des jours sur leur compte épargne-temps au cours de l'année
D25: BDS FPH 143-F | F25: Nombre total de jours stockés sur les comptes épargne-temps au 31 décembre
D26: BDS FPH 144-F | F26: Nombre de jours des comptes épargne-temps consommés au cours l'année par type de consommation
C27: i) Absences au travail hors raisons de santé
D28: BDS FPH 145-O | F28: Nombre d'agents ayant eu au moins une absence hors raison de santé au cours de l’année par motif
C29: j) Absences au travail pour raisons de santé
D30: BDS FPH 150-O | F30: Nombre d'agents ayant été absents au moins un jour dans l’année pour raison de santé, par motif
D31: BDS FPH 151-F | F31: Nombre total de journées d'absence pour raison de santé au cours de l’année par motif
C32: k) Jours de carence
D33: BDS FPH 152-O | F33: Nombre de jours de carence imputés aux agents suite à une absence survenue au cours de l’année
B39: a) Organisation et cycles de travail | AA39: Retour haut de page
B42: BDS FPH 123-O | D42: Répartition des effectifs en fonction au 31 décembre | AA42: Retour haut de page
G44: EFF_PMJ | H44: EFF_PMH | I44: EFF_PNMCY1 | J44: EFF_PNMCY2 | K44: EFF_PNMCY3 | L44: EFF_PNMCY4 | M44: EFF_PNMRE1 | N44: TX_PNMRE1 | O44: EFF_PNMRE2 | P44: TX_PNMRE2 | Q44: EFF_PNMORG | R44: TX_PNMORG
B45: Statut d'emploi (personnel médical) ou filière (personnel non médical) | G45: Personnel médical | I45: Personnel non médical
G46: Décompte en demi-journées | H46: Décompte en heures | I46: Cycles de travail | M46: Recours à l'annualisation du temps de travail | Q46: Organisation du temps de travail
I47: 12h de jour | J47: 12h de nuit | K47: 12h en alternance jour/nuit | L47: travail de nuit exclusivement | M47: Nombre d'agents | N47: Taux d'agents versus nombre total agents au sein de la structure | O47: Nombre de services | P47: Taux de services versus nombre total de services au sein de la structure | Q47: Nombre d'agents dont durée de repos quotidien est de 11h | R47: Taux d'agents durée de repos quotidien est de 11h versus nombre total agents au sein de la structure
A49: PM_TOT | B49: Personnel médical | G49: =+SUM(G50:G56) -> 174 | H49: 80
A50: PM_HUT | B50: Hospitaliers universitaires titulaires | G50: 0 | H50: 0
A51: PM_PHT | B51: Praticiens hospitaliers titulaires | H51: 32
A52: PM_ASS | B52: Assistants | G52: 12 | H52: 0
A53: PM_HUNT | B53: Hospitaliers universitaires non titulaires | G53: 0 | H53: 0
A54: PM_ATT | B54: Attachés | G54: 14 | H54: 3
A55: PM_PAS | B55: Praticiens associés | G55: 28 | H55: 1
A56: PM_AUT | B56: Autres salariés (y compris ne relevant pas d'un statut) | G56: 120 | H56: 44
A57: PNM_TOT | B57: Personnel non médical | I57: =+SUM(I58:I66) -> 845 | J57: 411 | K57: 364 | L57: 430 | M57: 0 | N57: 0 | O57: =+SUM(O58:O66) -> 0 | P57: 0 | Q57: =+SUM(Q58:Q66) -> 0 | R57: 0
A58: PNM_SOI | B58: Soins | I58: 747 | J58: 395 | K58: 311 | L58: 395 | M58: 0 | N58: 0 | O58: 0 | P58: 0 | Q58: 0 | R58: 0
A59: PNM_REE | B59: Rééducation | I59: 0 | J59: 0 | K59: 0 | L59: 0 | M59: 0 | N59: 0 | O59: 0 | P59: 0 | Q59: 0 | R59: 0
A60: PNM_MT | B60: Médico-technique | I60: 0 | J60: 9 | K60: 0 | L60: 9 | M60: 0 | N60: 0 | O60: 0 | P60: 0 | Q60: 0 | R60: 0
A61: PNM_ADM | B61: Administrative | I61: 98 | J61: 0 | K61: 5 | L61: 19 | M61: 0 | N61: 0 | O61: 0 | P61: 0 | Q61: 0 | R61: 0
A62: PNM_OUV | B62: Ouvrière et technique | I62: 0 | J62: 0 | K62: 0 | L62: 0 | M62: 0 | N62: 0 | O62: 0 | P62: 0 | Q62: 0 | R62: 0
A63: PNM_SOC | B63: Socio-éducative | I63: 0 | J63: 0 | K63: 0 | L63: 0 | M63: 0 | N63: 0 | O63: 0 | P63: 0 | Q63: 0 | R63: 0
A64: PNM_DIR | B64: Personnels de direction | I64: 0 | J64: 0 | K64: 0 | L64: 0 | M64: 0 | N64: 0 | O64: 0 | P64: 0 | Q64: 0 | R64: 0
A65: PNM_PSY | B65: Psychologues | I65: 0 | J65: 0 | K65: 0 | L65: 0 | M65: 0 | N65: 0 | O65: 0 | P65: 0 | Q65: 0 | R65: 0
A66: PNM_SF | B66: Sages-femmes | I66: 0 | J66: 7 | K66: 48 | L66: 7 | M66: 0 | N66: 0 | O66: 0 | P66: 0 | Q66: 0 | R66: 0
B68: Catégorie | G68: Personnel médical | I68: Personnel non médical
G69: Décompte en demi-journées | H69: Décompte en heures | I69: Cycles de travail | M69: Recours à l'annualisation du temps de travail | Q69: Organisation du temps de travail
I70: 12h de jour | J70: 12h de nuit | K70: 12h en alternance jour/nuit | L70: travail de nuit exclusivement | M70: Nombre d'agents | N70: Taux d'agents versus nombre total agents au sein de la structure | O70: Nombre de services | P70: Taux de services versus nombre total de services au sein de la structure | Q70: Nombre d'agents dont durée de repos quotidien est de 11h | R70: Taux d'agents durée de repos quotidien est de 11h versus nombre total agents au sein de la structure
A71: CATA | B71: A | G71: 384 | H71: 80 | I71: 382 | J71: 298 | K71: 236 | L71: 213 | M71: 0 | N71: 0 | O71: 0 | P71: 0 | Q71: 0 | R71: 0
A72: CATB | B72: B | I72: 272 | J72: 82 | K72: 67 | L72: 134 | M72: 0 | N72: 0 | O72: 0 | P72: 0 | Q72: 0 | R72: 0
A73: CATC | B73: C | I73: 191 | J73: 31 | K73: 61 | L73: 83 | M73: 0 | N73: 0 | O73: 0 | P73: 0 | Q73: 0 | R73: 0
A74: CATX | B74: NC (non catégorisé A B C) | M74: 0 | N74: 0 | O74: 0 | P74: 0 | Q74: 0 | R74: 0
A75: TOT_CAT | B75: TOTAL | G75: =SUM(G71) -> 384 | H75: 80 | I75: =SUM(I71:I74) -> 845 | J75: 411 | K75: 364 | L75: 430 | M75: 0 | N75: 0 | O75: =SUM(O71:O74) -> 0 | P75: 0 | Q75: =SUM(Q71:Q74) -> 0 | R75: 0
B77: Tranche d'âge | G77: Personnel médical | I77: Personnel non médical
G78: Décompte en demi-journées | H78: Décompte en heures | I78: Cycles de travail | M78: Recours à l'annualisation du temps de travail | Q78: Organisation du temps de travail
I79: 12h de jour | J79: 12h de nuit | K79: 12h en alternance jour/nuit | L79: travail de nuit exclusivement | M79: Nombre d'agents | N79: Taux d'agents versus nombre total agents au sein de la structure | O79: Nombre de services | P79: Taux de services versus nombre total de services au sein de la structure | Q79: Nombre d'agents dont durée de repos quotidien est de 11h | R79: Taux d'agents durée de repos quotidien est de 11h versus nombre total agents au sein de la structure
A80: AGE25 | B80: - 25 ans | G80: 5 | H80: 0 | I80: 53 | J80: 47 | K80: 54 | L80: 49 | M80: 0 | N80: 0 | O80: 0 | P80: 0 | Q80: 0 | R80: 0
A81: AGE2540 | B81: 25-40 ans | G81: 159 | H81: 38 | I81: 360 | J81: 165 | K81: 136 | L81: 171 | M81: 0 | N81: 0 | O81: 0 | P81: 0 | Q81: 0 | R81: 0
A82: AGE4155 | B82: 41-55 ans | G82: 118 | H82: 27 | I82: 346 | J82: 157 | K82: 114 | L82: 164 | M82: 0 | N82: 0 | O82: 0 | P82: 0 | Q82: 0 | R82: 0
A83: AGE55 | B83: + 55 ans | G83: 102 | H83: 15 | I83: 86 | J83: 42 | K83: 60 | L83: 46 | M83: 0 | N83: 0 | O83: 0 | P83: 0 | Q83: 0 | R83: 0
A84: TOT_AGE | B84: TOTAL | G84: =SUM(G80:G83) -> 384 | H84: 80 | I84: 845 | J84: 411 | K84: 364 | L84: 430 | M84: 0 | N84: 0 | O84: =SUM(O80:O83) -> 0 | P84: 0 | Q84: =SUM(Q80:Q83) -> 0 | R84: 0
B86: Métier | G86: Personnel médical | I86: Personnel non médical
G87: Décompte en demi-journées | H87: Décompte en heures | I87: Cycles de travail | M87: Recours à l'annualisation du temps de travail | Q87: Organisation du temps de travail
I88: 12h de jour | J88: 12h de nuit | K88: 12h en alternance jour/nuit | L88: travail de nuit exclusivement | M88: Nombre d'agents | N88: Taux d'agents versus nombre total agents au sein de la structure | O88: Nombre de services | P88: Taux de services versus nombre total de services au sein de la structure | Q88: Nombre d'agents dont durée de repos quotidien est de 11h | R88: Taux d'agents durée de repos quotidien est de 11h versus nombre total agents au sein de la structure
A89: TOT_PM | B89: Personnel médical | G89: =+SUM(G90:G112) -> 0 | H89: 0
A90: MED01 | B90: Généraliste et spécialiste de médecine générale
A91: MED06 | B91: Anesthésie réanimation
A92: MED07 | B92: Radiologie imagerie
A93: MED02 | B93: Médecin psychiatre
A94: MED03 | B94: Autre spécialiste des spécialités médicales
A95: MED04 | B95: Médecin biologiste
A96: MED05 | B96: Médecin des spécialités chirurgicales
A97: PHA01 | B97: Pharmacien biologiste
A98: PHA02 | B98: Pharmacien
A99: ODO01 | B99: Odontologiste (chirurgien-dentiste)
A100: SCIE1 | B100: Scientifique
A101: SPUB1 | B101: Santé publique
A102: 40L60 | B102: Médecin responsable de l'information médicale et de l'évaluation (DIM)
A103: 30I20 | B103: Médecin du travail
A104: 30C18 | B104: Spécialiste en hémovigilance
A105: 30C15 | B105: Spécialiste en pharmacovigilance
A106: PNPE1 | B106: Praticien n'ayant pas la plénitude d'exercice (3° de l'article l6152-1 du CSP)
A107: INME0 | B107: Interne en médecine (et FFI)
A108: INPH0 | B108: Interne en pharmacie (et FFI)
A109: INOD0 | B109: Interne en odontologie
A110: ETME0 | B110: Etudiant en médecine
A111: ETPH0 | B111: Etudiant en pharmacie
A112: ETOD0 | B112: Etudiant en odontologie
A113: TOT_PNM | B113: Personnel non médical | I113: =+SUM(I114:I305) -> 845 | J113: 411 | K113: 364 | L113: 430 | M113: 0 | N113: 0 | O113: =+SUM(O114:O305) -> 0 | P113: 0 | Q113: =+SUM(Q114:Q305) -> 0 | R113: 0
A114: 10I30 | B114: Accueillant familial
A115: 25F20 | B115: Acheteur
A116: 40F20 | B116: Agent d'accueil
A117: 30F30 | B117: Agent de bionettoyage | I117: 87 | J117: 12 | K117: 24 | L117: 12
A118: 25M20 | B118: Agent de blanchisserie
A119: 45S20 | B119: Agent de gestion administrative | I119: 26 | K119: 3 | L119: 19
A120: 25I30 | B120: Agent de logistique
A121: 20I30 | B121: Agent de maintenance générale des bâtiments
A122: 30L40 | B122: Agent de prévention et de sécurité des personnes et des biens
A123: 25R30 | B123: Agent de restauration et/ou d'hôtellerie
A124: 30L20 | B124: Agent de sécurité incendie
A125: 05R60 | B125: Agent de service mortuaire
A126: 30F50 | B126: Agent de stérilisation
A127: 20X20 | B127: Agent d'entretien des espaces verts
A128: 10I10 | B128: Aide médico psychologique
A129: 05R10 | B129: Aide-soignant | I129: 282 | J129: 167 | K129: 96 | L129: 167
A130: 05R95 | B130: Ambulancier | I130: 9 | J130: 3 | L130: 3
A131: 40L50 | B131: Analyste des données d'activités hospitalières
A132: 10L30 | B132: Animateur
A133: 30C20 | B133: Animateur qualité / gestion des risques
A134: 35I10 | B134: Architecte / Urbaniste du SI
A135: 40M20 | B135: Archiviste
A136: 15D10 | B136: Assistant de recherche clinique
A137: 15L10 | B137: Assistant de recherche clinique
A138: 40F30 | B138: Assistant de régulation médicale
A139: 05R40 | B139: Assistant dentaire
A140: 10I20 | B140: Assistant familial
A141: 10I70 | B141: Assistant maternel
A142: 10F40 | B142: Assistant social
A143: 05Z10 | B143: Audioprothésiste
A144: 05R50 | B144: Auxiliaire de puériculture
A145: 10I60 | B145: Auxiliaire de vie sociale
A146: 40M60 | B146: Bibliothécaire
A147: 05L80 | B147: Bio informaticien
A148: 30F80 | B148: Biohygiéniste
A149: 15D60 | B149: Biostatisticien
A150: 05R30 | B150: Brancardier | I150: 17 | J150: 8 | L150: 8
A151: 45S50 | B151: Cadre administratif de pôle
A152: 05U10 | B152: Cadre soignant de pôle | J152: 3 | L152: 3
A153: 45R20 | B153: Chargé de communication
A154: 45F30 | B154: Chargé de la formation continue
A155: 45I20 | B155: Chargé de la trésorerie et de la dette
A156: 45M20 | B156: Chargé de valorisation de la recherche
A157: 35F05 | B157: Chargé des applications informatiques
A158: 30C40 | B158: Chargé des relations avec les usagers
A159: 45F60 | B159: Chargé des relations sociales
A160: 45F40 | B160: Chargé du développement des ressources humaines
A161: 35F30 | B161: Chef de projet informatique
A162: 15L20 | B162: Chef de projets de recherche clinique
A163: 20F20 | B163: Conducteur de travaux tous corps d'état TCE
A164: 20F10 | B164: Conducteur d'opérations tous corps d'état TCE
A165: 05M60 | B165: Conseiller conjugal
A166: 10F50 | B166: Conseiller en économie sociale et familiale
A167: 05M20 | B167: Conseiller en génétique
A168: 20M10 | B168: Conseiller en ingénierie biomédicale
A169: 45L20 | B169: Conseiller en organisation
A170: 30I10 | B170: Conseiller en prévention des risques professionnels
A171: 30I30 | B171: Conseiller environnement et développement durable
A172: 25R40 | B172: Conseiller hôtelier
A173: 45M10 | B173: Conseiller juridique
A174: 45L10 | B174: Contrôleur de gestion
A175: 05T10 | B175: Coordinateur de parcours en santé
A176: 05T20 | B176: Coordinateur de prélèvement ou de transplantation d'organe
A177: 15F20 | B177: Coordinateur d'études cliniques
A178: 30C10 | B178: Coordinateur qualité / gestion des risques
A179: 25R20 | B179: Cuisinier
A180: 20F70 | B180: Dessinateur-projeteur
A181: 05I10 | B181: Diététicien
A182: 45C75 | B182: Directeur de la communication et des relations avec les usagers
A183: 45C10 | B183: Directeur de la logistique et des achats
A184: 45C55 | B184: Directeur de la qualité (et de la gestion des risques)
A185: 45C85 | B185: Directeur de site / pôle / projets
A186: 45C20 | B186: Directeur des affaires générales
A187: 45C65 | B187: Directeur des affaires médicales (et de la recherche)
A188: 45C35 | B188: Directeur des finances
A189: 45C60 | B189: Directeur des investissements et de la maintenance
A190: 45C45 | B190: Directeur des ressources humaines
A191: 45C30 | B191: Directeur des soins en établissement
A192: 45C40 | B192: Directeur des soins en institut de formation (aux métiers de la santé)
A193: 45C70 | B193: Directeur des systèmes d'information
A194: 45C80 | B194: Directeur d'établissement de santé - chef d'établissement
A195: 45C90 | B195: Directeur d'établissement social et médico-social - chef d'établissement
A196: 40M30 | B196: Documentaliste
A197: 05L60 | B197: Dosimétriste
A198: 10F20 | B198: Educateur jeunes enfants
A199: 10F10 | B199: Educateur spécialisé
A200: 10F80 | B200: Educateur sportif
A201: 10F30 | B201: Educateur technique spécialisé
A202: 20L40 | B202: Electricien de maintenance
A203: 20L20 | B203: Electromécanicien de maintenance
A204: 20U20 | B204: Electromécanicien(ne) / mécanicien(ne) / de maintenance
A205: 40F10 | B205: Encadrant Accueil - Standard
A206: 40M10 | B206: Encadrant archives
A207: 30F20 | B207: Encadrant bionettoyage
A208: 40L10 | B208: Encadrant de département d’information médicale
A209: 30L10 | B209: Encadrant de la sécurité des personnes et des biens
A210: 20U30 | B210: Encadrant de maintenance des équipements et matériels mécaniques
A211: 25M40 | B211: Encadrant de production blanchisserie
A212: 30F40 | B212: Encadrant de stérilisation
A213: 40L30 | B213: Encadrant des secrétariats médicaux
... 1924 more rows

Sheet 8. Action sociale
B1: 8. ACTION SOCIALE ET PROTECTION SOCIALE | V1: Retour au sommaire
B2: Générer le fichier d'import du thème 8. Action sociale pour la plateforme de saisie en ligne
D4: BDS FPH 154-O | F4: Montant de la dépense consacrée à l'action sociale
D5: BDS FPH 155-O | F5: Nombre d'agents bénéficiaires de prestations sociales
B11: BDS FPH 154-O | D11: Montant de la dépense consacrée à l'action sociale | V11: Retour haut de page
G13: MONT
A14: ACTSOC | B14: Montant* HT de la dépense consacrée à l'action sociale en euro | G14: 263525
B15: * arrondi à l'euro
G16: ACT_154 | H16: ACT 154 | I16: 8__Action_sociale | J16: 8__ACTION_SOCIALE | K16: 8. Action sociale
B19: BDS FPH 155-O | D19: Nombre d'agents bénéficiaires de prestations sociales | V19: Retour haut de page
H21: NB_RESTO | I21: NB_ENF | J21: NB_VLC | K21: NB_PROT | L21: NB_RET | M21: NB_AUT | N21: NB_AID | O21: NB_CESU
B22: Statut d'emploi (personnel médical) ou filière (personnel non médical) | H22: Nombre d'agents bénéficiaires de prestations sociales par type de prestations sociales
H23: Restauration | I23: Enfants | J23: Vacances, loisirs, culture | K23: Protection (1) | L23: Retraite | M23: Autres | N23: Aides remboursables - Vie quotidienne (2) | O23: Chèque emploi service universel
A25: PM_TOT | B25: Personnel médical | H25: =+SUM(H26:H32) -> 0 | I25: 0 | J25: 0 | K25: 0 | L25: 0 | M25: 0 | N25: 0 | O25: 0
A26: PM_HUT | B26: Hospitaliers universitaires titulaires | H26: 0 | I26: 0 | J26: 0 | K26: 0 | L26: 0 | M26: 0 | N26: 0 | O26: 0
A27: PM_PHT | B27: Praticiens hospitaliers titulaires | H27: 0 | I27: 0 | J27: 0 | K27: 0 | L27: 0 | M27: 0 | N27: 0 | O27: 0
A28: PM_ASS | B28: Assistants | H28: 0 | I28: 0 | J28: 0 | K28: 0 | L28: 0 | M28: 0 | N28: 0 | O28: 0
A29: PM_HUNT | B29: Hospitaliers universitaires non titulaires | H29: 0 | I29: 0 | J29: 0 | K29: 0 | L29: 0 | M29: 0 | N29: 0 | O29: 0
A30: PM_ATT | B30: Attachés | H30: 0 | I30: 0 | J30: 0 | K30: 0 | L30: 0 | M30: 0 | N30: 0 | O30: 0
A31: PM_PAS | B31: Praticiens associés | H31: 0 | I31: 0 | J31: 0 | K31: 0 | L31: 0 | M31: 0 | N31: 0 | O31: 0
A32: PM_AUT | B32: Autres salariés (y compris ne relevant pas d'un statut) | H32: 0 | I32: 0 | J32: 0 | K32: 0 | L32: 0 | M32: 0 | N32: 0 | O32: 0
A33: PNM_TOT | B33: Personnel non médical | H33: =+SUM(H34:H42) -> 0 | I33: 824 | J33: 1141 | K33: 187 | L33: 8 | M33: 8 | N33: 32 | O33: 61
A34: PNM_SOI | B34: Soins | H34: 0 | I34: 616 | J34: 810 | K34: 148 | L34: 6 | M34: 6 | N34: 18 | O34: 50
A35: PNM_REE | B35: Rééducation | H35: 0 | I35: 0 | J35: 0 | K35: 0 | L35: 0 | M35: 0 | N35: 0 | O35: 0
A36: PNM_MT | B36: Médico-technique | H36: 0 | I36: 31 | J36: 57 | K36: 0 | L36: 0 | M36: 2 | N36: 1 | O36: 0
A37: PNM_ADM | B37: Administrative | H37: 0 | I37: 72 | J37: 139 | K37: 6 | L37: 1 | M37: 0 | N37: 13 | O37: 1
A38: PNM_OUV | B38: Ouvrière et technique | H38: 0 | I38: 79 | J38: 106 | K38: 31 | L38: 1 | M38: 0 | N38: 0 | O38: 6
A39: PNM_SOC | B39: Socio-éducative | H39: 0 | I39: 26 | J39: 29 | K39: 2 | L39: 0 | M39: 0 | N39: 0 | O39: 4
A40: PNM_DIR | B40: Personnels de direction | H40: 0 | I40: 0 | J40: 0 | K40: 0 | L40: 0 | M40: 0 | N40: 0 | O40: 0
A41: PNM_PSY | B41: Psychologues | H41: 0 | I41: 0 | J41: 0 | K41: 0 | L41: 0 | M41: 0 | N41: 0 | O41: 0
A42: PNM_SF | B42: Sages-femmes | H42: 0 | I42: 0 | J42: 0 | K42: 0 | L42: 0 | M42: 0 | N42: 0 | O42: 0
A43: TOT_PMPNM | B43: TOTAL | H43: =SUM(H25,H33) -> 0 | I43: 824 | J43: 1141 | K43: 187 | L43: 8 | M43: 8 | N43: 32 | O43: 61
B44: (1) Maladie, décès, congé de présence parentale, etc.
B45: (2) Fonds social logement, habitat, consommation, véhicule.
B47: Catégorie | H47: Nombre d'agents bénéficiaires de prestations sociales par type de prestations sociales
H48: Restauration | I48: Enfants | J48: Vacances, loisirs, culture | K48: Protection (1) | L48: Retraite | M48: Autres | N48: Aides remboursables - Vie quotidienne (2) | O48: Chèque emploi service universel
A49: CATA | B49: A | H49: 0
A50: CATB | B50: B | H50: 0
A51: CATC | B51: C | H51: 0
A52: CATX | B52: NC (non catégorisé A B C)
A53: TOT_CAT | B53: TOTAL | H53: =SUM(H49:H52) -> 0 | I53: 0 | J53: 0 | K53: 0 | L53: 0 | M53: 0 | N53: 0 | O53: 0
B54: (1) Maladie, décès, congé de présence parentale, etc.
B55: (2) Fonds social logement, habitat, consommation, véhicule.
B57: Tranches d'âge | H57: Nombre d'agents bénéficiaires de prestations sociales par type de prestations sociales
H58: Restauration | I58: Enfants | J58: Vacances, loisirs, culture | K58: Protection (1) | L58: Retraite | M58: Autres | N58: Aides remboursables - Vie quotidienne (2) | O58: Chèque emploi service universel
A59: AGE25 | B59: - 25 ans | H59: 0 | I59: 1 | J59: 4 | K59: 9 | L59: 0 | M59: 0 | N59: 0 | O59: 0
A60: AGE2540 | B60: 25-40 ans | H60: 0 | I60: 439 | J60: 518 | K60: 104 | L60: 0 | M60: 4 | N60: 21 | O60: 54
A61: AGE4155 | B61: 41-55 ans | H61: 0 | I61: 375 | J61: 489 | K61: 47 | L61: 0 | M61: 4 | N61: 8 | O61: 7
A62: AGE55 | B62: + 55 ans | H62: 0 | I62: 9 | J62: 130 | K62: 27 | L62: 8 | M62: 0 | N62: 5 | O62: 0
A63: TOT_AGE | B63: TOTAL | H63: =+SUM(H59:H62) -> 0 | I63: 824 | J63: 1141 | K63: 187 | L63: 8 | M63: 8 | N63: 34 | O63: 61
B64: (1) Maladie, décès, congé de présence parentale, etc.
B65: (2) Fonds social logement, habitat, consommation, véhicule.
B67: Sexe | H67: Nombre d'agents bénéficiaires de prestations sociales par type de prestations sociales
H68: Restauration | I68: Enfants | J68: Vacances, loisirs, culture | K68: Protection (1) | L68: Retraite | M68: Autres | N68: Aides remboursables - Vie quotidienne (2) | O68: Chèque emploi service universel
A69: HOMME | B69: H | H69: 0 | I69: 86 | J69: 125 | K69: 17 | L69: 0 | M69: 2 | N69: 1 | O69: 7
A70: FEMME | B70: F | H70: 0 | I70: 738 | J70: 1016 | K70: 170 | L70: 8 | M70: 6 | N70: 33 | O70: 54
A71: TOT_SEXE | B71: TOTAL | H71: =+SUM(H69:H70) -> 0 | I71: 824 | J71: 1141 | K71: 187 | L71: 8 | M71: 8 | N71: 34 | O71: 61
B72: (1) Maladie, décès, congé de présence parentale, etc.
B73: (2) Fonds social logement, habitat, consommation, véhicule.
H74: ACT_155_A | I74: ACT 155 a) | J74: 8__Action_sociale | K74: 8__ACTION_SOCIALE | L74: 8. Action sociale
G77: NBRES_HAGE1 | H77: NBRES_HAGE2 | I77: NBRES_HAGE3 | J77: NBRES_HAGE4 | K77: NBRES_FAGE1 | L77: NBRES_FAGE2 | M77: NBRES_FAGE3 | N77: NBRES_FAGE4 | O77: NBENF_HAGE1 | P77: NBENF_HAGE2 | Q77: NBENF_HAGE3 | R77: NBENF_HAGE4 | S77: NBENF_FAGE1 | T77: NBENF_FAGE2 | U77: NBENF_FAGE3 | V77: NBENF_FAGE4 | W77: NBVLC_HAGE1 | X77: NBVLC_HAGE2 | Y77: NBVLC_HAGE3 | Z77: NBVLC_HAGE4 | AA77: NBVLC_FAGE1 | AB77: NBVLC_FAGE2 | AC77: NBVLC_FAGE3 | AD77: NBVLC_FAGE4 | AE77: NBPRO_HAGE1 | AF77: NBPRO_HAGE2 | AG77: NBPRO_HAGE3 | AH77: NBPRO_HAGE4 | AI77: NBPRO_FAGE1 | AJ77: NBPRO_FAGE2 | AK77: NBPRO_FAGE3 | AL77: NBPRO_FAGE4 | AM77: NBRET_HAGE1 | AN77: NBRET_HAGE2 | AO77: NBRET_HAGE3 | AP77: NBRET_HAGE4 | AQ77: NBRET_FAGE1 | AR77: NBRET_FAGE2 | AS77: NBRET_FAGE3 | AT77: NBRET_FAGE4 | AU77: NBAUT_HAGE1 | AV77: NBAUT_HAGE2 | AW77: NBAUT_HAGE3 | AX77: NBAUT_HAGE4 | AY77: NBAUT_FAGE1 | AZ77: NBAUT_FAGE2 | BA77: NBAUT_FAGE3 | BB77: NBAUT_FAGE4 | BC77: NBAID_HAGE1 | BD77: NBAID_HAGE2 | BE77: NBAID_HAGE3 | BF77: NBAID_HAGE4 | BG77: NBAID_FAGE1 | BH77: NBAID_FAGE2 | BI77: NBAID_FAGE3 | BJ77: NBAID_FAGE4 | BK77: NBCES_HAGE1 | BL77: NBCES_HAGE2 | BM77: NBCES_HAGE3 | BN77: NBCES_HAGE4 | BO77: NBCES_FAGE1 | BP77: NBCES_FAGE2 | BQ77: NBCES_FAGE3 | BR77: NBCES_FAGE4 | BS77: ligne à masquer
B78: Statut d'emploi (personnel médical) ou filière (personnel non médical) et Catégories | G78: Nombre d'agents bénéficiaires de prestations sociales par type de prestations sociales
G79: Restauration | O79: Enfants | W79: Vacances, loisirs, culture | AE79: Protection (1) | AM79: Retraite | AU79: Autres | BC79: Aides remboursables - Vie quotidienne (2) | BK79: Chèque emploi service universel
G80: H | K80: F | O80: H | S80: F | W80: H | AA80: F | AE80: H | AI80: F | AM80: H | AQ80: F | AU80: H | AY80: F | BC80: H | BG80: F | BK80: H | BO80: F
G81: - 25 ans | H81: 25-40 ans | I81: 41-55 ans | J81: + 55 ans | K81: - 25 ans | L81: 25-40 ans | M81: 41-55 ans | N81: + 55 ans | O81: - 25 ans | P81: 25-40 ans | Q81: 41-55 ans | R81: + 55 ans | S81: - 25 ans | T81: 25-40 ans | U81: 41-55 ans | V81: + 55 ans | W81: - 25 ans | X81: 25-40 ans | Y81: 41-55 ans | Z81: + 55 ans | AA81: - 25 ans | AB81: 25-40 ans | AC81: 41-55 ans | AD81: + 55 ans | AE81: - 25 ans | AF81: 25-40 ans | AG81: 41-55 ans | AH81: + 55 ans | AI81: - 25 ans | AJ81: 25-40 ans | AK81: 41-55 ans | AL81: + 55 ans | AM81: - 25 ans | AN81: 25-40 ans | AO81: 41-55 ans | AP81: + 55 ans | AQ81: - 25 ans | AR81: 25-40 ans | AS81: 41-55 ans | AT81: + 55 ans | AU81: - 25 ans | AV81: 25-40 ans | AW81: 41-55 ans | AX81: + 55 ans | AY81: - 25 ans | AZ81: 25-40 ans | BA81: 41-55 ans | BB81: + 55 ans | BC81: - 25 ans | BD81: 25-40 ans | BE81: 41-55 ans | BF81: + 55 ans | BG81: - 25 ans | BH81: 25-40 ans | BI81: 41-55 ans | BJ81: + 55 ans | BK81: - 25 ans | BL81: 25-40 ans | BM81: 41-55 ans | BN81: + 55 ans | BO81: - 25 ans | BP81: 25-40 ans | BQ81: 41-55 ans | BR81: + 55 ans
A82: PM_TOT | B82: Personnel médical | G82: =+SUM(G83:G89) -> 0 | H82: 0 | I82: 0 | J82: 0 | K82: 0 | L82: 0 | M82: 0 | N82: 0 | O82: 0 | P82: 0 | Q82: 0 | R82: 0 | S82: 0 | T82: 0 | U82: 0 | V82: 0 | W82: 0 | X82: 0 | Y82: 0 | Z82: 0 | AA82: 0 | AB82: 0 | AC82: 0 | AD82: 0 | AE82: 0 | AF82: 0 | AG82: 0 | AH82: 0 | AI82: 0 | AJ82: 0 | AK82: 0 | AL82: 0 | AM82: 0 | AN82: 0 | AO82: 0 | AP82: 0 | AQ82: 0 | AR82: 0 | AS82: 0 | AT82: 0 | AU82: 0 | AV82: 0 | AW82: 0 | AX82: 0 | AY82: 0 | AZ82: 0 | BA82: 0 | BB82: 0 | BC82: 0 | BD82: 0 | BE82: 0 | BF82: 0 | BG82: 0 | BH82: 0 | BI82: 0 | BJ82: 0 | BK82: 0 | BL82: 0 | BM82: 0 | BN82: 0 | BO82: 0 | BP82: 0 | BQ82: 0 | BR82: 0
A83: PM_HUTA | B83: Hospitaliers universitaires titulaires | G83: 0 | H83: 0 | I83: 0 | J83: 0 | K83: 0 | L83: 0 | M83: 0 | N83: 0 | O83: 0 | P83: 0 | Q83: 0 | R83: 0 | S83: 0 | T83: 0 | U83: 0 | V83: 0 | W83: 0 | X83: 0 | Y83: 0 | Z83: 0 | AA83: 0 | AB83: 0 | AC83: 0 | AD83: 0 | AE83: 0 | AF83: 0 | AG83: 0 | AH83: 0 | AI83: 0 | AJ83: 0 | AK83: 0 | AL83: 0 | AM83: 0 | AN83: 0 | AO83: 0 | AP83: 0 | AQ83: 0 | AR83: 0 | AS83: 0 | AT83: 0 | AU83: 0 | AV83: 0 | AW83: 0 | AX83: 0 | AY83: 0 | AZ83: 0 | BA83: 0 | BB83: 0 | BC83: 0 | BD83: 0 | BE83: 0 | BF83: 0 | BG83: 0 | BH83: 0 | BI83: 0 | BJ83: 0 | BK83: 0 | BL83: 0 | BM83: 0 | BN83: 0 | BO83: 0 | BP83: 0 | BQ83: 0 | BR83: 0
A84: PM_PHTA | B84: Praticiens hospitaliers titulaires | G84: 0 | H84: 0 | I84: 0 | J84: 0 | K84: 0 | L84: 0 | M84: 0 | N84: 0 | O84: 0 | P84: 0 | Q84: 0 | R84: 0 | S84: 0 | T84: 0 | U84: 0 | V84: 0 | W84: 0 | X84: 0 | Y84: 0 | Z84: 0 | AA84: 0 | AB84: 0 | AC84: 0 | AD84: 0 | AE84: 0 | AF84: 0 | AG84: 0 | AH84: 0 | AI84: 0 | AJ84: 0 | AK84: 0 | AL84: 0 | AM84: 0 | AN84: 0 | AO84: 0 | AP84: 0 | AQ84: 0 | AR84: 0 | AS84: 0 | AT84: 0 | AU84: 0 | AV84: 0 | AW84: 0 | AX84: 0 | AY84: 0 | AZ84: 0 | BA84: 0 | BB84: 0 | BC84: 0 | BD84: 0 | BE84: 0 | BF84: 0 | BG84: 0 | BH84: 0 | BI84: 0 | BJ84: 0 | BK84: 0 | BL84: 0 | BM84: 0 | BN84: 0 | BO84: 0 | BP84: 0 | BQ84: 0 | BR84: 0
A85: PM_ASSA | B85: Assistants | G85: 0 | H85: 0 | I85: 0 | J85: 0 | K85: 0 | L85: 0 | M85: 0 | N85: 0 | O85: 0 | P85: 0 | Q85: 0 | R85: 0 | S85: 0 | T85: 0 | U85: 0 | V85: 0 | W85: 0 | X85: 0 | Y85: 0 | Z85: 0 | AA85: 0 | AB85: 0 | AC85: 0 | AD85: 0 | AE85: 0 | AF85: 0 | AG85: 0 | AH85: 0 | AI85: 0 | AJ85: 0 | AK85: 0 | AL85: 0 | AM85: 0 | AN85: 0 | AO85: 0 | AP85: 0 | AQ85: 0 | AR85: 0 | AS85: 0 | AT85: 0 | AU85: 0 | AV85: 0 | AW85: 0 | AX85: 0 | AY85: 0 | AZ85: 0 | BA85: 0 | BB85: 0 | BC85: 0 | BD85: 0 | BE85: 0 | BF85: 0 | BG85: 0 | BH85: 0 | BI85: 0 | BJ85: 0 | BK85: 0 | BL85: 0 | BM85: 0 | BN85: 0 | BO85: 0 | BP85: 0 | BQ85: 0 | BR85: 0
A86: PM_HUNTA | B86: Hospitaliers universitaires non titulaires | G86: 0 | H86: 0 | I86: 0 | J86: 0 | K86: 0 | L86: 0 | M86: 0 | N86: 0 | O86: 0 | P86: 0 | Q86: 0 | R86: 0 | S86: 0 | T86: 0 | U86: 0 | V86: 0 | W86: 0 | X86: 0 | Y86: 0 | Z86: 0 | AA86: 0 | AB86: 0 | AC86: 0 | AD86: 0 | AE86: 0 | AF86: 0 | AG86: 0 | AH86: 0 | AI86: 0 | AJ86: 0 | AK86: 0 | AL86: 0 | AM86: 0 | AN86: 0 | AO86: 0 | AP86: 0 | AQ86: 0 | AR86: 0 | AS86: 0 | AT86: 0 | AU86: 0 | AV86: 0 | AW86: 0 | AX86: 0 | AY86: 0 | AZ86: 0 | BA86: 0 | BB86: 0 | BC86: 0 | BD86: 0 | BE86: 0 | BF86: 0 | BG86: 0 | BH86: 0 | BI86: 0 | BJ86: 0 | BK86: 0 | BL86: 0 | BM86: 0 | BN86: 0 | BO86: 0 | BP86: 0 | BQ86: 0 | BR86: 0
A87: PM_ATTA | B87: Attachés | G87: 0 | H87: 0 | I87: 0 | J87: 0 | K87: 0 | L87: 0 | M87: 0 | N87: 0 | O87: 0 | P87: 0 | Q87: 0 | R87: 0 | S87: 0 | T87: 0 | U87: 0 | V87: 0 | W87: 0 | X87: 0 | Y87: 0 | Z87: 0 | AA87: 0 | AB87: 0 | AC87: 0 | AD87: 0 | AE87: 0 | AF87: 0 | AG87: 0 | AH87: 0 | AI87: 0 | AJ87: 0 | AK87: 0 | AL87: 0 | AM87: 0 | AN87: 0 | AO87: 0 | AP87: 0 | AQ87: 0 | AR87: 0 | AS87: 0 | AT87: 0 | AU87: 0 | AV87: 0 | AW87: 0 | AX87: 0 | AY87: 0 | AZ87: 0 | BA87: 0 | BB87: 0 | BC87: 0 | BD87: 0 | BE87: 0 | BF87: 0 | BG87: 0 | BH87: 0 | BI87: 0 | BJ87: 0 | BK87: 0 | BL87: 0 | BM87: 0 | BN87: 0 | BO87: 0 | BP87: 0 | BQ87: 0 | BR87: 0
A88: PM_PASA | B88: Praticiens associés | G88: 0 | H88: 0 | I88: 0 | J88: 0 | K88: 0 | L88: 0 | M88: 0 | N88: 0 | O88: 0 | P88: 0 | Q88: 0 | R88: 0 | S88: 0 | T88: 0 | U88: 0 | V88: 0 | W88: 0 | X88: 0 | Y88: 0 | Z88: 0 | AA88: 0 | AB88: 0 | AC88: 0 | AD88: 0 | AE88: 0 | AF88: 0 | AG88: 0 | AH88: 0 | AI88: 0 | AJ88: 0 | AK88: 0 | AL88: 0 | AM88: 0 | AN88: 0 | AO88: 0 | AP88: 0 | AQ88: 0 | AR88: 0 | AS88: 0 | AT88: 0 | AU88: 0 | AV88: 0 | AW88: 0 | AX88: 0 | AY88: 0 | AZ88: 0 | BA88: 0 | BB88: 0 | BC88: 0 | BD88: 0 | BE88: 0 | BF88: 0 | BG88: 0 | BH88: 0 | BI88: 0 | BJ88: 0 | BK88: 0 | BL88: 0 | BM88: 0 | BN88: 0 | BO88: 0 | BP88: 0 | BQ88: 0 | BR88: 0
A89: PM_AUTA | B89: Autres salariés (y compris ne relevant pas d'un statut) | G89: 0 | H89: 0 | I89: 0 | J89: 0 | K89: 0 | L89: 0 | M89: 0 | N89: 0 | O89: 0 | P89: 0 | Q89: 0 | R89: 0 | S89: 0 | T89: 0 | U89: 0 | V89: 0 | W89: 0 | X89: 0 | Y89: 0 | Z89: 0 | AA89: 0 | AB89: 0 | AC89: 0 | AD89: 0 | AE89: 0 | AF89: 0 | AG89: 0 | AH89: 0 | AI89: 0 | AJ89: 0 | AK89: 0 | AL89: 0 | AM89: 0 | AN89: 0 | AO89: 0 | AP89: 0 | AQ89: 0 | AR89: 0 | AS89: 0 | AT89: 0 | AU89: 0 | AV89: 0 | AW89: 0 | AX89: 0 | AY89: 0 | AZ89: 0 | BA89: 0 | BB89: 0 | BC89: 0 | BD89: 0 | BE89: 0 | BF89: 0 | BG89: 0 | BH89: 0 | BI89: 0 | BJ89: 0 | BK89: 0 | BL89: 0 | BM89: 0 | BN89: 0 | BO89: 0 | BP89: 0 | BQ89: 0 | BR89: 0
A90: PNM_TOT | B90: Personnel non médical | G90: =+SUM(G91:G117) -> 0 | H90: 0 | I90: 0 | J90: 0 | K90: 0 | L90: 0 | M90: 0 | N90: 0 | O90: 0 | P90: 0 | Q90: 0 | R90: 0 | S90: 0 | T90: 0 | U90: 0 | V90: 0 | W90: 0 | X90: 0 | Y90: 0 | Z90: 0 | AA90: 0 | AB90: 0 | AC90: 0 | AD90: 0 | AE90: 0 | AF90: 0 | AG90: 0 | AH90: 0 | AI90: 0 | AJ90: 0 | AK90: 0 | AL90: 0 | AM90: 0 | AN90: 0 | AO90: 0 | AP90: 0 | AQ90: 0 | AR90: 0 | AS90: 0 | AT90: 0 | AU90: 0 | AV90: 0 | AW90: 0 | AX90: 0 | AY90: 0 | AZ90: 0 | BA90: 0 | BB90: 0 | BC90: 0 | BD90: 0 | BE90: 0 | BF90: 0 | BG90: 0 | BH90: 0 | BI90: 0 | BJ90: 0 | BK90: 0 | BL90: 0 | BM90: 0 | BN90: 0 | BO90: 0 | BP90: 0 | BQ90: 0 | BR90: 0
A91: PNM_SOIA | B91: Soins | F91: A
A92: PNM_SOIB | F92: B
A93: PNM_SOIC | F93: C
A94: PNM_REEA | B94: Rééducation | F94: A
A95: PNM_REEB | F95: B
A96: PNM_REEC | F96: C
A97: PNM_MTA | B97: Médico-technique | F97: A
A98: PNM_MTB | F98: B
A99: PNM_MTC | F99: C
A100: PNM_ADMA | B100: Administrative | F100: A
A101: PNM_ADMB | F101: B
A102: PNM_ADMC | F102: C
A103: PNM_OUVA | B103: Ouvrière et technique | F103: A
A104: PNM_OUVB | F104: B
A105: PNM_OUVC | F105: C
A106: PNM_SOCA | B106: Socio-éducative | F106: A
A107: PNM_SOCB | F107: B
A108: PNM_SOCC | F108: C
A109: PNM_DIRA | B109: Personnels de direction | F109: A
A110: PNM_DIRB | F110: B
A111: PNM_DIRC | F111: C
A112: PNM_PSYA | B112: Psychologues | F112: A
A113: PNM_PSYB | F113: B
A114: PNM_PSYC | F114: C
A115: PNM_SFA | B115: Sages-femmes | F115: A
A116: PNM_SFB | F116: B
A117: PNM_SFC | F117: C
A118: TOT_PMPNM | B118: TOTAL | G118: =SUM(G90,G82) -> 0 | H118: 0 | I118: 0 | J118: 0 | K118: 0 | L118: 0 | M118: 0 | N118: 0 | O118: 0 | P118: 0 | Q118: 0 | R118: 0 | S118: 0 | T118: 0 | U118: 0 | V118: 0 | W118: 0 | X118: 0 | Y118: 0 | Z118: 0 | AA118: 0 | AB118: 0 | AC118: 0 | AD118: 0 | AE118: 0 | AF118: 0 | AG118: 0 | AH118: 0 | AI118: 0 | AJ118: 0 | AK118: 0 | AL118: 0 | AM118: 0 | AN118: 0 | AO118: 0 | AP118: 0 | AQ118: 0 | AR118: 0 | AS118: 0 | AT118: 0 | AU118: 0 | AV118: 0 | AW118: 0 | AX118: 0 | AY118: 0 | AZ118: 0 | BA118: 0 | BB118: 0 | BC118: 0 | BD118: 0 | BE118: 0 | BF118: 0 | BG118: 0 | BH118: 0 | BI118: 0 | BJ118: 0 | BK118: 0 | BL118: 0 | BM118: 0 | BN118: 0 | BO118: 0 | BP118: 0 | BQ118: 0 | BR118: 0
B119: (1) Maladie, décès, congé de présence parentale, etc.
B120: (2) Fonds social logement, habitat, consommation, véhicule.
G121: ACT_155_B | H121: ACT 155 b) | I121: 8__Action_sociale | J121: 8__ACTION_SOCIALE | K121: 8. Action sociale

Sheet 9. Dialogue
B1: 9. DIALOGUE SOCIAL | U1: Retour au sommaire
B2: Générer le fichier d'import du thème 9. Dialogue pour la plateforme de saisie en ligne
C4: a) Organismes consultatifs
D5: BDS FPH 158-O | F5: Nombre de représentants du personnel par type d'instance et niveau pour le CSE
D6: BDS FPH 159-F | F6: Nombre de réunions des instances au cours de l'année
C7: b) Moyens humains accordés aux syndicats pour les besoins de l'activité syndicale (article 16 du décret n° 86-660 du 19 mars 1986) à vérifier
D8: BDS FPH 163-F | F8: Volume annuel du contingent global de crédit de temps syndical
D9: BDS FPH 164-F | F9: Volume de crédits de temps syndical effectivement utilisé en distinguant
C10: c) Les négociations engagées et les accords signés
D11: BDS FPH 167-F | F11: Nombre de demandes formulées par les organisations syndicales visant à ouvrir une négociation collective
D12: BDS FPH 168-F | F12: Nombre d'accords conclus et signés majoritairement au cours de l'année
B18: a) Organismes consultatifs | U18: Retour haut de page
B21: BDS FPH 158-O | D21: Nombre de représentants du personnel par type d'instance et niveau pour le CSE | U21: Retour haut de page
G23: NB_CSE | H23: NB_CSEL | I23: NB_F3SCT | J23: NB_FSITE | K23: NB_CAPL | L23: NB_CAPD | M23: NB_CCP | N23: NBRP
B24: Organisation syndicale | G24: Nombre de représentants du personnel par type d'instance et niveau pour le CSE
G25: Comité social d'établissement (CSE) | H25: dont CSE locaux (*) | I25: Formation spécialisée en matière de santé, de sécurité et de conditions de travail (F3SCT) du comité | J25: Formation spécialisée en matière de santé, de sécurité et de conditions de travail (F3SCT) complémentaire de site | K25: Commissions administratives paritaires (CAP) locales | L25: Commissions administratives paritaires (CAP) départementales | M25: Commission consultative paritaire (CCP) | N25: TOTAL
A27: OSCFDT | B27: CFDT | G27: 0 | H27: 0 | I27: 0 | J27: 0 | K27: 0 | L27: 0 | M27: 0 | N27: =G27+SUM(I27:M27) -> 0
A28: OSCFECGC | B28: CFE-CGC | G28: 0 | H28: 0 | I28: 0 | J28: 0 | K28: 0 | L28: 0 | M28: 0 | N28: 0
A29: OSCFTC | B29: CFTC | G29: 2 | H29: 0 | I29: 2 | J29: 0 | K29: 0 | L29: 0 | M29: 0 | N29: 4
A30: OSCGT | B30: CGT | G30: 12 | H30: 0 | I30: 12 | J30: 0 | K30: 20 | L30: 28 | M30: 4 | N30: 76
A31: OSFO | B31: FO | G31: 12 | H31: 0 | I31: 12 | J31: 0 | K31: 18 | L31: 28 | M31: 6 | N31: 76
A32: OSSMPS | B32: SMPS | G32: 0 | H32: 0 | I32: 0 | J32: 0 | K32: 0 | L32: 0 | M32: 0 | N32: 0
A33: OSSUDSS | B33: SUD-SANTE SOCIAUX | G33: 4 | H33: 0 | I33: 4 | J33: 0 | K33: 2 | L33: 0 | M33: 0 | N33: 10
A34: OSUNSA | B34: UNSA | G34: 0 | H34: 0 | I34: 0 | J34: 0 | K34: 2 | L34: 0 | M34: 0 | N34: 2
A35: OSUNION | B35: Unions de syndicats | G35: 0 | H35: 0 | I35: 0 | J35: 0 | K35: 0 | L35: 0 | M35: 0 | N35: 0
A36: OSAUTRES | B36: Autres OS | G36: 0 | H36: 0 | I36: 0 | J36: 0 | K36: 0 | L36: 0 | M36: 0 | N36: 0
A37: TOT_OS | B37: TOTAL | G37: =+SUM(G27:G36) -> 30 | H37: 0 | I37: 30 | J37: 0 | K37: 42 | L37: 56 | M37: 10 | N37: 168
B38: (*) concerne uniquement l'AP-HP et les HCL
B40: Fonction | G40: Nombre de représentants du personnel par type d'instance et niveau pour le CSE
G41: CSE | H41: dont CSE locaux (*) | I41: F3SCT du comité | J41: F3SCT complémentaire de site | K41: CAP locales | L41: CAP départementales | M41: CCP | N41: TOTAL
A42: TITUL | B42: Titulaires | G42: 15 | H42: 0 | I42: 15 | J42: 0 | K42: 21 | L42: 28 | M42: 5 | N42: =G42+SUM(I42:M42) -> 84
A43: SUPPL | B43: Suppléants | G43: 15 | H43: 0 | I43: 15 | J43: 0 | K43: 21 | L43: 28 | M43: 5 | N43: 84
A44: TOT_RP | B44: TOTAL | G44: =+SUM(G42:G43) -> 30 | H44: 0 | I44: 30 | J44: 0 | K44: 42 | L44: 56 | M44: 10 | N44: 168
B45: (*) concerne uniquement l'AP-HP et les HCL
B47: Sexe | G47: Nombre de représentants du personnel par type d'instance et niveau pour le CSE
G48: CSE | H48: dont CSE locaux (*) | I48: F3SCT du comité | J48: F3SCT complémentaire de site | K48: CAP locales | L48: CAP départementales | M48: CCP | N48: TOTAL
A49: HOMME | B49: H | G49: 14 | H49: 0 | I49: 14 | J49: 0 | K49: 15 | L49: 18 | M49: 4 | N49: =G49+SUM(I49:M49) -> 65
A50: FEMME | B50: F | G50: 16 | H50: 0 | I50: 16 | J50: 0 | K50: 27 | L50: 38 | M50: 6 | N50: 103
A51: TOT_SEXE | B51: TOTAL | G51: =+SUM(G49:G50) -> 30 | H51: 0 | I51: 30 | J51: 0 | K51: 42 | L51: 56 | M51: 10 | N51: 168
B52: (*) concerne uniquement l'AP-HP et les HCL
G53: DIA_158 | H53: DIA 158 | I53: 9__Dialogue | J53: 9__DIALOGUE | K53: 9. Dialogue
B58: BDS FPH 159-F | D58: Nombre de réunions des instances au cours de l'année | U58: Retour haut de page
F60: NB_REU
B61: Type d'instance | F61: Nombre de réunions dans l'année 2023
A62: CSE | B62: CSE | F62: 11
A63: CSEL | B63: dont CSE locaux (*) | F63: 0
A64: F3SCT | B64: F3SCT du comité | F64: 9
A65: FSITE | B65: F3SCT complémentaire de site | F65: 0 | J65: ,
A66: CAPL | B66: CAP locales | F66: 2
A67: CAPD | B67: CAP départementales | F67: 1
A68: CCP | B68: CCP | F68: 4
A69: TOT_INST | B69: TOTAL | F69: =+SUM(F64:F68)+F62 -> 27
B70: (*) concerne uniquement l'AP-HP et les HCL
F71: DIA_159_F | G71: DIA 159-F | H71: 9__Dialogue | I71: 9__DIALOGUE | J71: 9. Dialogue
B76: b) Moyens humains accordés aux syndicats pour les besoins de l'activité syndicale (article 16 du décret n° 86-660 du 19 mars 1986) | U76: Retour haut de page
B79: BDS FPH 163-F | D79: Volume annuel du contingent global de crédit de temps syndical | U79: Retour haut de page
G81: VOLUME
A82: ANNUEL | B82: Volume annuel du contingent global de crédit de temps syndical en nombre d'heures | G82: 20148
G83: DIA_163_F | H83: DIA 163-F | I83: 9__Dialogue | J83: 9__DIALOGUE | K83: 9. Dialogue
B88: BDS FPH 164-F | D88: Volume de crédits de temps syndical effectivement utilisé | U88: Retour haut de page
F90: VOLUME
B91: Nombre d’ETP de crédits de temps syndical | F91: Volume de crédits de temps syndical effectivement utilisé
A92: UTIL | B92: effectivement utilisés (décharges + crédits d’heures) | F92: 18954
A93: DAS | B93: utilisés sous forme de décharges d’activité de service (DAS) | F93: 4824
A94: TOT_SYND | B94: TOTAL
F95: DIA_164_F | G95: DIA 164-F | H95: 9__Dialogue | I95: 9__DIALOGUE | J95: 9. Dialogue
B100: c) Les négociations engagées et les accords signés | U100: Retour haut de page
B103: BDS FPH 167-F / 168-F | E103: Nombre de demandes formulées par les organisations syndicales visant à ouvrir une négociation collective - Nombre d'accords conclus et signés majoritairement au cours de l'année | U103: Retour haut de page
N105: NB_DCSE | O105: NB_DCSEL | P105: NB_ACSE | Q105: NB_ACSEL
B106: Domaines sur lesquels portent les accords | N106: Nombre de demandes formulées par les organisations syndicales visant à ouvrir une négociation collective | P106: Nombre d'accords conclus et signés majoritairement au cours de l'année
N107: CSE | O107: dont CSE locaux (*) | P107: CSE | Q107: dont CSE locaux (*)
A108: ACREMU | B108: Évolution des rémunérations et du pouvoir d’achat des agents publics | N108: 1 | O108: 0 | P108: 0 | Q108: 0
A109: ACCHSST | B109: Les conditions et l'organisation du travail, notamment les actions de prévention dans les domaines de l'hygiène, de la sécurité et de la santé au travail | N109: 17 | O109: 0 | P109: 2 | Q109: 0
A110: ACQVT | B110: Le temps de travail, le télétravail, la qualité de vie au travail, les modalités des déplacements entre le domicile et le travail ainsi que les impacts de la numérisation sur l'organisation et les conditions de travail | N110: 8 | O110: 0 | P110: 5 | Q110: 0
A111: ACREORG | B111: L'accompagnement social des mesures de réorganisation des services | N111: 1 | O111: 0 | P111: 0 | Q111: 0
A112: ACENVIR | B112: La mise en œuvre des actions en faveur de la lutte contre le changement climatique, de la préservation des ressources et de l'environnement et de la responsabilité sociale des organisations | N112: 0 | O112: 0 | P112: 0 | Q112: 0
A113: ACEGALP | B113: L'égalité professionnelle entre les femmes et les hommes | N113: 0 | O113: 0 | P113: 1 | Q113: 0
A114: ACEGALE | B114: La promotion de l'égalité des chances et à la reconnaissance de la diversité et la prévention des discriminations dans l'accès aux emplois et la gestion des carrières | N114: 0 | O114: 0 | P114: 0 | Q114: 0
A115: ACINSERT | B115: L'insertion professionnelle, le maintien dans l'emploi et l'évolution professionnelle des personnes en situation de handicap | N115: 0 | O115: 0 | P115: 1 | Q115: 0
A116: ACCARRI | B116: Le déroulement des carrières et à la promotion professionnelle | N116: 2 | O116: 0 | P116: 1 | Q116: 0
A117: ACAPPREN | B117: L’apprentissage | N117: 0 | O117: 0 | P117: 0 | Q117: 0
A118: ACFORMP | B118: La formation professionnelle et la formation tout au long de la vie | N118: 2 | O118: 0 | P118: 0 | Q118: 0
A119: ACINDEM | B119: L'intéressement collectif et les modalités de mise en œuvre de politiques indemnitaires | N119: 0 | O119: 0 | P119: 1 | Q119: 0
A120: ACSOCIAL | B120: L'action sociale | N120: 0 | O120: 0 | P120: 0 | Q120: 0
A121: ACPSC | B121: La protection sociale complémentaire | N121: 0 | O121: 0 | P121: 0 | Q121: 0
A122: ACMETIER | B122: L'évolution des métiers et la gestion prévisionnelle des emplois et des compétences | N122: 1 | O122: 0 | P122: 0 | Q122: 0
A123: ACAUTRE | B123: Autre domaine | N123: 5 | O123: 0 | P123: 0 | Q123: 0
A124: ACPLAN | B124: Élaboration du plan d’action en faveur de l’égalité professionnelle entre femmes et hommes | N124: 0 | O124: 0 | P124: 0 | Q124: 0
A125: TOT_ACC | B125: TOTAL | N125: =+SUM(N108:N124) -> 37 | O125: 0 | P125: 11 | Q125: 0
B126: (*) concerne uniquement l'AP-HP et les HCL
N127: DIA_167_F | O127: DIA 167-F | P127: 9__Dialogue | Q127: 9__DIALOGUE | R127: 9. Dialogue

Sheet 10. Discipline
B1: 10. DISCIPLINE | S1: Retour au sommaire
B2: Générer le fichier d'import du thème 10. Discipline pour la plateforme de saisie en ligne
D4: BDS FPH 171-O | F4: Nombre sanctions prononcées
B10: BDS FPH 171-O | D10: Nombre sanctions prononcées | S10: Retour haut de page
J12: NB_SANCT
B13: Type de sanction | J13: Nombre de sanctions prononcées
A15: AVERT | B15: Avertissement | J15: 2
A16: BLAME | B16: Blâme | J16: 1
A17: EXCLUS1 | B17: Exclusion temporaire de fonctions de 1 à 3 jours | J17: 3
A18: RADIAT | B18: Radiation du tableau d'avancement | J18: 0
A19: ECHELON | B19: Abaissement d'échelon à l'échelon immédiatement inférieur à celui détenu par le fonctionnaire | J19: 0
A20: EXCLUS2 | B20: Exclusion temporaire de fonctions de 4 à 15 jours | J20: 1
A21: RETROG | B21: Rétrogradation au grade immédiatement inférieur, à l'échelon comportant un indice égal ou immédiatement inférieur à celui détenu par le fonctionnaire | J21: 0
A22: EXCLUS3 | B22: Exclusion temporaire de fonctions de 16 jours à 2 ans | J22: 0
A23: RETRAITE | B23: Mise à la retraite d'office | J23: 0
A24: REVOC | B24: Révocation | J24: 0
A25: EXCLUS4 | B25: Exclusion temporaire de fonctions ne pouvant excéder 6 mois | J25: 0
A26: LICENCI | B26: Licenciement | J26: 0
A27: SUSPENS | B27: Suspension ne pouvant excéder six mois | J27: 0
A28: EXCLUS5 | B28: Exclusion temporaire ne pouvant excéder 3 ans | J28: 0
A29: REDUCT | B29: Réduction d'ancienneté de services entraînant une réduction des émoluments | J29: 0
A30: MUTATI | B30: Mutation d'office | J30: 0
A31: EXCLUS6 | B31: Exclusion des fonctions ne pouvant dépasser 5 ans | J31: 0
A32: TOT_NBS | B32: TOTAL | J32: =+SUM(J15:J31) -> 7
B34: Nature de la faute | J34: Nombre de sanctions prononcées
A35: ORDREH | B35: Refus de se conformer aux ordres de sa hiérarchie | J35: 2
A36: FAUTEPRO | B36: Faute professionnelle | J36: 0
A37: ABSINJ | B37: Absences injustifiées | J37: 0
A38: ABANDON | B38: Abandon de poste | J38: 0
A39: CUMUL | B39: Cumul d'activité irrégulier | J39: 0
A40: CONFLINT | B40: Conflit d'intérêt non déclaré | J40: 0
A41: PROBITE | B41: Manquement à la probité (vol, falsification, détournement de fonds, fraude) | J41: 1
A42: NEUTRAL | B42: Manquement à la neutralité (, manifestation de convictions politiques, discrimination dans les propos et les actes) | J42: 0
A43: LAICITE | B43: Manquement au respect du principe de laïcité (prosélytisme au sein de l'établissement, manifestation ostentatoire de convictions religieuses au sein de l'établissement) | J43: 0
A44: DIGNITE | B44: Manquement à l'obligation de dignité au sein du service et en dehors du service (état d'ébriété) | J44: 0
A45: PENALE | B45: Condamnation pénale | J45: 0
A46: ATTBIEN | B46: Atteinte à la sécurité des biens (de l'établissements, des agents, des tiers (patients, résidents, visiteurs) | J46: 0
A47: ATTPERS | B47: Atteinte à la sécurité des personnes (insultes, menaces, harcèlement, violences envers des agents ou des tiers (patients, résidents ou visiteurs) | J47: 4
A48: TOT_FAUTE | B48: TOTAL | J48: =+SUM(J35:J47) -> 7
B50: Statut d'emploi (personnel médical) ou filière (personnel non médical) | J50: Nombre de sanctions prononcées
A51: PM_TOT | B51: Personnel médical | J51: =+SUM(J52:J58) -> 0
A52: PM_HUT | B52: Hospitaliers universitaires titulaires | J52: 0
A53: PM_PHT | B53: Praticiens hospitaliers titulaires | J53: 0
A54: PM_ASS | B54: Assistants | J54: 0
A55: PM_HUNT | B55: Hospitaliers universitaires non titulaires | J55: 0
A56: PM_ATT | B56: Attachés | J56: 0
A57: PM_PAS | B57: Praticiens associés | J57: 0
A58: PM_AUT | B58: Autres salariés (y compris ne relevant pas d'un statut) | J58: 0
A59: PNM_TOT | B59: Personnel non médical | J59: =+SUM(J60:J68) -> 7
A60: PNM_SOI | B60: Soins | J60: 1
A61: PNM_REE | B61: Rééducation | J61: 0
A62: PNM_MT | B62: Médico-technique | J62: 3
A63: PNM_ADM | B63: Administrative | J63: 0
A64: PNM_OUV | B64: Ouvrière et technique | J64: 3
A65: PNM_SOC | B65: Socio-éducative | J65: 0
A66: PNM_DIR | B66: Personnels de direction | J66: 0
A67: PNM_PSY | B67: Psychologues | J67: 0
A68: PNM_SF | B68: Sages-femmes | J68: 0
A69: TOT_PMPNM | B69: TOTAL | J69: =SUM(J59,J51) -> 7
B71: Catégorrie hiérarchique | J71: Nombre de sanctions prononcées
A72: CATA | B72: A | J72: 4
A73: CATB | B73: B | J73: 0
A74: CATC | B74: C | J74: 3
A75: CATX | B75: NC (non catégorisé A B C)
A76: TOT_CAT | B76: TOTAL | J76: =+SUM(J72:J75) -> 7
B78: Âge ou tranche d'âge | J78: Nombre de sanctions prononcées
A79: AGE25 | B79: - 25 ans | J79: 0
A80: AGE2540 | B80: 25-40 ans | J80: 2
A81: AGE4155 | B81: 41-55 ans | J81: 5
A82: AGE55 | B82: + 55 ans | J82: 0
A83: TOT_AGE | B83: TOTAL | J83: =+SUM(J79:J82) -> 7
B85: Sexe | J85: Nombre de sanctions prononcées
A86: HOMME | B86: H | J86: 5
A87: FEMME | B87: F | J87: 2
A88: TOT_SEXE | B88: TOTAL | J88: =+SUM(J86:J87) -> 7
J89: DIS_171_A | K89: DIS 171 a) | L89: 10__Discipline | M89: 10__DISCIPLINE | N89: 10. Discipline
I92: NB_AVERT | J92: NB_BLAME | K92: NB_EXCLUS1 | L92: NB_RADIAT | M92: NB_ECHELON | N92: NB_EXCLUS2 | O92: NB_RETROG | P92: NB_EXCLUS3 | Q92: NB_RETRAITE | R92: NB_REVOC | S92: NB_SN
B93: Nature de la faute | I93: Nombre de sanctions
I94: Avertissement | J94: Blâme | K94: Exclusion temporaire de fonctions de 1 à 3 jours | L94: Radiation du tableau d'avancement | M94: Abaissement d'échelon à l'échelon immédiatement inférieur | N94: Exclusion temporaire de fonctions de 4 à 15 jours | O94: Rétrogradation au grade immédiatement inférieur | P94: Exclusion temporaire de fonctions de 16 jours à 2 ans | Q94: Mise à la retraite d'office | R94: Révocation | S94: TOTAL
A96: ORDREH | B96: Refus de se conformer aux ordres de sa hiérarchie | I96: 1 | J96: 1 | S96: =SUM(I96:R96) -> 2
A97: FAUTEPRO | B97: Faute professionnelle | S97: 0
A98: ABSINJ | B98: Absences injustifiées | S98: 0
A99: ABANDON | B99: Abandon de poste | S99: 0
A100: CUMUL | B100: Cumul d'activité irrégulier | S100: 0
A101: CONFLINT | B101: Conflit d'intérêt non déclaré | S101: 0
A102: PROBITE | B102: Manquement à la probité (vol, falsification, détournement de fonds, fraude) | N102: 1 | S102: 1
A103: NEUTRAL | B103: Manquement à la neutralité (, manifestation de convictions politiques, discrimination dans les propos et les actes) | S103: 0
A104: LAICITE | B104: Manquement au respect du principe de laïcité (prosélytisme au sein de l'établissement, manifestation ostentatoire de convictions religieuses au sein de l'établissement) | S104: 0
A105: DIGNITE | B105: Manquement à l'obligation de dignité au sein du service et en dehors du service (état d'ébriété) | S105: 0
A106: PENALE | B106: Condamnation pénale | S106: 0
A107: ATTBIEN | B107: Atteinte à la sécurité des biens (de l'établissements, des agents, des tiers (patients, résidents, visiteurs) | S107: 0
A108: ATTPERS | B108: Atteinte à la sécurité des personnes (insultes, menaces, harcèlement, violences envers des agents ou des tiers (patients, résidents ou visiteurs) | I108: 1 | K108: 3 | S108: 4
A109: TOT_FAUTE | B109: TOTAL | I109: =+SUM(I96:I108) -> 2 | J109: 1 | K109: 3 | L109: 0 | M109: 0 | N109: 1 | O109: 0 | P109: 0 | Q109: 0 | R109: 0 | S109: 7
I110: DIS_171_B | J110: DIS 171 b) | K110: 10__Discipline | L110: 10__DISCIPLINE | M110: 10. Discipline
I113: NB_SHA | J113: NB_SHB | K113: NB_SHC | L113: NB_SH | M113: NB_SFA | N113: NB_SFB | O113: NB_SFC | P113: NB_SF
B114: Statut d'emploi (personnel médical) ou filière (personnel non médical) | I114: Nombre de sanctions par sexe et catégorie
I115: H | M115: F
I116: A | J116: B | K116: C | L116: TOTAL | M116: A | N116: B | O116: C | P116: TOTAL
A117: PM_TOT | B117: Personnel médical | I117: =+SUM(I118:I124) -> 0 | L117: =+SUM(L118:L124) -> 0 | M117: 0 | P117: =+SUM(P118:P124) -> 0
A118: PM_HUT | B118: Hospitaliers universitaires titulaires | L118: =SUM(I118:K118) -> 0 | P118: =SUM(M118:O118) -> 0
A119: PM_PHT | B119: Praticiens hospitaliers titulaires | L119: 0 | P119: 0
A120: PM_ASS | B120: Assistants | L120: 0 | P120: 0
A121: PM_HUNT | B121: Hospitaliers universitaires non titulaires | L121: 0 | P121: 0
A122: PM_ATT | B122: Attachés | L122: 0 | P122: 0
A123: PM_PAS | B123: Praticiens associés | L123: 0 | P123: 0
A124: PM_AUT | B124: Autres salariés (y compris ne relevant pas d'un statut) | L124: 0 | P124: 0
A125: PNM_TOT | B125: Personnel non médical | I125: =+SUM(I126:I134) -> 2 | J125: 0 | K125: 3 | L125: 5 | M125: 2 | N125: 0 | O125: 0 | P125: 2
A126: PNM_SOI | B126: Soins | G126: A | I126: 1 | L126: =SUM(I126:K126) -> 1 | P126: =SUM(M126:O126) -> 0
A127: PNM_REE | B127: Rééducation | G127: A | L127: 0 | P127: 0
A128: PNM_MT | B128: Médico-technique | G128: A | I128: 1 | L128: 1 | M128: 2 | P128: 2
A129: PNM_ADM | B129: Administrative | G129: A | L129: 0 | P129: 0
A130: PNM_OUV | B130: Ouvrière et technique | G130: A | K130: 3 | L130: 3 | P130: 0
A131: PNM_SOC | B131: Socio-éducative | G131: A | L131: 0 | P131: 0
A132: PNM_DIR | B132: Personnels de direction | G132: A | L132: 0 | P132: 0
A133: PNM_PSY | B133: Psychologues | G133: A | L133: 0 | P133: 0
A134: PNM_SF | B134: Sages-femmes | G134: A | L134: 0 | P134: 0
A135: TOT_PMPNM | B135: TOTAL | I135: =SUM(I125,I117) -> 2 | J135: 0 | K135: 3 | L135: 5 | M135: 2 | N135: 0 | O135: 0 | P135: 2
I136: DIS_171_C | J136: DIS 171 c) | K136: 10__Discipline | L136: 10__DISCIPLINE | M136: 10. Discipline

Sheet LISTES_DEROULANTES (hidden)
A1: Oui/Non
A2: Oui
A3: Non
